Authority,Service Area,Account Description,Payment Date,Amount,Supplier
Bolton MBC,Adult Services,Residential Provision,06/06/2022,"5,730.00",Abafields Residential Home
Bolton MBC,Adult Services,Nursing Provision,06/06/2022,"21,446.14",Abbey Healthcare (Farnworth) Limited
Bolton MBC,Adult Services,Residential Provision,06/06/2022,"5,157.00",Abbey Healthcare (Farnworth) Limited
Bolton MBC,Adult Services,Residential Provision,06/06/2022,"5,086.43",Abbey Healthcare (Farnworth) Limited
Bolton MBC,Adult Services,Residential Provision,06/06/2022,"1,315.71",Abbey Healthcare (Farnworth) Limited
Bolton MBC,Adult Services,Contracted Services,01/06/2022,"3,741.61",Access UK Limited
Bolton MBC,Adult Services,Deep Cleans - One Offs,27/06/2022,650.00,Acorn Environment Services Ltd
Bolton MBC,Adult Services,Other Agency/Contracted Services,01/06/2022,805.00,Advocacy Focus
Bolton MBC,Adult Services,Other Agency/Contracted Services,16/06/2022,560.00,Advocacy Focus
Bolton MBC,Adult Services,Clients Aids & Adaptations,01/06/2022,880.00,Aidapt Bathrooms Ltd
Bolton MBC,Adult Services,Clients Aids & Adaptations,09/06/2022,"1,500.00",Aidapt Bathrooms Ltd
Bolton MBC,Adult Services,Clients Aids & Adaptations,27/06/2022,"1,560.00",Aidapt Bathrooms Ltd
Bolton MBC,Adult Services,Clients Aids & Adaptations,29/06/2022,875.00,Aidapt Bathrooms Ltd
Bolton MBC,Adult Services,Contracted Services,08/06/2022,"1,115.51",Alternative Futures Group
Bolton MBC,Adult Services,Contracted Services,08/06/2022,704.99,Alternative Futures Group
Bolton MBC,Adult Services,Contracted Services,23/06/2022,"7,086.70",Ansar Projects
Bolton MBC,Adult Services,Operational Equipment Purchase,01/06/2022,750.00,Ash Cleaning Services Limited
Bolton MBC,Adult Services,Contract Cleaning,06/06/2022,"1,445.00",Ash Cleaning Services Limited
Bolton MBC,Adult Services,Deep Cleans - One Offs,06/06/2022,935.00,Ash Cleaning Services Limited
Bolton MBC,Adult Services,Nursing Provision,06/06/2022,"3,470.00",Astley Grange Homes Limited
Bolton MBC,Adult Services,Nursing Provision,06/06/2022,"3,040.00",Astley Grange Homes Limited
Bolton MBC,Adult Services,Residential Provision,06/06/2022,"36,694.10",Bannister Farm Cottage
Bolton MBC,Adult Services,Livestock,07/06/2022,972.00,Barkingham Kennels
Bolton MBC,Adult Services,Residential Provision,06/06/2022,"2,865.00",Beechville Care Home
Bolton MBC,Adult Services,Nursing Provision,06/06/2022,"3,005.00",Belong Atherton#EPH
Bolton MBC,Adult Services,Residential Provision,06/06/2022,"3,235.00",Belong Wigan#2
Bolton MBC,Adult Services,Clients Aids & Adaptations,01/06/2022,"3,050.00",Bennett Workplace Solutions Limited
Bolton MBC,Adult Services,Nursing Provision,06/06/2022,"21,942.00",Berkeley House
Bolton MBC,Adult Services,Residential Provision,06/06/2022,"6,085.00",Blackrod House Limited
Bolton MBC,Adult Services,Residential Provision,06/06/2022,"7,351.00",Bluebell Cottage Veedale
Bolton MBC,Adult Services,Partnership Staff,14/06/2022,"4,177.05",Bolton NHS Foundation Trust#1
Bolton MBC,Adult Services,Partnership Staff,14/06/2022,"4,177.05",Bolton NHS Foundation Trust#1
Bolton MBC,Adult Services,Partnership Staff,23/06/2022,"4,177.05",Bolton NHS Foundation Trust#1
Bolton MBC,Adult Services,Residential Provision,06/06/2022,"3,726.75",Brookfield Residential Care Home Ltd
Bolton MBC,Adult Services,Residential Provision,06/06/2022,"17,139.05",Brookvale
Bolton MBC,Adult Services,Residential Provision,06/06/2022,"2,274.25",Browfield Residential Home
Bolton MBC,Adult Services,Nursing Provision,06/06/2022,"6,354.00",Burrswood House
Bolton MBC,Adult Services,Residential Provision,06/06/2022,"5,704.00",Burrswood House
Bolton MBC,Adult Services,Nursing Provision,06/06/2022,"2,865.00",Carders Court Care Home
Bolton MBC,Adult Services,Contracted Services,24/06/2022,"12,490.71",Caring Alternatives Limited
Bolton MBC,Adult Services,Contracted Services,24/06/2022,"1,100.18",Caring Alternatives Limited
Bolton MBC,Adult Services,Residential Provision,06/06/2022,"2,814.50",Carr Bank House
Bolton MBC,Adult Services,Clients Aids & Adaptations,17/06/2022,"1,304.50",Cefndy Healthcare#Cefndy Enterprises
Bolton MBC,Adult Services,Residential Provision,06/06/2022,"8,940.00",Chatterton Hey
Bolton MBC,Adult Services,Residential Provision,06/06/2022,"23,593.20",Chorley House
Bolton MBC,Adult Services,Residential Provision,06/06/2022,"11,796.60",Chorley House
Bolton MBC,Adult Services,Residential Provision,06/06/2022,"8,158.65",Church View
Bolton MBC,Adult Services,Nursing Provision,06/06/2022,"19,886.40",Church Walk Health Care Limited
Bolton MBC,Adult Services,Contracted Services,08/06/2022,"1,283.13",Click Travel Limited
Bolton MBC,Adult Services,Contracted Services,15/06/2022,"1,011.67",Click Travel Limited
Bolton MBC,Adult Services,Clients Aids & Adaptations,01/06/2022,515.00,Closomat Limited
Bolton MBC,Adult Services,Nursing Provision,06/06/2022,"4,207.50",Crystal Hall Care Home
Bolton MBC,Adult Services,Contracted Services,05/06/2022,"1,348.00",D C S Cleaning Services
Bolton MBC,Adult Services,Contracted Services,01/06/2022,"1,781.50",Dagmar Hartshorn Psychological Services
Bolton MBC,Adult Services,Residential Provision,06/06/2022,"21,116.80",Daisy Fieldz Care Services Limited
Bolton MBC,Adult Services,Contracted Services,01/06/2022,"1,523.04",Dignity in Life Ltd#DIL Foundation
Bolton MBC,Adult Services,Contracted Services,09/06/2022,"3,404.80",Dignity in Life Ltd#DIL Foundation
Bolton MBC,Adult Services,Contracted Services,09/06/2022,"3,283.20",Dignity in Life Ltd#DIL Foundation
Bolton MBC,Adult Services,Contracted Services,09/06/2022,"3,210.24",Dignity in Life Ltd#DIL Foundation
Bolton MBC,Adult Services,Contracted Services,09/06/2022,"3,035.83",Dignity in Life Ltd#DIL Foundation
Bolton MBC,Adult Services,Contracted Services,09/06/2022,"2,381.85",Dignity in Life Ltd#DIL Foundation
Bolton MBC,Adult Services,Contracted Services,09/06/2022,"1,840.73",Dignity in Life Ltd#DIL Foundation
Bolton MBC,Adult Services,Contracted Services,09/06/2022,"1,275.29",Dignity in Life Ltd#DIL Foundation
Bolton MBC,Adult Services,Contracted Services,09/06/2022,"1,240.32",Dignity in Life Ltd#DIL Foundation
Bolton MBC,Adult Services,Contracted Services,09/06/2022,"1,020.69",Dignity in Life Ltd#DIL Foundation
Bolton MBC,Adult Services,Contracted Services,09/06/2022,948.48,Dignity in Life Ltd#DIL Foundation
Bolton MBC,Adult Services,Contracted Services,09/06/2022,608.00,Dignity in Life Ltd#DIL Foundation
Bolton MBC,Adult Services,Contracted Services,09/06/2022,601.92,Dignity in Life Ltd#DIL Foundation
Bolton MBC,Adult Services,Contracted Services,09/06/2022,583.68,Dignity in Life Ltd#DIL Foundation
Bolton MBC,Adult Services,Residential Provision,06/06/2022,"18,059.40",DIL House
Bolton MBC,Adult Services,Residential Provision,06/06/2022,"21,993.50",DIL Place
Bolton MBC,Adult Services,Clients Aids & Adaptations,01/06/2022,"5,970.00",Doro Care (UK) Limited
Bolton MBC,Adult Services,Clients Aids & Adaptations,01/06/2022,"5,760.95",Doro Care (UK) Limited
Bolton MBC,Adult Services,Clients Aids & Adaptations,01/06/2022,"4,560.00",Doro Care (UK) Limited
Bolton MBC,Adult Services,Clients Aids & Adaptations,01/06/2022,"4,500.00",Doro Care (UK) Limited
Bolton MBC,Adult Services,Clients Aids & Adaptations,01/06/2022,"3,660.00",Doro Care (UK) Limited
Bolton MBC,Adult Services,Clients Aids & Adaptations,01/06/2022,"2,870.00",Doro Care (UK) Limited
Bolton MBC,Adult Services,Clients Aids & Adaptations,01/06/2022,"1,840.00",Doro Care (UK) Limited
Bolton MBC,Adult Services,Clients Aids & Adaptations,01/06/2022,920.00,Doro Care (UK) Limited
Bolton MBC,Adult Services,Clients Aids & Adaptations,01/06/2022,660.00,Doro Care (UK) Limited
Bolton MBC,Adult Services,Clients Aids & Adaptations,01/06/2022,596.00,Doro Care (UK) Limited
Bolton MBC,Adult Services,Clients Aids & Adaptations,10/06/2022,"2,760.00",Doro Care (UK) Limited
Bolton MBC,Adult Services,Clients Aids & Adaptations,10/06/2022,860.00,Doro Care (UK) Limited
Bolton MBC,Adult Services,Clients Aids & Adaptations,10/06/2022,602.00,Doro Care (UK) Limited
Bolton MBC,Adult Services,Clients Aids & Adaptations,24/06/2022,"1,050.00",Doro Care (UK) Limited
Bolton MBC,Adult Services,Clients Aids & Adaptations,24/06/2022,700.00,Doro Care (UK) Limited
Bolton MBC,Adult Services,Clients Aids & Adaptations,24/06/2022,"2,445.00",Drive Devilbiss Healthcare Limited
Bolton MBC,Adult Services,Clients Aids & Adaptations,14/06/2022,"1,688.70",Drive DeVilbiss Sidhil Limited
Bolton MBC,Adult Services,Clients Aids & Adaptations,15/06/2022,"1,593.70",Drive DeVilbiss Sidhil Limited
Bolton MBC,Adult Services,Clients Aids & Adaptations,08/06/2022,"1,784.80",Easylink UK#Medpage Limited
Bolton MBC,Adult Services,Clients Aids & Adaptations,14/06/2022,669.20,Easylink UK#Medpage Limited
Bolton MBC,Adult Services,Clients Aids & Adaptations,14/06/2022,607.00,Easylink UK#Medpage Limited
Bolton MBC,Adult Services,Clients Aids & Adaptations,17/06/2022,"1,619.80",Easylink UK#Medpage Limited
Bolton MBC,Adult Services,Contracted Services,01/06/2022,917.28,Eden Care Support Services Ltd
Bolton MBC,Adult Services,Contracted Services,01/06/2022,898.56,Eden Care Support Services Ltd
Bolton MBC,Adult Services,Contracted Services,01/06/2022,792.48,Eden Care Support Services Ltd
Bolton MBC,Adult Services,Contracted Services,01/06/2022,514.80,Eden Care Support Services Ltd
Bolton MBC,Adult Services,Contracted Services,13/06/2022,917.28,Eden Care Support Services Ltd
Bolton MBC,Adult Services,Contracted Services,13/06/2022,898.56,Eden Care Support Services Ltd
Bolton MBC,Adult Services,Contracted Services,13/06/2022,792.48,Eden Care Support Services Ltd
Bolton MBC,Adult Services,Contracted Services,13/06/2022,514.80,Eden Care Support Services Ltd
Bolton MBC,Adult Services,Contracted Services,27/06/2022,917.28,Eden Care Support Services Ltd
Bolton MBC,Adult Services,Contracted Services,27/06/2022,898.56,Eden Care Support Services Ltd
Bolton MBC,Adult Services,Contracted Services,27/06/2022,786.24,Eden Care Support Services Ltd
Bolton MBC,Adult Services,Contracted Services,27/06/2022,528.84,Eden Care Support Services Ltd
Bolton MBC,Adult Services,Contracted Services,27/06/2022,514.80,Eden Care Support Services Ltd
Bolton MBC,Adult Services,Computer Software Licences,30/06/2022,"20,162.50",Elcom Systems Limited
Bolton MBC,Adult Services,Residential Provision,06/06/2022,"2,742.00",Elizabeth House
Bolton MBC,Adult Services,Residential Provision,06/06/2022,"11,797.15",Ellershaw House Ltd
Bolton MBC,Adult Services,Clients Aids & Adaptations,08/06/2022,764.00,Enable Access Limited
Bolton MBC,Adult Services,Residential Provision,06/06/2022,"2,814.50",Epworth Grange
Bolton MBC,Adult Services,Contracted Services,30/06/2022,"3,353.88",Equilibrium Healthcare Limited
Bolton MBC,Adult Services,Contracted Services,01/06/2022,769.59,FCNA Homecare (First Call Nursing Agency)
Bolton MBC,Adult Services,Contracted Services,01/06/2022,766.56,FCNA Homecare (First Call Nursing Agency)
Bolton MBC,Adult Services,Contracted Services,01/06/2022,707.60,FCNA Homecare (First Call Nursing Agency)
Bolton MBC,Adult Services,Residential Provision,06/06/2022,"6,617.30",Fosse Bank Court
Bolton MBC,Adult Services,Residential Provision,06/06/2022,"6,085.00",Four Seasons Care Home
Bolton MBC,Adult Services,Nursing Provision,06/06/2022,"2,928.57",Four Seasons Care Home
Bolton MBC,Adult Services,Residential Provision,07/06/2022,736.71,Four Seasons Nursing Home
Bolton MBC,Adult Services,Clients Aids & Adaptations,30/06/2022,"2,717.60",Frontier Therapeutics
Bolton MBC,Adult Services,Clients Aids & Adaptations,06/06/2022,740.00,G & S Smirthwaite Limited#Smirthwaite Ltd
Bolton MBC,Adult Services,Clients Aids & Adaptations,07/06/2022,"1,456.00",G & S Smirthwaite Limited#Smirthwaite Ltd
Bolton MBC,Adult Services,Nursing Provision,06/06/2022,"3,072.15",Gillibrand Hall Nursing Home
Bolton MBC,Adult Services,Residential Provision,06/06/2022,"2,865.00",Glenbank Care Home Ltd
Bolton MBC,Adult Services,Clients Aids & Adaptations,16/06/2022,675.00,GN Healthcare
Bolton MBC,Adult Services,Residential Provision,06/06/2022,"2,865.00",Grange Lea Residential Care Home Limited
Bolton MBC,Adult Services,Other Clients Services,01/06/2022,"2,558.89",Greater Manchester Mental Health NHS Foundation Trust
Bolton MBC,Adult Services,Other Clients Services,01/06/2022,"2,026.76",Greater Manchester Mental Health NHS Foundation Trust
Bolton MBC,Adult Services,Other Clients Services,21/06/2022,"2,569.65",Greater Manchester Mental Health NHS Foundation Trust
Bolton MBC,Adult Services,Other Clients Services,21/06/2022,"2,038.40",Greater Manchester Mental Health NHS Foundation Trust
Bolton MBC,Adult Services,Other Clients Services,21/06/2022,"2,034.23",Greater Manchester Mental Health NHS Foundation Trust
Bolton MBC,Adult Services,Other Clients Services,21/06/2022,"1,732.96",Greater Manchester Mental Health NHS Foundation Trust
Bolton MBC,Adult Services,Other Clients Services,21/06/2022,799.04,Greater Manchester Mental Health NHS Foundation Trust
Bolton MBC,Adult Services,Other Clients Services,22/06/2022,728.06,Greater Manchester Mental Health NHS Foundation Trust
Bolton MBC,Adult Services,Residential Provision,06/06/2022,"20,423.60",Hartington House
Bolton MBC,Adult Services,Clients Aids & Adaptations,15/06/2022,883.80,Harvest Healthcare Limited
Bolton MBC,Adult Services,Clients Aids & Adaptations,15/06/2022,649.50,Harvest Healthcare Limited
Bolton MBC,Adult Services,Clients Aids & Adaptations,20/06/2022,"1,050.00",Harvest Healthcare Limited
Bolton MBC,Adult Services,Clients Aids & Adaptations,24/06/2022,"1,518.00",Harvest Healthcare Limited
Bolton MBC,Adult Services,Clients Aids & Adaptations,28/06/2022,557.31,Harvest Healthcare Limited
Bolton MBC,Adult Services,Clients Aids & Adaptations,29/06/2022,"1,300.39",Harvest Healthcare Limited
Bolton MBC,Adult Services,Residential Provision,06/06/2022,"8,724.43",Hazelbrook Christian Nursing Home
Bolton MBC,Adult Services,Residential Provision,06/06/2022,"28,962.10",Heaton Vale
Bolton MBC,Adult Services,Clients Aids & Adaptations,01/06/2022,603.80,Helping Hand Co (Ledbury) Ltd
Bolton MBC,Adult Services,Residential Provision,06/06/2022,"9,392.50",HF Trust Limited Honeysuckle House
Bolton MBC,Adult Services,Residential Provision,06/06/2022,"32,568.00",Hollands Nursing Home
Bolton MBC,Adult Services,Residential Provision,06/06/2022,"9,660.00",Hollands Nursing Home
Bolton MBC,Adult Services,Residential Provision,06/06/2022,"9,016.00",Hollands Nursing Home
Bolton MBC,Adult Services,Contracted Services,10/06/2022,"12,101.86",Homecare For You Ltd#BLACKBURN
Bolton MBC,Adult Services,Contracted Services,10/06/2022,"7,200.33",Homecare For You Ltd#BLACKBURN
Bolton MBC,Adult Services,Contracted Services,10/06/2022,"1,199.33",Homecare For You Ltd#BLACKBURN
Bolton MBC,Adult Services,Contracted Services,06/06/2022,645.84,Homecare Team Limited
Bolton MBC,Adult Services,Contracted Services,06/06/2022,524.16,Homecare Team Limited
Bolton MBC,Adult Services,Residential Provision,06/06/2022,"16,121.65",Hyde Lea
Bolton MBC,Adult Services,Contracted Services,01/06/2022,"1,783.60",ICRIT Healthcare#Limited
Bolton MBC,Adult Services,Contracted Services,01/06/2022,"1,419.60",ICRIT Healthcare#Limited
Bolton MBC,Adult Services,Contracted Services,01/06/2022,"1,310.40",ICRIT Healthcare#Limited
Bolton MBC,Adult Services,Contracted Services,01/06/2022,"1,164.80",ICRIT Healthcare#Limited
Bolton MBC,Adult Services,Contracted Services,01/06/2022,885.98,ICRIT Healthcare#Limited
Bolton MBC,Adult Services,Contracted Services,01/06/2022,728.00,ICRIT Healthcare#Limited
Bolton MBC,Adult Services,Contracted Services,01/06/2022,709.80,ICRIT Healthcare#Limited
Bolton MBC,Adult Services,Other Agency/Contracted Services,17/06/2022,"4,060.00",Interpreting & Translating Services
Bolton MBC,Adult Services,Other Agency/Contracted Services,17/06/2022,"3,360.00",Interpreting & Translating Services
Bolton MBC,Adult Services,Clients Aids & Adaptations,01/06/2022,"2,550.00",James Leckey Design Limited#Vida Global
Bolton MBC,Adult Services,Clients Aids & Adaptations,01/06/2022,"2,550.00",James Leckey Design Limited#Vida Global
Bolton MBC,Adult Services,Clients Aids & Adaptations,08/06/2022,"3,147.00",James Leckey Design Limited#Vida Global
Bolton MBC,Adult Services,Clients Aids & Adaptations,21/06/2022,"2,938.00",James Leckey Design Limited#Vida Global
Bolton MBC,Adult Services,Clients Aids & Adaptations,23/06/2022,731.00,James Leckey Design Limited#Vida Global
Bolton MBC,Adult Services,Clients Aids & Adaptations,13/06/2022,549.00,Jenx Limited#Jiraffe
Bolton MBC,Adult Services,Clients Aids & Adaptations,20/06/2022,"2,378.00",Jenx Limited#Jiraffe
Bolton MBC,Adult Services,Contracted Services,08/06/2022,"22,416.87",Jewel Home Support Ltd
Bolton MBC,Adult Services,Contracted Services,08/06/2022,"4,709.32",Jewel Home Support Ltd
Bolton MBC,Adult Services,Contracted Services,08/06/2022,"3,384.58",Jewel Home Support Ltd
Bolton MBC,Adult Services,Contracted Services,16/06/2022,"29,908.16",Keymen Associates Ltd#Mayday Homecare
Bolton MBC,Adult Services,Contracted Services,16/06/2022,"14,058.41",Keymen Associates Ltd#Mayday Homecare
Bolton MBC,Adult Services,Contracted Services,16/06/2022,"1,069.57",Keymen Associates Ltd#Mayday Homecare
Bolton MBC,Adult Services,Residential Provision,06/06/2022,"40,456.90",Kingarth
Bolton MBC,Adult Services,Contracted Services,08/06/2022,"5,500.56",Kingfisher House
Bolton MBC,Adult Services,Residential Provision,06/06/2022,"6,510.00",Knightswood Residential Home
Bolton MBC,Adult Services,Contracted Services,01/06/2022,"2,500.00",Kong Worldwide Limited
Bolton MBC,Adult Services,Nursing Provision,06/06/2022,"11,496.35",Lakeland View Care Centre
Bolton MBC,Adult Services,Nursing Provision,06/06/2022,"4,975.00",Lakelands Lodge
Bolton MBC,Adult Services,Clients Aids & Adaptations,29/06/2022,"1,539.36",Langham
Bolton MBC,Adult Services,Residential Provision,06/06/2022,"1,218.00",Lever Edge Care Home
Bolton MBC,Adult Services,Residential Provision,07/06/2022,"15,035.00",Lever Edge Care Home
Bolton MBC,Adult Services,Contracted Services,01/06/2022,"3,007.32",Limes Place
Bolton MBC,Adult Services,Contracted Services,22/06/2022,"3,096.70",Limes Place
Bolton MBC,Adult Services,Residential Provision,06/06/2022,"5,730.00",Lyngate Residential Home#Lyngate Healthcare Ltd
Bolton MBC,Adult Services,Contracted Services,01/06/2022,748.80,Making Space
Bolton MBC,Adult Services,Clients Aids & Adaptations,28/06/2022,620.21,Mangar International Ltd
Bolton MBC,Adult Services,Residential Provision,06/06/2022,"20,144.36",Max Potential UK Limited
Bolton MBC,Adult Services,Residential Provision,06/06/2022,"19,950.00",Max Potential UK Limited
Bolton MBC,Adult Services,Residential Provision,06/06/2022,"9,950.35",Max Potential UK Limited
Bolton MBC,Adult Services,Residential Provision,06/06/2022,"4,700.35",Max Potential UK Limited
Bolton MBC,Adult Services,Residential Provision,06/06/2022,"9,400.70",Max Potential UK Limited-Glen Avenue
Bolton MBC,Adult Services,Nursing Provision,06/06/2022,"5,730.00",Meadowbank House
Bolton MBC,Adult Services,Residential Provision,06/06/2022,"2,865.00",Meadowbank House
Bolton MBC,Adult Services,Nursing Provision,06/06/2022,654.86,Meadowbank House
Bolton MBC,Adult Services,Clients Aids & Adaptations,01/06/2022,"2,115.75",Medstrom Limited
Bolton MBC,Adult Services,Residential Provision,06/06/2022,"28,354.50",Mencap
Bolton MBC,Adult Services,Vol Assoc Grants - General,01/06/2022,"3,272.00",MHIST
Bolton MBC,Adult Services,Contracted Services,28/06/2022,"3,272.00",MHIST
Bolton MBC,Adult Services,Nursing Provision,06/06/2022,"28,177.29",Mill View Care Home#Advinia
Bolton MBC,Adult Services,Residential Provision,06/06/2022,"17,873.29",Mill View Care Home#Advinia
Bolton MBC,Adult Services,Residential Provision,06/06/2022,"18,855.65",Millbrook Way - Heathwaite
Bolton MBC,Adult Services,Residential Provision,06/06/2022,"25,392.80",Morden Grange
Bolton MBC,Adult Services,Nursing Provision,06/06/2022,"8,256.85",Morden Grange
Bolton MBC,Adult Services,Nursing Provision,06/06/2022,"4,640.70",Moston Grange Nursing Home
Bolton MBC,Adult Services,Contracted Services,01/06/2022,711.36,My Care My Home Limited
Bolton MBC,Adult Services,Contracted Services,01/06/2022,"1,174.40",National Care Group
Bolton MBC,Adult Services,Contracted Services,01/06/2022,"1,125.60",National Care Group
Bolton MBC,Adult Services,Contracted Services,01/06/2022,"1,125.60",National Care Group
Bolton MBC,Adult Services,Contracted Services,01/06/2022,587.20,National Care Group
Bolton MBC,Adult Services,Contracted Services,01/06/2022,562.80,National Care Group
Bolton MBC,Adult Services,Contracted Services,01/06/2022,562.80,National Care Group
Bolton MBC,Adult Services,Contracted Services,06/06/2022,"1,174.40",National Care Group
Bolton MBC,Adult Services,Clients Aids & Adaptations,01/06/2022,"1,640.00",Neater Solutions Ltd
Bolton MBC,Adult Services,Residential Provision,06/06/2022,"24,946.30",Next Steps The Elms
Bolton MBC,Adult Services,Other Fees,01/06/2022,"1,500.00",North West Employers
Bolton MBC,Adult Services,Clients Aids & Adaptations,09/06/2022,"1,346.40",NRS Healthcare#Nottingham Rehab Limited
Bolton MBC,Adult Services,Clients Aids & Adaptations,22/06/2022,"1,566.00",NRS Healthcare#Nottingham Rehab Limited
Bolton MBC,Adult Services,Clients Aids & Adaptations,22/06/2022,974.00,NRS Healthcare#Nottingham Rehab Limited
Bolton MBC,Adult Services,Clients Aids & Adaptations,23/06/2022,581.60,NRS Healthcare#Nottingham Rehab Limited
Bolton MBC,Adult Services,Clients Aids & Adaptations,16/06/2022,716.00,NYMAS#North Yorkshire Mobility & Safety#Barwood
Bolton MBC,Adult Services,Contracted Services,07/06/2022,"2,822.40",Orchid Home Care Support
Bolton MBC,Adult Services,Contracted Services,07/06/2022,"2,469.60",Orchid Home Care Support
Bolton MBC,Adult Services,Contracted Services,07/06/2022,"1,846.32",Orchid Home Care Support
Bolton MBC,Adult Services,Contracted Services,07/06/2022,"1,728.72",Orchid Home Care Support
Bolton MBC,Adult Services,Contracted Services,07/06/2022,"1,728.72",Orchid Home Care Support
Bolton MBC,Adult Services,Contracted Services,07/06/2022,"1,680.21",Orchid Home Care Support
Bolton MBC,Adult Services,Contracted Services,07/06/2022,"1,587.60",Orchid Home Care Support
Bolton MBC,Adult Services,Contracted Services,07/06/2022,776.16,Orchid Home Care Support
Bolton MBC,Adult Services,Contracted Services,07/06/2022,617.40,Orchid Home Care Support
Bolton MBC,Adult Services,Contracted Services,07/06/2022,611.52,Orchid Home Care Support
Bolton MBC,Adult Services,Contracted Services,07/06/2022,599.76,Orchid Home Care Support
Bolton MBC,Adult Services,Contracted Services,07/06/2022,511.56,Orchid Home Care Support
Bolton MBC,Adult Services,Residential Provision,06/06/2022,"3,220.00",Orchid Woodlands Healthcare Limited
Bolton MBC,Adult Services,Clients Aids & Adaptations,22/06/2022,"2,628.00",OSKA#Oska Care Limited
Bolton MBC,Adult Services,Contracted Services,01/06/2022,"1,067.66",P & R Health Care Solutions
Bolton MBC,Adult Services,Contracted Services,05/06/2022,706.68,P & R Health Care Solutions
Bolton MBC,Adult Services,Contracted Services,06/06/2022,"1,221.16",P & R Health Care Solutions
Bolton MBC,Adult Services,Residential Provision,06/06/2022,"12,135.00",Parkview Nursing & Residential Home
Bolton MBC,Adult Services,Residential Provision,06/06/2022,"7,644.00",Passmonds House
Bolton MBC,Adult Services,Contracted Services,25/06/2022,"11,728.08",Premier Care Limited
Bolton MBC,Adult Services,Contracted Services,25/06/2022,848.26,Premier Care Limited
Bolton MBC,Adult Services,Contracted Services,25/06/2022,827.09,Premier Care Limited
Bolton MBC,Adult Services,Clients Aids & Adaptations,01/06/2022,"1,533.20",Prism Medical UK
Bolton MBC,Adult Services,Clients Aids & Adaptations,01/06/2022,"1,209.57",Prism Medical UK
Bolton MBC,Adult Services,Clients Aids & Adaptations,01/06/2022,"1,187.50",Prism Medical UK
Bolton MBC,Adult Services,Clients Aids & Adaptations,06/06/2022,"1,994.42",Prism Medical UK
Bolton MBC,Adult Services,Clients Aids & Adaptations,07/06/2022,"1,275.92",Prism Medical UK
Bolton MBC,Adult Services,Clients Aids & Adaptations,07/06/2022,"1,039.47",Prism Medical UK
Bolton MBC,Adult Services,Clients Aids & Adaptations,07/06/2022,"1,028.11",Prism Medical UK
Bolton MBC,Adult Services,Clients Aids & Adaptations,08/06/2022,"1,519.20",Prism Medical UK
Bolton MBC,Adult Services,Clients Aids & Adaptations,09/06/2022,"1,515.62",Prism Medical UK
Bolton MBC,Adult Services,Clients Aids & Adaptations,23/06/2022,"1,402.20",Prism Medical UK
Bolton MBC,Adult Services,Clients Aids & Adaptations,24/06/2022,"1,273.98",Prism Medical UK
Bolton MBC,Adult Services,Clients Aids & Adaptations,27/06/2022,823.60,Prism Medical UK
Bolton MBC,Adult Services,Clients Aids & Adaptations,29/06/2022,"1,012.80",Prism Medical UK
Bolton MBC,Adult Services,Clients Aids & Adaptations,30/06/2022,500.75,Prism Medical UK
Bolton MBC,Adult Services,Residential Provision,06/06/2022,"18,883.90",Queens Park View#Intelligent Care
Bolton MBC,Adult Services,Clients Aids & Adaptations,23/06/2022,695.50,Quest 88 Limited
Bolton MBC,Adult Services,Clients Aids & Adaptations,28/06/2022,965.50,Quest 88 Limited
Bolton MBC,Adult Services,Nursing Provision,06/06/2022,"7,554.30",Randomlight Ltd#Heightside House
Bolton MBC,Adult Services,Residential Provision,06/06/2022,"4,288.40",Randomlight Ltd#Heightside House
Bolton MBC,Adult Services,Contracted Services,17/06/2022,"6,368.00",Recovery Support Ltd
Bolton MBC,Adult Services,Contracted Services,17/06/2022,"3,182.19",Recovery Support Ltd
Bolton MBC,Adult Services,Contracted Services,17/06/2022,"2,776.78",Recovery Support Ltd
Bolton MBC,Adult Services,Contracted Services,17/06/2022,"1,972.26",Recovery Support Ltd
Bolton MBC,Adult Services,Contracted Services,17/06/2022,"1,957.49",Recovery Support Ltd
Bolton MBC,Adult Services,Contracted Services,17/06/2022,"1,695.83",Recovery Support Ltd
Bolton MBC,Adult Services,Contracted Services,17/06/2022,"1,636.59",Recovery Support Ltd
Bolton MBC,Adult Services,Contracted Services,17/06/2022,"1,592.29",Recovery Support Ltd
Bolton MBC,Adult Services,Contracted Services,17/06/2022,"1,592.00",Recovery Support Ltd
Bolton MBC,Adult Services,Contracted Services,17/06/2022,"1,555.12",Recovery Support Ltd
Bolton MBC,Adult Services,Contracted Services,17/06/2022,"1,445.81",Recovery Support Ltd
Bolton MBC,Adult Services,Contracted Services,17/06/2022,"1,431.54",Recovery Support Ltd
Bolton MBC,Adult Services,Contracted Services,17/06/2022,999.84,Recovery Support Ltd
Bolton MBC,Adult Services,Contracted Services,17/06/2022,913.56,Recovery Support Ltd
Bolton MBC,Adult Services,Contracted Services,17/06/2022,851.46,Recovery Support Ltd
Bolton MBC,Adult Services,Contracted Services,17/06/2022,849.92,Recovery Support Ltd
Bolton MBC,Adult Services,Contracted Services,17/06/2022,806.97,Recovery Support Ltd
Bolton MBC,Adult Services,Contracted Services,17/06/2022,740.68,Recovery Support Ltd
Bolton MBC,Adult Services,Contracted Services,17/06/2022,736.05,Recovery Support Ltd
Bolton MBC,Adult Services,Contracted Services,17/06/2022,728.06,Recovery Support Ltd
Bolton MBC,Adult Services,Contracted Services,17/06/2022,697.44,Recovery Support Ltd
Bolton MBC,Adult Services,Contracted Services,17/06/2022,641.68,Recovery Support Ltd
Bolton MBC,Adult Services,Contracted Services,17/06/2022,629.47,Recovery Support Ltd
Bolton MBC,Adult Services,Contracted Services,17/06/2022,620.09,Recovery Support Ltd
Bolton MBC,Adult Services,Contracted Services,17/06/2022,601.90,Recovery Support Ltd
Bolton MBC,Adult Services,Contracted Services,17/06/2022,592.64,Recovery Support Ltd
Bolton MBC,Adult Services,Contracted Services,17/06/2022,592.32,Recovery Support Ltd
Bolton MBC,Adult Services,Contracted Services,17/06/2022,581.52,Recovery Support Ltd
Bolton MBC,Adult Services,Contracted Services,17/06/2022,518.56,Recovery Support Ltd
Bolton MBC,Adult Services,Contracted Services,17/06/2022,518.56,Recovery Support Ltd
Bolton MBC,Adult Services,Contracted Services,17/06/2022,518.48,Recovery Support Ltd
Bolton MBC,Adult Services,Contracted Services,17/06/2022,518.44,Recovery Support Ltd
Bolton MBC,Adult Services,Contracted Services,17/06/2022,515.46,Recovery Support Ltd
Bolton MBC,Adult Services,Contracted Services,17/06/2022,509.30,Recovery Support Ltd
Bolton MBC,Adult Services,Contracted Services,17/06/2022,506.00,Recovery Support Ltd
Bolton MBC,Adult Services,Contracted Services,10/06/2022,"4,177.72",Red Lion Appartments
Bolton MBC,Adult Services,Contracted Services,10/06/2022,"3,749.24",Red Lion Appartments
Bolton MBC,Adult Services,Contracted Services,10/06/2022,"3,749.24",Red Lion Appartments
Bolton MBC,Adult Services,Contracted Services,10/06/2022,"3,749.24",Red Lion Appartments
Bolton MBC,Adult Services,Contracted Services,10/06/2022,"3,700.00",Red Lion Appartments
Bolton MBC,Adult Services,Agency Staff - Other,01/06/2022,"1,396.31",Reed#Reed Specialist Recruitment Limited
Bolton MBC,Adult Services,Agency Staff - Other,01/06/2022,"1,382.82",Reed#Reed Specialist Recruitment Limited
Bolton MBC,Adult Services,Agency Staff - Other,01/06/2022,"1,133.68",Reed#Reed Specialist Recruitment Limited
Bolton MBC,Adult Services,Agency Staff - Other,03/06/2022,"1,320.83",Reed#Reed Specialist Recruitment Limited
Bolton MBC,Adult Services,Agency Staff - Other,03/06/2022,"1,151.85",Reed#Reed Specialist Recruitment Limited
Bolton MBC,Adult Services,Agency Staff - Other,03/06/2022,736.43,Reed#Reed Specialist Recruitment Limited
Bolton MBC,Adult Services,Agency Staff - Other,03/06/2022,541.92,Reed#Reed Specialist Recruitment Limited
Bolton MBC,Adult Services,Agency Staff - Other,10/06/2022,"1,406.55",Reed#Reed Specialist Recruitment Limited
Bolton MBC,Adult Services,Agency Staff - Other,10/06/2022,"1,406.55",Reed#Reed Specialist Recruitment Limited
Bolton MBC,Adult Services,Agency Staff - Other,10/06/2022,"1,396.31",Reed#Reed Specialist Recruitment Limited
Bolton MBC,Adult Services,Agency Staff - Other,10/06/2022,934.33,Reed#Reed Specialist Recruitment Limited
Bolton MBC,Adult Services,Agency Staff - Other,10/06/2022,691.11,Reed#Reed Specialist Recruitment Limited
Bolton MBC,Adult Services,Agency Staff - Other,17/06/2022,"1,406.55",Reed#Reed Specialist Recruitment Limited
Bolton MBC,Adult Services,Agency Staff - Other,17/06/2022,"1,382.82",Reed#Reed Specialist Recruitment Limited
Bolton MBC,Adult Services,Agency Staff - Other,17/06/2022,"1,250.28",Reed#Reed Specialist Recruitment Limited
Bolton MBC,Adult Services,Agency Staff - Other,17/06/2022,"1,151.85",Reed#Reed Specialist Recruitment Limited
Bolton MBC,Adult Services,Agency Staff - Other,17/06/2022,899.56,Reed#Reed Specialist Recruitment Limited
Bolton MBC,Adult Services,Agency Staff - Other,24/06/2022,"1,406.55",Reed#Reed Specialist Recruitment Limited
Bolton MBC,Adult Services,Agency Staff - Other,24/06/2022,"1,396.31",Reed#Reed Specialist Recruitment Limited
Bolton MBC,Adult Services,Agency Staff - Other,24/06/2022,"1,396.31",Reed#Reed Specialist Recruitment Limited
Bolton MBC,Adult Services,Agency Staff - Other,24/06/2022,"1,382.82",Reed#Reed Specialist Recruitment Limited
Bolton MBC,Adult Services,Agency Staff - Other,24/06/2022,"1,151.85",Reed#Reed Specialist Recruitment Limited
Bolton MBC,Adult Services,Agency Staff - Other,24/06/2022,899.56,Reed#Reed Specialist Recruitment Limited
Bolton MBC,Adult Services,Contracted Services,29/06/2022,"1,650.00",Relphs Funeral Service#Funeralcare
Bolton MBC,Adult Services,Contracted Services,01/06/2022,"3,535.12",Right Care (NW) Limited
Bolton MBC,Adult Services,Contracted Services,01/06/2022,"2,863.10",Right Care (NW) Limited
Bolton MBC,Adult Services,Contracted Services,01/06/2022,"1,794.71",Right Care (NW) Limited
Bolton MBC,Adult Services,Contracted Services,01/06/2022,"1,583.73",Right Care (NW) Limited
Bolton MBC,Adult Services,Contracted Services,15/06/2022,"3,491.60",Right Care (NW) Limited
Bolton MBC,Adult Services,Contracted Services,15/06/2022,"2,466.43",Right Care (NW) Limited
Bolton MBC,Adult Services,Contracted Services,15/06/2022,"2,320.89",Right Care (NW) Limited
Bolton MBC,Adult Services,Contracted Services,15/06/2022,"1,464.88",Right Care (NW) Limited
Bolton MBC,Adult Services,Contracted Services,12/06/2022,"3,144.96",Rings Homecare Service Limited
Bolton MBC,Adult Services,Contracted Services,12/06/2022,"2,658.14",Rings Homecare Service Limited
Bolton MBC,Adult Services,Contracted Services,12/06/2022,"2,446.08",Rings Homecare Service Limited
Bolton MBC,Adult Services,Contracted Services,12/06/2022,"1,422.72",Rings Homecare Service Limited
Bolton MBC,Adult Services,Contracted Services,14/06/2022,"1,403.37",RNHS Ltd
Bolton MBC,Adult Services,Contracted Services,14/06/2022,634.30,RNHS Ltd
Bolton MBC,Adult Services,Day To Day Maintenance,01/06/2022,"1,356.25",Robertson Facilities Management Limited
Bolton MBC,Adult Services,Operational Equipment Rental,01/06/2022,"1,017.15",Robertson Facilities Management Limited
Bolton MBC,Adult Services,Operational Equipment Rental,01/06/2022,967.53,Robertson Facilities Management Limited
Bolton MBC,Adult Services,Planned Maintenance,01/06/2022,747.41,Robertson Facilities Management Limited
Bolton MBC,Adult Services,Planned Maintenance,01/06/2022,747.41,Robertson Facilities Management Limited
Bolton MBC,Adult Services,Residential Provision,06/06/2022,"5,904.00",Rose Court Nursing Home
Bolton MBC,Adult Services,Nursing Provision,06/06/2022,"7,525.00",Rosebridge Court
Bolton MBC,Adult Services,Contracted Services,14/06/2022,"42,905.68",Rosewood Court
Bolton MBC,Adult Services,Contracted Services,23/06/2022,"15,240.00",Rubix Care Limited
Bolton MBC,Adult Services,Contracted Services,23/06/2022,"5,700.00",Rubix Care Limited
Bolton MBC,Adult Services,Contracted Services,01/06/2022,"10,968.00",Salvere Social Enterprise CIC
Bolton MBC,Adult Services,Contracted Services,01/06/2022,"7,812.25",Salvere Social Enterprise CIC
Bolton MBC,Adult Services,Contracted Services,05/06/2022,"10,552.50",Salvere Social Enterprise CIC
Bolton MBC,Adult Services,Contracted Services,01/06/2022,880.80,Sanctuary Supported Living
Bolton MBC,Adult Services,Contracted Services,01/06/2022,844.20,Sanctuary Supported Living
Bolton MBC,Adult Services,Contracted Services,01/06/2022,844.20,Sanctuary Supported Living
Bolton MBC,Adult Services,Contracted Services,01/06/2022,844.20,Sanctuary Supported Living
Bolton MBC,Adult Services,Contracted Services,01/06/2022,814.05,Sanctuary Supported Living
Bolton MBC,Adult Services,Contracted Services,01/06/2022,616.56,Sanctuary Supported Living
Bolton MBC,Adult Services,Contracted Services,01/06/2022,590.94,Sanctuary Supported Living
Bolton MBC,Adult Services,Contracted Services,01/06/2022,590.94,Sanctuary Supported Living
Bolton MBC,Adult Services,Contracted Services,01/06/2022,587.20,Sanctuary Supported Living
Bolton MBC,Adult Services,Contracted Services,01/06/2022,562.80,Sanctuary Supported Living
Bolton MBC,Adult Services,Contracted Services,01/06/2022,562.80,Sanctuary Supported Living
Bolton MBC,Adult Services,Contracted Services,01/06/2022,562.80,Sanctuary Supported Living
Bolton MBC,Adult Services,Contracted Services,06/06/2022,880.80,Sanctuary Supported Living
Bolton MBC,Adult Services,Contracted Services,06/06/2022,616.56,Sanctuary Supported Living
Bolton MBC,Adult Services,Contracted Services,06/06/2022,587.20,Sanctuary Supported Living
Bolton MBC,Adult Services,Clients Aids & Adaptations,17/06/2022,589.00,Schuchmann LLP
Bolton MBC,Adult Services,Contracted Services,01/06/2022,"1,580.00",SEA Recruitment Services Limited
Bolton MBC,Adult Services,Contracted Services,01/06/2022,607.00,SEA Recruitment Services Limited
Bolton MBC,Adult Services,Contracted Services,01/06/2022,553.00,SEA Recruitment Services Limited
Bolton MBC,Adult Services,Contracted Services,06/06/2022,553.00,SEA Recruitment Services Limited
Bolton MBC,Adult Services,Residential Provision,06/06/2022,"19,748.30",Segal Gardens
Bolton MBC,Adult Services,Clients Aids & Adaptations,01/06/2022,585.00,Select Medical Limited
Bolton MBC,Adult Services,Clients Aids & Adaptations,28/06/2022,"2,500.00",Select Medical Limited
Bolton MBC,Adult Services,Contracted Services,08/06/2022,"11,065.07",Seva Line
Bolton MBC,Adult Services,Residential Provision,07/06/2022,"2,865.00",Sevaline Care Homes Ltd T/A Glenhomes Care Home
Bolton MBC,Adult Services,Nursing Provision,06/06/2022,"12,170.00",Shannon Court Care Home Limited
Bolton MBC,Adult Services,Clients Aids & Adaptations,30/06/2022,"2,110.32",Simply Moving & Sleeping Limited
Bolton MBC,Adult Services,Clients Aids & Adaptations,13/06/2022,943.00,SimplyMed Limited
Bolton MBC,Adult Services,Clients Aids & Adaptations,21/06/2022,"1,565.00",Smitcare Limited
Bolton MBC,Adult Services,Residential Provision,06/06/2022,"17,449.90",Somerset House
Bolton MBC,Adult Services,Residential Provision,06/06/2022,"2,865.00",Southlands Residential Home#Southlands
Bolton MBC,Adult Services,Contracted Services,01/06/2022,"1,572.48",Spring Healthcare Limited
Bolton MBC,Adult Services,Nursing Provision,06/06/2022,"9,660.00",St Catherines Care Home
Bolton MBC,Adult Services,Residential Provision,06/06/2022,"2,865.00",St Catherines Care Home
Bolton MBC,Adult Services,Residential Provision,06/06/2022,"6,868.25",Stanley Grange#1
Bolton MBC,Adult Services,Nursing Provision,06/06/2022,"4,034.40",Stocks Hall Care Homes Ltd#St Helens
Bolton MBC,Adult Services,Clients Aids & Adaptations,17/06/2022,"1,824.00",Sumed International (UK) Limited
Bolton MBC,Adult Services,Clients Aids & Adaptations,17/06/2022,"1,042.00",Sumed International (UK) Limited
Bolton MBC,Adult Services,Contracted Services,24/06/2022,"3,115.63",Supported Steps CIC
Bolton MBC,Adult Services,Contracted Services,24/06/2022,758.79,Supported Steps CIC
Bolton MBC,Adult Services,Contracted Services,24/06/2022,635.54,Supported Steps CIC
Bolton MBC,Adult Services,Contracted Services,29/06/2022,"1,443.62",Supported Steps CIC
Bolton MBC,Adult Services,Contracted Services,29/06/2022,802.78,Supported Steps CIC
Bolton MBC,Adult Services,Contracted Services,29/06/2022,720.10,Supported Steps CIC
Bolton MBC,Adult Services,Contracted Services,13/06/2022,"1,238.85",SureCare Bolton#Sakinas Healthcare Limited
Bolton MBC,Adult Services,Contracted Services,13/06/2022,"1,051.37",SureCare Bolton#Sakinas Healthcare Limited
Bolton MBC,Adult Services,Contracted Services,17/06/2022,"16,758.92",SureCare Bolton#Sakinas Healthcare Limited
Bolton MBC,Adult Services,Contracted Services,17/06/2022,"12,947.38",SureCare Bolton#Sakinas Healthcare Limited
Bolton MBC,Adult Services,Contracted Services,17/06/2022,"3,602.66",SureCare Bolton#Sakinas Healthcare Limited
Bolton MBC,Adult Services,Residential Provision,06/06/2022,"8,090.30",Take a Break with Choices
Bolton MBC,Adult Services,Residential Provision,06/06/2022,"2,889.50",The Brandles
Bolton MBC,Adult Services,Residential Provision,06/06/2022,"2,128.29",The Bungalow Residential Home
Bolton MBC,Adult Services,Residential Provision,07/06/2022,"3,155.05",The Bungalow Residential Home
Bolton MBC,Adult Services,Residential Provision,06/06/2022,"2,865.00",The Clough Residential Home
Bolton MBC,Adult Services,Residential Provision,06/06/2022,"15,983.25",The David Lewis Centre
Bolton MBC,Adult Services,Clients Aids & Adaptations,08/06/2022,"4,350.00",The Key Safe Company#Supra UK Ltd
Bolton MBC,Adult Services,Contracted Services,08/06/2022,"6,860.26",The Local Care Company (Bolton) Limited
Bolton MBC,Adult Services,Contracted Services,08/06/2022,532.28,The Local Care Company (Bolton) Limited
Bolton MBC,Adult Services,Residential Provision,06/06/2022,"7,638.35",The Lodge Buckshaw Retirement Village#The Lodge
Bolton MBC,Adult Services,Residential Provision,06/06/2022,"15,716.25",The Meadows
Bolton MBC,Adult Services,Clients Aids & Adaptations,24/06/2022,937.10,Tom Gallagher Limited
Bolton MBC,Adult Services,Clients Aids & Adaptations,24/06/2022,782.90,Tom Gallagher Limited
Bolton MBC,Adult Services,Contracted Services,16/06/2022,719.04,Trafalgar Court
Bolton MBC,Adult Services,Nursing Provision,06/06/2022,"104,075.25",Vale House
Bolton MBC,Adult Services,Residential Provision,06/06/2022,"66,282.05",Westmead
Bolton MBC,Adult Services,Contracted Services,20/06/2022,"7,373.17",Westwood Homecare (North West) Limited
Bolton MBC,Adult Services,Residential Provision,06/06/2022,"2,865.00",Wingates Residential Home
Bolton MBC,Adult Services,Residential Provision,06/06/2022,"2,865.00",Withins Residential Home
Bolton MBC,Adult Services,Residential Provision,06/06/2022,"2,865.00",Withins Residential Home
Bolton MBC,Adult Services,Residential Provision,07/06/2022,"15,325.00",Withins Residential Home
Bolton MBC,Adult Services,Residential Provision,06/06/2022,"6,440.00",Woodlands Care Home
Bolton MBC,Adult Services,Contracted Services,01/06/2022,"19,490.52",Wyresdale House
Bolton MBC,Adult Services,Contracted Services,01/06/2022,"16,089.07",Wyresdale House
Bolton MBC,Adult Services,Contracted Services,01/06/2022,949.56,Yasnad Ltd t/a Bluebird Care Bury
Bolton MBC,Adult Services,Contracted Services,14/06/2022,"1,049.60",Yasnad Ltd t/a Bluebird Care Bury
Bolton MBC,Adult Services,Contracted Services,27/06/2022,949.56,Yasnad Ltd t/a Bluebird Care Bury
Bolton MBC,Chief Executives,Agilisys - Managed Service,01/06/2022,"294,168.70",Agilisys Limited
Bolton MBC,Chief Executives,Computer Software,01/06/2022,"9,022.95",Agilisys Limited
Bolton MBC,Chief Executives,Computer Software,01/06/2022,"5,680.00",Agilisys Limited
Bolton MBC,Chief Executives,Computer Software,01/06/2022,"4,970.00",Agilisys Limited
Bolton MBC,Chief Executives,Telephones -Direct Rental,14/06/2022,"2,240.99",Agilisys Limited
Bolton MBC,Chief Executives,Telephones -Direct Rental,14/06/2022,"2,176.52",Agilisys Limited
Bolton MBC,Chief Executives,Computer Consumables,20/06/2022,"58,047.01",Agilisys Limited
Bolton MBC,Chief Executives,Computer Maintenance,21/06/2022,"19,780.00",Agilisys Limited
Bolton MBC,Chief Executives,Telephones -Direct Rental,21/06/2022,"12,144.51",Agilisys Limited
Bolton MBC,Chief Executives,Telephones -Direct Rental,21/06/2022,"4,691.15",Agilisys Limited
Bolton MBC,Chief Executives,ICT Security,23/06/2022,"5,670.03",Agilisys Limited
Bolton MBC,Chief Executives,Computer Software,30/06/2022,"43,111.20",Agilisys Limited
Bolton MBC,Chief Executives,Computer Software,30/06/2022,"1,968.32",Agilisys Limited
Bolton MBC,Chief Executives,Information and Communication Technology,27/06/2022,"1,551.70",Allied Publicity Services (Manchester) Limited t/a APS Group
Bolton MBC,Chief Executives,Security Cash Collection,01/06/2022,"4,412.25",Allpay.net Limited
Bolton MBC,Chief Executives,Other Fees,01/06/2022,"4,282.98",Allpay.net Limited
Bolton MBC,Chief Executives,Security Cash Collection,01/06/2022,"4,159.13",Allpay.net Limited
Bolton MBC,Chief Executives,Security Cash Collection,01/06/2022,"2,855.76",Allpay.net Limited
Bolton MBC,Chief Executives,Security Cash Collection,01/06/2022,"2,331.37",Allpay.net Limited
Bolton MBC,Chief Executives,Security Cash Collection,01/06/2022,"2,286.88",Allpay.net Limited
Bolton MBC,Chief Executives,Security Cash Collection,01/06/2022,"1,415.84",Allpay.net Limited
Bolton MBC,Chief Executives,Security Cash Collection,01/06/2022,673.88,Allpay.net Limited
Bolton MBC,Chief Executives,Security Cash Collection,01/06/2022,653.06,Allpay.net Limited
Bolton MBC,Chief Executives,Other Fees,01/06/2022,578.96,Allpay.net Limited
Bolton MBC,Chief Executives,Other Fees,01/06/2022,531.26,Allpay.net Limited
Bolton MBC,Chief Executives,Security Cash Collection,01/06/2022,520.53,Allpay.net Limited
Bolton MBC,Chief Executives,Photocopying Lease/Maintenance,01/06/2022,590.00,Alphatec 2000 Ltd
Bolton MBC,Chief Executives,Other Fees,01/06/2022,"3,133.39",AVC Wise Limited
Bolton MBC,Chief Executives,Other Fees,27/06/2022,"3,076.82",AVC Wise Limited
Bolton MBC,Chief Executives,Marketing,06/06/2022,"10,000.00",Bill Deeker Limited T/A Bridge
Bolton MBC,Chief Executives,Contracted Services,23/06/2022,"22,760.80",Bloom Procurement Services Limited
Bolton MBC,Chief Executives,Op Equip Furniture Purchase,01/06/2022,715.89,Bolton Carpet Warehouse
Bolton MBC,Chief Executives,Op Equip Furniture Purchase,01/06/2022,715.89,Bolton Carpet Warehouse
Bolton MBC,Chief Executives,Op Equip Furniture Purchase,01/06/2022,647.17,Bolton Carpet Warehouse
Bolton MBC,Chief Executives,Op Equip Furniture Purchase,01/06/2022,609.00,Bolton Carpet Warehouse
Bolton MBC,Chief Executives,Op Equip Furniture Purchase,01/06/2022,582.41,Bolton Carpet Warehouse
Bolton MBC,Chief Executives,Op Equip Furniture Purchase,09/06/2022,753.31,Bolton Carpet Warehouse
Bolton MBC,Chief Executives,Op Equip Furniture Purchase,17/06/2022,885.53,Bolton Carpet Warehouse
Bolton MBC,Chief Executives,Op Equip Furniture Purchase,17/06/2022,582.41,Bolton Carpet Warehouse
Bolton MBC,Chief Executives,Other Fees,20/06/2022,"33,333.00",Bolton CVS#Bolton Community & Voluntary Services
Bolton MBC,Chief Executives,Promoting Events,14/06/2022,"1,126.00",Bolton Parish Church
Bolton MBC,Chief Executives,Corporate Training,13/06/2022,625.00,Bolton Under Fives Forum#BUFF
Bolton MBC,Chief Executives,Election Expenses,01/06/2022,"7,172.50",Bolton Whites Hotel
Bolton MBC,Chief Executives,Marketing,01/06/2022,"1,320.66",Bright Interactive Limited
Bolton MBC,Chief Executives,Marketing,06/06/2022,"1,772.97",C Horrocks & Sons Limited
Bolton MBC,Chief Executives,Staff Subsistence Expenses,07/06/2022,"3,382.00",Capita Business Services Limited
Bolton MBC,Chief Executives,Staff Subsistence Expenses,07/06/2022,"2,670.00",Capita Business Services Limited
Bolton MBC,Chief Executives,Partnership Staff,13/06/2022,"6,942.00",Capita Business Services Limited
Bolton MBC,Chief Executives,Partnership Staff,13/06/2022,"5,874.00",Capita Business Services Limited
Bolton MBC,Chief Executives,Agency Staff - Full-time,01/06/2022,"1,048.95",Castlefield Recruitment Limited
Bolton MBC,Chief Executives,Agency Staff - Full-time,01/06/2022,864.68,Castlefield Recruitment Limited
Bolton MBC,Chief Executives,Agency Staff - Full-time,08/06/2022,659.14,Castlefield Recruitment Limited
Bolton MBC,Chief Executives,Agency Staff - Full-time,15/06/2022,"1,048.95",Castlefield Recruitment Limited
Bolton MBC,Chief Executives,Agency Staff - Full-time,22/06/2022,"1,048.95",Castlefield Recruitment Limited
Bolton MBC,Chief Executives,Management Fee,01/06/2022,"174,313.34",CH Bolton Limited
Bolton MBC,Chief Executives,Management Fee,15/06/2022,"13,070.99",CH Bolton Limited
Bolton MBC,Chief Executives,Operational Equipment Purchase,15/06/2022,"5,712.77",CH Bolton Limited
Bolton MBC,Chief Executives,Rent of Storage Facilities,15/06/2022,"1,678.32",CH Bolton Limited
Bolton MBC,Chief Executives,Election Expenses,06/06/2022,"1,085.27",Civica Election Services Limited
Bolton MBC,Chief Executives,Election Expenses,09/06/2022,"13,129.88",Civica Election Services Limited
Bolton MBC,Chief Executives,Election Expenses,09/06/2022,"6,175.07",Civica Election Services Limited
Bolton MBC,Chief Executives,Election Expenses,09/06/2022,878.66,Civica Election Services Limited
Bolton MBC,Chief Executives,Survey Fees,13/06/2022,"6,618.56",Civica Election Services Limited
Bolton MBC,Chief Executives,Computer Software,13/06/2022,"19,200.00",Civica UK Ltd
Bolton MBC,Chief Executives,Buildings Service Charge,01/06/2022,"1,123.38",Colliers International Property Consultants Limited#Colliers International
Bolton MBC,Chief Executives,Buildings Service Charge,01/06/2022,"1,054.50",Colliers International Property Consultants Limited#Colliers International
Bolton MBC,Chief Executives,Other Recruitment Expenditure,01/06/2022,772.50,Complete Background Screening Limited#CBS
Bolton MBC,Chief Executives,Cycle Purchase,06/06/2022,"1,369.99",Cyclescheme.co.uk
Bolton MBC,Chief Executives,Legal Fees,01/06/2022,"17,971.10",DAC Beachcroft LLP
Bolton MBC,Chief Executives,Legal Fees,01/06/2022,735.11,Dataspace
Bolton MBC,Chief Executives,Artistes Fees,28/06/2022,"2,100.00",Dawn N Dusted Promotions/Live Music Consultant
Bolton MBC,Chief Executives,Operational Equipment Rental,10/06/2022,"20,890.00",dbnAudile Limited
Bolton MBC,Chief Executives,Legal Fees,01/06/2022,"1,000.00",Deans Court Chambers
Bolton MBC,Chief Executives,Other Recruitment Expenditure,01/06/2022,"16,700.00",Disclosure and Barring Service
Bolton MBC,Chief Executives,Inter Auth Agency/Cont Svs,01/06/2022,"6,969.50",Essa Academy
Bolton MBC,Chief Executives,Inter Auth Agency/Cont Svs,01/06/2022,"6,504.16",Essa Academy
Bolton MBC,Chief Executives,Information and Communication Technology,21/06/2022,765.23,eUKhost Ltd
Bolton MBC,Chief Executives,Marketing,01/06/2022,"1,120.00",Event Solutions#Event Solutions Holdings Limited
Bolton MBC,Chief Executives,Operational Equipment Purchase,20/06/2022,"63,516.00",Fortalice Limited
Bolton MBC,Chief Executives,Operational Equipment Purchase,20/06/2022,"17,687.50",Fortalice Limited
Bolton MBC,Chief Executives,Promoting Events,30/06/2022,"1,579.00",Gap Group Limited#Gap Holdings Limited
Bolton MBC,Chief Executives,Marketing,04/06/2022,"2,071.67",Greenhalghs#Greenhalghs Craft Bakery Limited
Bolton MBC,Chief Executives,Corporate Training,10/06/2022,900.00,Griffin Care Limited
Bolton MBC,Chief Executives,Corporate Training,10/06/2022,900.00,Griffin Care Limited
Bolton MBC,Chief Executives,Marketing,01/06/2022,"1,200.00",Harrisons Worsley Limited T/A Chef To Go
Bolton MBC,Chief Executives,Marketing,01/06/2022,850.00,Harrisons Worsley Limited T/A Chef To Go
Bolton MBC,Chief Executives,Electricity - General,10/06/2022,"23,258.87",Haven Power Limited
Bolton MBC,Chief Executives,Op Equip Health and Safety,01/06/2022,654.17,Hear4u & Healthscreen Limited#Hearing Aid Accessories
Bolton MBC,Chief Executives,Conference Expenses,01/06/2022,"2,065.00",Hemming Group Limited#The MJ
Bolton MBC,Chief Executives,Marketing,01/06/2022,"3,050.00",House of Flags Limited
Bolton MBC,Chief Executives,Marketing,01/06/2022,"2,215.00",House of Flags Limited
Bolton MBC,Chief Executives,Marketing,01/06/2022,"1,425.00",House of Flags Limited
Bolton MBC,Chief Executives,Corporate Training,08/06/2022,"1,055.00",Immigration Social Work Services Limited
Bolton MBC,Chief Executives,Marketing,01/06/2022,965.00,Impression (Bolton) Limited
Bolton MBC,Chief Executives,Marketing,01/06/2022,945.00,Impression (Bolton) Limited
Bolton MBC,Chief Executives,Marketing,01/06/2022,680.00,Impression (Bolton) Limited
Bolton MBC,Chief Executives,Marketing,09/06/2022,"1,118.00",Impression (Bolton) Limited
Bolton MBC,Chief Executives,Corporate Training,10/06/2022,"1,133.80",Informed Assessment Limited
Bolton MBC,Chief Executives,Corporate Training,10/06/2022,748.20,Informed Assessment Limited
Bolton MBC,Chief Executives,Other Fees,01/06/2022,"11,851.48",Jacobs Certificated Bailiffs#Jacobs
Bolton MBC,Chief Executives,Other Fees,06/06/2022,"7,359.17",Jacobs Certificated Bailiffs#Jacobs
Bolton MBC,Chief Executives,Other Fees,13/06/2022,"9,669.10",Jacobs Certificated Bailiffs#Jacobs
Bolton MBC,Chief Executives,Other Fees,20/06/2022,"11,312.89",Jacobs Certificated Bailiffs#Jacobs
Bolton MBC,Chief Executives,Legal Fees,01/06/2022,"1,773.63",James Andrews Recruitment Solutions Limited
Bolton MBC,Chief Executives,Legal Fees,01/06/2022,"1,740.79",James Andrews Recruitment Solutions Limited
Bolton MBC,Chief Executives,Legal Fees,01/06/2022,"1,576.56",James Andrews Recruitment Solutions Limited
Bolton MBC,Chief Executives,Legal Fees,01/06/2022,"1,560.14",James Andrews Recruitment Solutions Limited
Bolton MBC,Chief Executives,Legal Fees,01/06/2022,"1,494.45",James Andrews Recruitment Solutions Limited
Bolton MBC,Chief Executives,Legal Fees,08/06/2022,"1,478.03",James Andrews Recruitment Solutions Limited
Bolton MBC,Chief Executives,Legal Fees,15/06/2022,"1,987.12",James Andrews Recruitment Solutions Limited
Bolton MBC,Chief Executives,Legal Fees,29/06/2022,"1,018.20",James Andrews Recruitment Solutions Limited
Bolton MBC,Chief Executives,Other Fees,01/06/2022,"1,011.28",JLL#AMAS
Bolton MBC,Chief Executives,Other Fees,11/06/2022,"1,011.28",JLL#AMAS
Bolton MBC,Chief Executives,General Materials,22/06/2022,"8,960.00",Kays Traffic Management Systems Limited
Bolton MBC,Chief Executives,Legal Fees,07/06/2022,"1,575.00",Kings Chambers
Bolton MBC,Chief Executives,Other Agency/Contracted Services,13/06/2022,"38,025.00",KPMG LLP
Bolton MBC,Chief Executives,Corporate Training,08/06/2022,900.00,Leaderskills Limited#The Institute Of Leadership & Management
Bolton MBC,Chief Executives,Marketing,01/06/2022,"8,382.98",Lightmedia Displays Limited
Bolton MBC,Chief Executives,Operational Equipment Rental,01/06/2022,"5,770.00",Live Events Limited
Bolton MBC,Chief Executives,Conference Expenses,01/06/2022,"1,090.00",Local Government Association
Bolton MBC,Chief Executives,Conference Expenses,01/06/2022,545.00,Local Government Association
Bolton MBC,Chief Executives,Conference Expenses,01/06/2022,545.00,Local Government Association
Bolton MBC,Chief Executives,Marketing,01/06/2022,"9,611.10",Manchester Light & Stage Ltd
Bolton MBC,Chief Executives,Day To Day Maintenance,01/06/2022,564.00,Marvtech Ltd
Bolton MBC,Chief Executives,Other Fees,17/06/2022,"1,437.50",Michelmores LLP
Bolton MBC,Chief Executives,Staff Subsistence Expenses,01/06/2022,"8,069.00",Oldham Council
Bolton MBC,Chief Executives,Oracle Support,07/06/2022,"10,671.64",Oracle Corporation UK Limited
Bolton MBC,Chief Executives,Oracle Support,24/06/2022,"11,640.98",Oracle Corporation UK Limited
Bolton MBC,Chief Executives,Agency Staff - Full-time,08/06/2022,"3,175.00",Park Avenue Recruitment Limited
Bolton MBC,Chief Executives,Agency Staff - Full-time,08/06/2022,"1,905.00",Park Avenue Recruitment Limited
Bolton MBC,Chief Executives,Agency Staff - Full-time,21/06/2022,"3,175.00",Park Avenue Recruitment Limited
Bolton MBC,Chief Executives,Agency Staff - Full-time,21/06/2022,"3,175.00",Park Avenue Recruitment Limited
Bolton MBC,Chief Executives,Marketing,01/06/2022,600.00,Party Packs Limited
Bolton MBC,Chief Executives,Operational Equipment Purchase,17/06/2022,"38,000.00",Paws For Kids#Endeavour Project
Bolton MBC,Chief Executives,Operational Equipment Purchase,17/06/2022,"15,000.00",Paws For Kids#Endeavour Project
Bolton MBC,Chief Executives,Health and Safety,01/06/2022,"1,177.60",People Asset Management Ltd
Bolton MBC,Chief Executives,Health and Safety,02/06/2022,"8,626.80",People Asset Management Ltd
Bolton MBC,Chief Executives,Election Expenses,01/06/2022,"6,615.36",Portakabin
Bolton MBC,Chief Executives,Management Fee,01/06/2022,"1,305.37",PPL PRS Limited
Bolton MBC,Chief Executives,Computer Maintenance,24/06/2022,625.00,Public-i
Bolton MBC,Chief Executives,Information and Communication Technology,06/06/2022,"3,800.00",Purple Wing Limited
Bolton MBC,Chief Executives,Marketing,01/06/2022,"3,600.00",REDACTED - Personal Data
Bolton MBC,Chief Executives,Other Fees,10/06/2022,725.00,REDACTED - Personal Data
Bolton MBC,Chief Executives,Agency Staff - Other,01/06/2022,"2,220.34",Reed#Reed Specialist Recruitment Limited
Bolton MBC,Chief Executives,Agency Staff - Other,01/06/2022,"1,942.38",Reed#Reed Specialist Recruitment Limited
Bolton MBC,Chief Executives,Agency Staff - Other,01/06/2022,"1,941.40",Reed#Reed Specialist Recruitment Limited
Bolton MBC,Chief Executives,Agency Staff - Other,01/06/2022,"1,831.22",Reed#Reed Specialist Recruitment Limited
Bolton MBC,Chief Executives,Agency Staff - Other,01/06/2022,"1,768.53",Reed#Reed Specialist Recruitment Limited
Bolton MBC,Chief Executives,Agency Staff - Other,01/06/2022,"1,751.88",Reed#Reed Specialist Recruitment Limited
Bolton MBC,Chief Executives,Agency Staff - Other,01/06/2022,"1,584.84",Reed#Reed Specialist Recruitment Limited
Bolton MBC,Chief Executives,Agency Staff - Other,01/06/2022,"1,358.57",Reed#Reed Specialist Recruitment Limited
Bolton MBC,Chief Executives,Agency Staff - Other,01/06/2022,"1,304.07",Reed#Reed Specialist Recruitment Limited
Bolton MBC,Chief Executives,Agency Staff - Other,01/06/2022,"1,030.15",Reed#Reed Specialist Recruitment Limited
Bolton MBC,Chief Executives,Agency Staff - Other,01/06/2022,807.52,Reed#Reed Specialist Recruitment Limited
Bolton MBC,Chief Executives,Agency Staff - Other,01/06/2022,769.54,Reed#Reed Specialist Recruitment Limited
Bolton MBC,Chief Executives,Agency Staff - Other,01/06/2022,737.26,Reed#Reed Specialist Recruitment Limited
Bolton MBC,Chief Executives,Agency Staff - Other,01/06/2022,733.56,Reed#Reed Specialist Recruitment Limited
Bolton MBC,Chief Executives,Agency Staff - Other,01/06/2022,733.27,Reed#Reed Specialist Recruitment Limited
Bolton MBC,Chief Executives,Agency Staff - Other,01/06/2022,707.60,Reed#Reed Specialist Recruitment Limited
Bolton MBC,Chief Executives,Agency Staff - Other,01/06/2022,599.84,Reed#Reed Specialist Recruitment Limited
Bolton MBC,Chief Executives,Agency Staff - Other,01/06/2022,594.78,Reed#Reed Specialist Recruitment Limited
Bolton MBC,Chief Executives,Agency Staff - Other,01/06/2022,586.85,Reed#Reed Specialist Recruitment Limited
Bolton MBC,Chief Executives,Agency Staff - Other,01/06/2022,559.85,Reed#Reed Specialist Recruitment Limited
Bolton MBC,Chief Executives,Agency Staff - Other,01/06/2022,500.39,Reed#Reed Specialist Recruitment Limited
Bolton MBC,Chief Executives,Agency Staff - Other,03/06/2022,"1,903.96",Reed#Reed Specialist Recruitment Limited
Bolton MBC,Chief Executives,Agency Staff - Other,03/06/2022,"1,842.59",Reed#Reed Specialist Recruitment Limited
Bolton MBC,Chief Executives,Agency Staff - Other,03/06/2022,"1,768.53",Reed#Reed Specialist Recruitment Limited
Bolton MBC,Chief Executives,Agency Staff - Other,03/06/2022,"1,752.13",Reed#Reed Specialist Recruitment Limited
Bolton MBC,Chief Executives,Agency Staff - Other,03/06/2022,"1,584.84",Reed#Reed Specialist Recruitment Limited
Bolton MBC,Chief Executives,Agency Staff - Other,03/06/2022,"1,399.34",Reed#Reed Specialist Recruitment Limited
Bolton MBC,Chief Executives,Agency Staff - Other,03/06/2022,"1,283.04",Reed#Reed Specialist Recruitment Limited
Bolton MBC,Chief Executives,Agency Staff - Other,03/06/2022,"1,175.04",Reed#Reed Specialist Recruitment Limited
Bolton MBC,Chief Executives,Agency Staff - Other,03/06/2022,"1,169.88",Reed#Reed Specialist Recruitment Limited
Bolton MBC,Chief Executives,Agency Staff - Other,03/06/2022,822.78,Reed#Reed Specialist Recruitment Limited
Bolton MBC,Chief Executives,Agency Staff - Other,03/06/2022,807.52,Reed#Reed Specialist Recruitment Limited
Bolton MBC,Chief Executives,Agency Staff - Other,03/06/2022,737.26,Reed#Reed Specialist Recruitment Limited
Bolton MBC,Chief Executives,Agency Staff - Other,03/06/2022,733.27,Reed#Reed Specialist Recruitment Limited
Bolton MBC,Chief Executives,Agency Staff - Other,03/06/2022,687.42,Reed#Reed Specialist Recruitment Limited
Bolton MBC,Chief Executives,Agency Staff - Other,03/06/2022,680.36,Reed#Reed Specialist Recruitment Limited
Bolton MBC,Chief Executives,Agency Staff - Other,03/06/2022,648.51,Reed#Reed Specialist Recruitment Limited
Bolton MBC,Chief Executives,Agency Staff - Other,03/06/2022,599.84,Reed#Reed Specialist Recruitment Limited
Bolton MBC,Chief Executives,Agency Staff - Other,03/06/2022,586.85,Reed#Reed Specialist Recruitment Limited
Bolton MBC,Chief Executives,Agency Staff - Other,03/06/2022,559.85,Reed#Reed Specialist Recruitment Limited
Bolton MBC,Chief Executives,Agency Staff - Other,03/06/2022,537.46,Reed#Reed Specialist Recruitment Limited
Bolton MBC,Chief Executives,Agency Staff - Other,10/06/2022,"1,751.88",Reed#Reed Specialist Recruitment Limited
Bolton MBC,Chief Executives,Agency Staff - Other,10/06/2022,"1,426.36",Reed#Reed Specialist Recruitment Limited
Bolton MBC,Chief Executives,Agency Staff - Other,10/06/2022,"1,420.44",Reed#Reed Specialist Recruitment Limited
Bolton MBC,Chief Executives,Agency Staff - Other,10/06/2022,"1,278.59",Reed#Reed Specialist Recruitment Limited
Bolton MBC,Chief Executives,Agency Staff - Other,10/06/2022,"1,275.91",Reed#Reed Specialist Recruitment Limited
Bolton MBC,Chief Executives,Agency Staff - Other,10/06/2022,"1,188.63",Reed#Reed Specialist Recruitment Limited
Bolton MBC,Chief Executives,Agency Staff - Other,10/06/2022,"1,043.60",Reed#Reed Specialist Recruitment Limited
Bolton MBC,Chief Executives,Agency Staff - Other,10/06/2022,830.24,Reed#Reed Specialist Recruitment Limited
Bolton MBC,Chief Executives,Agency Staff - Other,10/06/2022,818.76,Reed#Reed Specialist Recruitment Limited
Bolton MBC,Chief Executives,Agency Staff - Other,10/06/2022,816.17,Reed#Reed Specialist Recruitment Limited
Bolton MBC,Chief Executives,Agency Staff - Other,10/06/2022,805.50,Reed#Reed Specialist Recruitment Limited
Bolton MBC,Chief Executives,Agency Staff - Other,10/06/2022,794.53,Reed#Reed Specialist Recruitment Limited
Bolton MBC,Chief Executives,Agency Staff - Other,10/06/2022,764.55,Reed#Reed Specialist Recruitment Limited
Bolton MBC,Chief Executives,Agency Staff - Other,10/06/2022,733.56,Reed#Reed Specialist Recruitment Limited
Bolton MBC,Chief Executives,Agency Staff - Other,10/06/2022,691.75,Reed#Reed Specialist Recruitment Limited
Bolton MBC,Chief Executives,Agency Staff - Other,10/06/2022,684.29,Reed#Reed Specialist Recruitment Limited
Bolton MBC,Chief Executives,Agency Staff - Other,10/06/2022,584.65,Reed#Reed Specialist Recruitment Limited
Bolton MBC,Chief Executives,Agency Staff - Other,10/06/2022,578.79,Reed#Reed Specialist Recruitment Limited
Bolton MBC,Chief Executives,Agency Staff - Other,10/06/2022,528.70,Reed#Reed Specialist Recruitment Limited
Bolton MBC,Chief Executives,Agency Staff - Other,17/06/2022,"2,016.27",Reed#Reed Specialist Recruitment Limited
Bolton MBC,Chief Executives,Agency Staff - Other,17/06/2022,"1,849.72",Reed#Reed Specialist Recruitment Limited
Bolton MBC,Chief Executives,Agency Staff - Other,17/06/2022,"1,768.53",Reed#Reed Specialist Recruitment Limited
Bolton MBC,Chief Executives,Agency Staff - Other,17/06/2022,"1,751.88",Reed#Reed Specialist Recruitment Limited
Bolton MBC,Chief Executives,Agency Staff - Other,17/06/2022,"1,426.36",Reed#Reed Specialist Recruitment Limited
Bolton MBC,Chief Executives,Agency Staff - Other,17/06/2022,"1,411.26",Reed#Reed Specialist Recruitment Limited
Bolton MBC,Chief Executives,Agency Staff - Other,17/06/2022,"1,283.04",Reed#Reed Specialist Recruitment Limited
Bolton MBC,Chief Executives,Agency Staff - Other,17/06/2022,"1,113.28",Reed#Reed Specialist Recruitment Limited
Bolton MBC,Chief Executives,Agency Staff - Other,17/06/2022,911.99,Reed#Reed Specialist Recruitment Limited
Bolton MBC,Chief Executives,Agency Staff - Other,17/06/2022,807.52,Reed#Reed Specialist Recruitment Limited
Bolton MBC,Chief Executives,Agency Staff - Other,17/06/2022,733.56,Reed#Reed Specialist Recruitment Limited
Bolton MBC,Chief Executives,Agency Staff - Other,17/06/2022,691.75,Reed#Reed Specialist Recruitment Limited
Bolton MBC,Chief Executives,Agency Staff - Other,17/06/2022,624.63,Reed#Reed Specialist Recruitment Limited
Bolton MBC,Chief Executives,Agency Staff - Other,17/06/2022,586.85,Reed#Reed Specialist Recruitment Limited
Bolton MBC,Chief Executives,Agency Staff - Other,17/06/2022,559.85,Reed#Reed Specialist Recruitment Limited
Bolton MBC,Chief Executives,Agency Staff - Other,17/06/2022,559.85,Reed#Reed Specialist Recruitment Limited
Bolton MBC,Chief Executives,Agency Staff - Other,17/06/2022,550.08,Reed#Reed Specialist Recruitment Limited
Bolton MBC,Chief Executives,Agency Staff - Other,17/06/2022,525.78,Reed#Reed Specialist Recruitment Limited
Bolton MBC,Chief Executives,Agency Staff - Other,24/06/2022,"2,020.26",Reed#Reed Specialist Recruitment Limited
Bolton MBC,Chief Executives,Agency Staff - Other,24/06/2022,"2,011.87",Reed#Reed Specialist Recruitment Limited
Bolton MBC,Chief Executives,Agency Staff - Other,24/06/2022,"1,792.70",Reed#Reed Specialist Recruitment Limited
Bolton MBC,Chief Executives,Agency Staff - Other,24/06/2022,"1,768.53",Reed#Reed Specialist Recruitment Limited
Bolton MBC,Chief Executives,Agency Staff - Other,24/06/2022,"1,751.88",Reed#Reed Specialist Recruitment Limited
Bolton MBC,Chief Executives,Agency Staff - Other,24/06/2022,"1,393.39",Reed#Reed Specialist Recruitment Limited
Bolton MBC,Chief Executives,Agency Staff - Other,24/06/2022,"1,283.04",Reed#Reed Specialist Recruitment Limited
Bolton MBC,Chief Executives,Agency Staff - Other,24/06/2022,"1,246.73",Reed#Reed Specialist Recruitment Limited
Bolton MBC,Chief Executives,Agency Staff - Other,24/06/2022,"1,226.82",Reed#Reed Specialist Recruitment Limited
Bolton MBC,Chief Executives,Agency Staff - Other,24/06/2022,950.90,Reed#Reed Specialist Recruitment Limited
Bolton MBC,Chief Executives,Agency Staff - Other,24/06/2022,842.60,Reed#Reed Specialist Recruitment Limited
Bolton MBC,Chief Executives,Agency Staff - Other,24/06/2022,779.53,Reed#Reed Specialist Recruitment Limited
Bolton MBC,Chief Executives,Agency Staff - Other,24/06/2022,743.62,Reed#Reed Specialist Recruitment Limited
Bolton MBC,Chief Executives,Agency Staff - Other,24/06/2022,733.27,Reed#Reed Specialist Recruitment Limited
Bolton MBC,Chief Executives,Agency Staff - Other,24/06/2022,683.83,Reed#Reed Specialist Recruitment Limited
Bolton MBC,Chief Executives,Agency Staff - Other,24/06/2022,589.73,Reed#Reed Specialist Recruitment Limited
Bolton MBC,Chief Executives,Agency Staff - Other,24/06/2022,586.85,Reed#Reed Specialist Recruitment Limited
Bolton MBC,Chief Executives,Agency Staff - Other,24/06/2022,583.77,Reed#Reed Specialist Recruitment Limited
Bolton MBC,Chief Executives,Agency Staff - Other,24/06/2022,559.85,Reed#Reed Specialist Recruitment Limited
Bolton MBC,Chief Executives,Photocopying Lease/Maintenance,07/06/2022,"19,112.00",Ricoh UK Limited
Bolton MBC,Chief Executives,Photocopying Lease/Maintenance,07/06/2022,"4,581.53",Ricoh UK Limited
Bolton MBC,Chief Executives,Other Agency/Contracted Services,09/06/2022,630.57,Robert Half Limited
Bolton MBC,Chief Executives,Other Agency/Contracted Services,16/06/2022,857.29,Robert Half Limited
Bolton MBC,Chief Executives,Other Agency/Contracted Services,23/06/2022,"1,048.58",Robert Half Limited
Bolton MBC,Chief Executives,Other Agency/Contracted Services,30/06/2022,"1,048.58",Robert Half Limited
Bolton MBC,Chief Executives,Other Agency/Contracted Services,01/06/2022,"9,450.00",Robertson Capital Projects Limited
Bolton MBC,Chief Executives,Contracted Services,01/06/2022,"183,750.28",Robertson Facilities Management Limited
Bolton MBC,Chief Executives,Day To Day Maintenance,01/06/2022,"5,171.39",Robertson Facilities Management Limited
Bolton MBC,Chief Executives,Management Fees,01/06/2022,"4,723.13",Robertson Facilities Management Limited
Bolton MBC,Chief Executives,Day To Day Maintenance,01/06/2022,"3,213.37",Robertson Facilities Management Limited
Bolton MBC,Chief Executives,Day To Day Maintenance,01/06/2022,"1,734.68",Robertson Facilities Management Limited
Bolton MBC,Chief Executives,Management Fees,01/06/2022,"1,717.50",Robertson Facilities Management Limited
Bolton MBC,Chief Executives,Consultancy Fees,01/06/2022,"1,431.25",Robertson Facilities Management Limited
Bolton MBC,Chief Executives,Day To Day Maintenance,01/06/2022,973.25,Robertson Facilities Management Limited
Bolton MBC,Chief Executives,Day To Day Maintenance,01/06/2022,893.10,Robertson Facilities Management Limited
Bolton MBC,Chief Executives,Consultancy Fees,01/06/2022,515.25,Robertson Facilities Management Limited
Bolton MBC,Chief Executives,Planned Maintenance,01/06/2022,514.11,Robertson Facilities Management Limited
Bolton MBC,Chief Executives,Management Fee,09/06/2022,"262,383.32",Robertson Facilities Management Limited
Bolton MBC,Chief Executives,Work in Progress Additions,13/06/2022,"37,359.65",Robertson Facilities Management Limited
Bolton MBC,Chief Executives,Work in Progress Additions,13/06/2022,"8,636.26",Robertson Facilities Management Limited
Bolton MBC,Chief Executives,Management Fee,13/06/2022,"6,303.63",Robertson Facilities Management Limited
Bolton MBC,Chief Executives,Management Fee,13/06/2022,"4,741.27",Robertson Facilities Management Limited
Bolton MBC,Chief Executives,Management Fee,13/06/2022,"4,598.67",Robertson Facilities Management Limited
Bolton MBC,Chief Executives,Work in Progress Additions,13/06/2022,"1,105.38",Robertson Facilities Management Limited
Bolton MBC,Chief Executives,Management Fee,13/06/2022,525.80,Robertson Facilities Management Limited
Bolton MBC,Chief Executives,Contracted Services,15/06/2022,"119,906.31",Robertson Facilities Management Limited
Bolton MBC,Chief Executives,Management Fee,21/06/2022,"10,036.14",Robertson Facilities Management Limited
Bolton MBC,Chief Executives,Marketing,01/06/2022,"4,000.00",Rosie Cake-Diva
Bolton MBC,Chief Executives,Postages Direct Costs,01/06/2022,"2,914.89",Royal Mail Group Limited
Bolton MBC,Chief Executives,Postages Direct Costs,01/06/2022,650.78,Royal Mail Group Limited
Bolton MBC,Chief Executives,Election Expenses,03/06/2022,"3,255.94",Royal Mail Group Limited
Bolton MBC,Chief Executives,Postages Direct Costs,06/06/2022,"1,476.66",Royal Mail Group Limited
Bolton MBC,Chief Executives,Postages Direct Costs,13/06/2022,"2,591.47",Royal Mail Group Limited
Bolton MBC,Chief Executives,Postages Direct Costs,13/06/2022,"1,170.29",Royal Mail Group Limited
Bolton MBC,Chief Executives,Postages Direct Costs,20/06/2022,"2,129.82",Royal Mail Group Limited
Bolton MBC,Chief Executives,Postages Direct Costs,20/06/2022,660.83,Royal Mail Group Limited
Bolton MBC,Chief Executives,Marketing,08/06/2022,"1,109.50",S & S Marquees Limited
Bolton MBC,Chief Executives,Operational Equipment Purchase,20/06/2022,"11,000.00",SafeLives
Bolton MBC,Chief Executives,Exhibits Maint & Restoration,28/06/2022,"1,760.00",Sarah Gerrish Conservation
Bolton MBC,Chief Executives,Electricity - General,17/06/2022,"1,252.98",Scottish & Southern Energy plc#SSE
Bolton MBC,Chief Executives,Electricity - General,17/06/2022,853.10,Scottish & Southern Energy plc#SSE
Bolton MBC,Chief Executives,Electricity - General,17/06/2022,829.92,Scottish & Southern Energy plc#SSE
Bolton MBC,Chief Executives,Electricity - General,17/06/2022,796.29,Scottish & Southern Energy plc#SSE
Bolton MBC,Chief Executives,Electricity - General,17/06/2022,777.48,Scottish & Southern Energy plc#SSE
Bolton MBC,Chief Executives,Electricity - General,17/06/2022,658.50,Scottish & Southern Energy plc#SSE
Bolton MBC,Chief Executives,Marketing,08/06/2022,"5,321.50",Showmed
Bolton MBC,Chief Executives,Promoting Events,27/06/2022,809.63,Showmed
Bolton MBC,Chief Executives,Marketing,07/06/2022,"1,473.40",Silverback Events Limited
Bolton MBC,Chief Executives,Operational Equipment Purchase,28/06/2022,"1,900.00",Social Landlords Crime & Nuisance Group T/A Resolve ASB
Bolton MBC,Chief Executives,Computer Purchase,16/06/2022,"7,650.00",Tameside MBC
Bolton MBC,Chief Executives,Contracted Services,23/06/2022,885.96,The Midcounties Co-operative
Bolton MBC,Chief Executives,Corporate Training,01/06/2022,815.00,The Training Co
Bolton MBC,Chief Executives,Corporate Training,11/06/2022,815.00,The Training Co
Bolton MBC,Chief Executives,Other Agency/Contracted Services,09/06/2022,"1,650.00",Turton School#Turton High School
Bolton MBC,Chief Executives,Vehicle Purchase,01/06/2022,"9,964.55",Tusker
Bolton MBC,Chief Executives,Vehicle Purchase,01/06/2022,"7,205.59",Tusker
Bolton MBC,Chief Executives,Vehicle Purchase,01/06/2022,"1,052.76",Tusker
Bolton MBC,Chief Executives,Operational Equipment Purchase,08/06/2022,"20,000.00",Urban Outreach (Bolton)
Bolton MBC,Chief Executives,Operational Equipment Purchase,16/06/2022,"6,740.00",Urban Outreach (Bolton)
Bolton MBC,Chief Executives,Operational Equipment Purchase,16/06/2022,"4,795.00",Urban Outreach (Bolton)
Bolton MBC,Chief Executives,Information and Communication Technology,01/06/2022,874.35,Valtech Limited
Bolton MBC,Chief Executives,Information and Communication Technology,27/06/2022,731.60,Valtech Limited
Bolton MBC,Chief Executives,Legal Fees,01/06/2022,"2,331.00",Vivid Resourcing
Bolton MBC,Chief Executives,Legal Fees,01/06/2022,"2,331.00",Vivid Resourcing
Bolton MBC,Chief Executives,Legal Fees,08/06/2022,"1,417.50",Vivid Resourcing
Bolton MBC,Chief Executives,Legal Fees,15/06/2022,"2,331.00",Vivid Resourcing
Bolton MBC,Chief Executives,Legal Fees,22/06/2022,"2,331.00",Vivid Resourcing
Bolton MBC,Chief Executives,Legal Fees,22/06/2022,"2,294.00",Vivid Resourcing
Bolton MBC,Chief Executives,Mobile Telephone Rental,13/06/2022,828.00,Vodafone Limited
Bolton MBC,Chief Executives,Operational Equipment Purchase,22/06/2022,600.00,WAVE#Adventure
Bolton MBC,Chief Executives,Other Recruitment Expenditure,01/06/2022,625.00,We Are Sunday Limited
Bolton MBC,Chief Executives,Marketing,10/06/2022,650.00,Willowrange Limited
Bolton MBC,Chief Executives,Health and Safety,01/06/2022,"2,516.00",Working on Wellbeing Ltd T/A Optima Health
Bolton MBC,Chief Executives,Health and Safety,01/06/2022,770.00,Working on Wellbeing Ltd T/A Optima Health
Bolton MBC,Chief Executives,Health and Safety,01/06/2022,532.00,Working on Wellbeing Ltd T/A Optima Health
Bolton MBC,Chief Executives,Health and Safety,01/06/2022,531.07,Working on Wellbeing Ltd T/A Optima Health
Bolton MBC,Chief Executives,Health and Safety,01/06/2022,530.00,Working on Wellbeing Ltd T/A Optima Health
Bolton MBC,Chief Executives,Health and Safety,01/06/2022,518.00,Working on Wellbeing Ltd T/A Optima Health
Bolton MBC,Chief Executives,Health and Safety,23/06/2022,"7,999.24",Working on Wellbeing Ltd T/A Optima Health
Bolton MBC,Chief Executives,Health and Safety,23/06/2022,"2,435.00",Working on Wellbeing Ltd T/A Optima Health
Bolton MBC,Childrens Services,Legal Fees,01/06/2022,950.00,18 St John Street Chambers
Bolton MBC,Childrens Services,Legal Fees,01/06/2022,750.00,18 St John Street Chambers
Bolton MBC,Childrens Services,Clients - Taxi Fares,01/06/2022,"2,755.00",24/7 Minibuses
Bolton MBC,Childrens Services,Clients - Taxi Fares,01/06/2022,"3,221.00",3D Private Hire
Bolton MBC,Childrens Services,Clients - Taxi Fares,01/06/2022,"1,235.00",A K Private Hire
Bolton MBC,Childrens Services,Clients - Taxi Fares,01/06/2022,"1,440.00",AB Minibuses
Bolton MBC,Childrens Services,Clients - Taxi Fares,01/06/2022,"3,287.00",Abacus Minibuses Ltd
Bolton MBC,Childrens Services,Carer Daycare,09/06/2022,710.85,Abacus Playschool#Preschool Nursery
Bolton MBC,Childrens Services,Vol Assoc Grants - General,01/06/2022,"4,514.94",Access to Care Limited
Bolton MBC,Childrens Services,Vol Assoc Grants - General,01/06/2022,"2,400.00",Access to Care Limited
Bolton MBC,Childrens Services,Computer Software Licences,01/06/2022,"2,025.00",Access UK Limited
Bolton MBC,Childrens Services,Transport Hire,01/06/2022,"1,881.00",Acorn Care & Education Limited
Bolton MBC,Childrens Services,Transport Hire,28/06/2022,"1,782.00",Acorn Care & Education Limited
Bolton MBC,Childrens Services,Inter Agency Fees,14/06/2022,"10,000.00",Adoption Matters
Bolton MBC,Childrens Services,Inter Agency Fees,14/06/2022,"1,129.00",Adoption Matters
Bolton MBC,Childrens Services,Legal Fees,15/06/2022,"2,060.10",Advanced Child Care Assessments Limited
Bolton MBC,Childrens Services,Legal Fees,02/06/2022,598.40,Alpha Biolabs Limited
Bolton MBC,Childrens Services,Clients - Taxi Fares,01/06/2022,"7,350.00",Alpha Luxury Minibuses Limited
Bolton MBC,Childrens Services,Clients - Taxi Fares,01/06/2022,"7,030.00",Alpha Luxury Minibuses Limited
Bolton MBC,Childrens Services,Vol Assoc Grants - General,01/06/2022,"12,705.35",AMJ Support Services Ltd
Bolton MBC,Childrens Services,Vol Assoc Grants - General,01/06/2022,"11,780.00",AMJ Support Services Ltd
Bolton MBC,Childrens Services,Water Charges - Metered,10/06/2022,841.75,Anglian Water Business (National) Ltd Trading As Wave
Bolton MBC,Childrens Services,Clients - Taxi Fares,01/06/2022,"1,900.00",Ash Minibuses
Bolton MBC,Childrens Services,Contract Cleaning,01/06/2022,617.17,Associated Cleaning Contractors#Champion Cleaning Services Ltd
Bolton MBC,Childrens Services,Clients - Taxi Fares,01/06/2022,"4,180.00",Atlantic Travel (GB) Limited
Bolton MBC,Childrens Services,Clients - Taxi Fares,01/06/2022,"3,190.00",Atlas Minibuses Limited
Bolton MBC,Childrens Services,Clients - Taxi Fares,01/06/2022,"1,900.00",Auto Travel Limited
Bolton MBC,Childrens Services,Client Support Costs,01/06/2022,804.03,Backup North West#BYPHS
Bolton MBC,Childrens Services,Contracted Services - Bolton Care and Support Ltd,21/06/2022,"51,341.00",Backup North West#BYPHS
Bolton MBC,Childrens Services,Contracted Services - Bolton Care and Support Ltd,21/06/2022,"20,509.75",Backup North West#BYPHS
Bolton MBC,Childrens Services,Contracted Services - Bolton Care and Support Ltd,21/06/2022,"19,880.00",Backup North West#BYPHS
Bolton MBC,Childrens Services,Contracted Services - Bolton Care and Support Ltd,21/06/2022,"16,428.00",Backup North West#BYPHS
Bolton MBC,Childrens Services,Contracted Services - Bolton Care and Support Ltd,21/06/2022,"9,583.00",Backup North West#BYPHS
Bolton MBC,Childrens Services,Vol Assoc Grants - General,01/06/2022,"3,797.50",Banya Family Placement Agency Limited
Bolton MBC,Childrens Services,Vol Assoc Grants - General,01/06/2022,"3,797.50",Banya Family Placement Agency Limited
Bolton MBC,Childrens Services,Vol Assoc Grants - General,01/06/2022,"3,658.00",Banya Family Placement Agency Limited
Bolton MBC,Childrens Services,Inter Agency Fees,01/06/2022,"52,128.00",Barnardo's
Bolton MBC,Childrens Services,Vol Assoc Grants - General,01/06/2022,600.00,Barnardo's
Bolton MBC,Childrens Services,Vol Assoc Grants - General,13/06/2022,"3,114.73",Barnardo's
Bolton MBC,Childrens Services,Vol Assoc Grants - General,13/06/2022,"2,970.00",Barnardo's
Bolton MBC,Childrens Services,Clients - Taxi Fares,01/06/2022,"16,715.00",Bestway Minibuses Limited
Bolton MBC,Childrens Services,Handicraft Materials,22/06/2022,"1,168.45",Bishop Sports & Leisure Limited
Bolton MBC,Childrens Services,Contracted Services,09/06/2022,"130,000.00",Bolton CVS#Bolton Community & Voluntary Services
Bolton MBC,Childrens Services,Contracted Services,27/06/2022,"139,638.00",Bolton Together
Bolton MBC,Childrens Services,Other Fees,01/06/2022,700.00,Bright Futures Childcare Ltd
Bolton MBC,Childrens Services,Contracted Services,24/06/2022,900.00,British Youth Council
Bolton MBC,Childrens Services,Vol Assoc Grants - General,13/06/2022,"24,578.57",Bryn Melyn Care Ltd
Bolton MBC,Childrens Services,Clients - Taxi Fares,01/06/2022,"4,080.00",Bux Travel
Bolton MBC,Childrens Services,Vol Assoc Grants - General,01/06/2022,"3,965.70",By The Bridge North West Limited
Bolton MBC,Childrens Services,Vol Assoc Grants - General,24/06/2022,"19,928.66",Cambian Childcare Limited
Bolton MBC,Childrens Services,Information and Communication Technology,07/06/2022,"12,000.00",Capita Business Services Limited
Bolton MBC,Childrens Services,Vol Assoc Grants - General,01/06/2022,"6,750.00",Capstone Foster Care (North) Limited
Bolton MBC,Childrens Services,Vol Assoc Grants - General,01/06/2022,"21,567.32",Care 4 Every Child Limited
Bolton MBC,Childrens Services,Vol Assoc Grants - General,01/06/2022,"21,027.23",Care 4 Every Child Limited
Bolton MBC,Childrens Services,Vol Assoc Grants - General,01/06/2022,"4,869.95",Care 4 Every Child Limited
Bolton MBC,Childrens Services,Vol Assoc Grants - General,01/06/2022,"18,267.78",Care Today Childrens Services
Bolton MBC,Childrens Services,Inter Agency Fees,01/06/2022,"2,214.33",Caritas Care Ltd
Bolton MBC,Childrens Services,Inter Agency Fees,01/06/2022,"2,214.33",Caritas Care Ltd
Bolton MBC,Childrens Services,Catering Provisions-Food,29/06/2022,660.00,Carrs Pasties
Bolton MBC,Childrens Services,General Subscriptions,01/06/2022,645.00,CASCAiD Ltd
Bolton MBC,Childrens Services,Legal Fees,01/06/2022,"1,750.00",Central Chambers
Bolton MBC,Childrens Services,Legal Fees,01/06/2022,550.00,Central Chambers
Bolton MBC,Childrens Services,Legal Fees,13/06/2022,"3,750.00",Central Chambers
Bolton MBC,Childrens Services,Legal Fees,14/06/2022,750.00,Central Chambers
Bolton MBC,Childrens Services,Legal Fees,14/06/2022,550.00,Central Chambers
Bolton MBC,Childrens Services,Vol Assoc Grants - General,01/06/2022,"4,871.43",CFS Care Limited
Bolton MBC,Childrens Services,Vol Assoc Grants - General,01/06/2022,"2,751.43",CFS Care Limited
Bolton MBC,Childrens Services,Vol Assoc Grants - General,01/06/2022,"2,017.71",CFS Care Limited
Bolton MBC,Childrens Services,Contracted Services,01/06/2022,"2,277.75",Child Action Northwest
Bolton MBC,Childrens Services,Contracted Services,22/06/2022,630.00,Children First Family Mediation
Bolton MBC,Childrens Services,Panel Attendance Allowance,07/06/2022,900.00,Chris Dennison Consulting Limited
Bolton MBC,Childrens Services,Clients - Taxi Fares,01/06/2022,"1,900.00",CK Minibuses
Bolton MBC,Childrens Services,Consultancy Fees,01/06/2022,"9,000.00",Closer Commissioning Limited
Bolton MBC,Childrens Services,Vol Assoc Grants - General,01/06/2022,"18,464.00",Common Thread Limited
Bolton MBC,Childrens Services,Vol Assoc Grants - General,01/06/2022,"18,464.00",Common Thread Limited
Bolton MBC,Childrens Services,Vol Assoc Grants - General,07/06/2022,"14,663.88",Companion Support Services Limited
Bolton MBC,Childrens Services,Vol Assoc Grants - General,07/06/2022,"9,126.32",Companion Support Services Limited
Bolton MBC,Childrens Services,Vol Assoc Grants - General,07/06/2022,"8,935.50",Companion Support Services Limited
Bolton MBC,Childrens Services,Vol Assoc Grants - General,07/06/2022,"8,935.50",Companion Support Services Limited
Bolton MBC,Childrens Services,Vol Assoc Grants - General,07/06/2022,"7,971.43",Companion Support Services Limited
Bolton MBC,Childrens Services,Vol Assoc Grants - General,07/06/2022,"7,714.29",Companion Support Services Limited
Bolton MBC,Childrens Services,Vol Assoc Grants - General,01/06/2022,"6,707.10",Compass Fostering North Limited
Bolton MBC,Childrens Services,Vol Assoc Grants - General,01/06/2022,"1,564.99",Compass Fostering North Limited
Bolton MBC,Childrens Services,Vol Assoc Grants - General,01/06/2022,"1,229.58",Compass Fostering North Limited
Bolton MBC,Childrens Services,Contracted Services,17/06/2022,"15,576.00",ComputerXplorers Bolton & Wigan#Sim Tech Education Limited
Bolton MBC,Childrens Services,Agency Staff - Other,10/06/2022,713.80,Connex Education Partnership Limited
Bolton MBC,Childrens Services,Contracted Services,17/06/2022,900.00,Crash Audio PA Hire
Bolton MBC,Childrens Services,Transport Hire,01/06/2022,973.94,Cumberland & Westmorland Schools Limited#Witherslack Group Limited
Bolton MBC,Childrens Services,Legal Fees,01/06/2022,"1,141.62",D A Languages Limited
Bolton MBC,Childrens Services,Contracted Services,01/06/2022,574.98,D A Languages Limited
Bolton MBC,Childrens Services,Legal Fees,01/06/2022,527.75,D A Languages Limited
Bolton MBC,Childrens Services,Legal Fees,01/06/2022,525.84,D A Languages Limited
Bolton MBC,Childrens Services,Records Storage,01/06/2022,760.84,Dataspace
Bolton MBC,Childrens Services,Clients - Taxi Fares,01/06/2022,"1,530.00",Daubhill Mini Bus
Bolton MBC,Childrens Services,Legal Fees,01/06/2022,"1,500.00",Deans Court Chambers
Bolton MBC,Childrens Services,Fees/Expenses Schools,01/06/2022,"1,038.50",Diverse Educators Limited
Bolton MBC,Childrens Services,Contracted Services,01/06/2022,"3,600.00",ECM Education Consultants Ltd
Bolton MBC,Childrens Services,Private Contracted Services,01/06/2022,"2,100.00",ECM Education Consultants Ltd
Bolton MBC,Childrens Services,Contracted Services,01/06/2022,"1,200.00",ECM Education Consultants Ltd
Bolton MBC,Childrens Services,Contracted Services,01/06/2022,600.00,ECM Education Consultants Ltd
Bolton MBC,Childrens Services,Agency Staff - Other,08/06/2022,945.00,Eden Brown Synergy#Eden Brown Limited
Bolton MBC,Childrens Services,Agency Staff - Other,08/06/2022,945.00,Eden Brown Synergy#Eden Brown Limited
Bolton MBC,Childrens Services,Agency Staff - Other,15/06/2022,"1,554.00",Eden Brown Synergy#Eden Brown Limited
Bolton MBC,Childrens Services,Agency Staff - Other,22/06/2022,"1,008.00",Eden Brown Synergy#Eden Brown Limited
Bolton MBC,Childrens Services,Miscellaneous Expenses,30/06/2022,"13,500.00",Education Software Solutions Limited#ESS
Bolton MBC,Childrens Services,Contracted Services,28/06/2022,"3,200.00",Ellanday Nurseries Limited
Bolton MBC,Childrens Services,Contracted Services,01/06/2022,"2,336.00",Enhance EHC Ltd
Bolton MBC,Childrens Services,Vol Assoc Grants - General,22/06/2022,"16,727.18",Eventus Achieves Limited
Bolton MBC,Childrens Services,Vol Assoc Grants - General,22/06/2022,"7,842.96",Eventus Achieves Limited
Bolton MBC,Childrens Services,Clients - Taxi Fares,01/06/2022,"3,777.81",Express Travels (Bolton) Ltd
Bolton MBC,Childrens Services,Legal Fees,01/06/2022,761.00,Forensic Testing Service Ltd
Bolton MBC,Childrens Services,Vol Assoc Grants - General,01/06/2022,"7,201.25",Fortalice Limited
Bolton MBC,Childrens Services,Vol Assoc Grants - General,15/06/2022,"6,001.50",Foster Care Associates Limited
Bolton MBC,Childrens Services,Vol Assoc Grants - General,15/06/2022,"4,550.70",Foster Care Associates Limited
Bolton MBC,Childrens Services,Vol Assoc Grants - General,15/06/2022,"4,269.00",Foster Care Associates Limited
Bolton MBC,Childrens Services,Vol Assoc Grants - General,15/06/2022,"4,269.00",Foster Care Associates Limited
Bolton MBC,Childrens Services,Vol Assoc Grants - General,15/06/2022,"3,788.70",Foster Care Associates Limited
Bolton MBC,Childrens Services,Vol Assoc Grants - General,15/06/2022,"3,294.54",Foster Care Associates Limited
Bolton MBC,Childrens Services,Vol Assoc Grants - General,15/06/2022,"3,294.54",Foster Care Associates Limited
Bolton MBC,Childrens Services,Vol Assoc Grants - General,15/06/2022,"3,294.40",Foster Care Associates Limited
Bolton MBC,Childrens Services,Vol Assoc Grants - General,01/06/2022,"3,897.01",Fostering Limited
Bolton MBC,Childrens Services,Vol Assoc Grants - General,01/06/2022,"3,819.20",Fostering Limited
Bolton MBC,Childrens Services,Vol Assoc Grants - General,01/06/2022,"3,819.20",Fostering Limited
Bolton MBC,Childrens Services,Vol Assoc Grants - General,15/06/2022,"3,439.51",Fostering People Limited
Bolton MBC,Childrens Services,Vol Assoc Grants - General,01/06/2022,"5,142.90",Fostering Solutions Ltd#2
Bolton MBC,Childrens Services,Vol Assoc Grants - General,01/06/2022,"3,639.00",Fostering Solutions Ltd#2
Bolton MBC,Childrens Services,Vol Assoc Grants - General,01/06/2022,"3,201.39",Fostering Solutions Ltd#2
Bolton MBC,Childrens Services,Vol Assoc Grants - General,01/06/2022,"3,143.61",Fostering Solutions Ltd#2
Bolton MBC,Childrens Services,Vol Assoc Grants - General,01/06/2022,"3,073.41",Fostering Solutions Ltd#2
Bolton MBC,Childrens Services,Vol Assoc Grants - General,01/06/2022,"3,017.79",Fostering Solutions Ltd#2
Bolton MBC,Childrens Services,Vol Assoc Grants - General,01/06/2022,"2,738.61",Fostering Solutions Ltd#2
Bolton MBC,Childrens Services,Vol Assoc Grants - General,01/06/2022,"2,680.83",Fostering Solutions Ltd#2
Bolton MBC,Childrens Services,Clients - Taxi Fares,01/06/2022,"1,577.00",Friends Transport
Bolton MBC,Childrens Services,Vol Assoc Grants - General,01/06/2022,"3,786.45",Fusion Fostering Limited
Bolton MBC,Childrens Services,Private Contracted Services,10/06/2022,630.00,Gateway Outsource Solutions Limited
Bolton MBC,Childrens Services,Private Contracted Services,17/06/2022,560.00,Gateway Outsource Solutions Limited
Bolton MBC,Childrens Services,Private Contracted Services,24/06/2022,630.00,Gateway Outsource Solutions Limited
Bolton MBC,Childrens Services,Operational Equipment Purchase,06/06/2022,"12,333.00",Great Places Housing Association
Bolton MBC,Childrens Services,Contracted Services,01/06/2022,"4,000.00",Greater Manchester Mental Health NHS Foundation Trust
Bolton MBC,Childrens Services,Contracted Services,24/06/2022,"4,000.00",Greater Manchester Mental Health NHS Foundation Trust
Bolton MBC,Childrens Services,Clients - Taxi Fares,01/06/2022,"29,205.00",Hastings Cars NW Limited
Bolton MBC,Childrens Services,Electricity - General,10/06/2022,"2,490.88",Haven Power Limited
Bolton MBC,Childrens Services,Clients - Taxi Fares,01/06/2022,"1,710.00",Headstart Minibus
Bolton MBC,Childrens Services,Training Exps Tuition Fees,01/06/2022,"2,350.00",Here & Now Training
Bolton MBC,Childrens Services,Vol Assoc Grants - General,15/06/2022,"12,750.00",Holistic Approach Limited
Bolton MBC,Childrens Services,Vol Assoc Grants - General,15/06/2022,"12,750.00",Holistic Approach Limited
Bolton MBC,Childrens Services,Vol Assoc Grants - General,15/06/2022,"12,750.00",Holistic Approach Limited
Bolton MBC,Childrens Services,Vol Assoc Grants - General,15/06/2022,"12,750.00",Holistic Approach Limited
Bolton MBC,Childrens Services,Vol Assoc Grants - General,15/06/2022,"12,750.00",Holistic Approach Limited
Bolton MBC,Childrens Services,Vol Assoc Grants - General,15/06/2022,"12,300.00",Holistic Approach Limited
Bolton MBC,Childrens Services,Vol Assoc Grants - General,15/06/2022,"12,300.00",Holistic Approach Limited
Bolton MBC,Childrens Services,Vol Assoc Grants - General,15/06/2022,"8,925.00",Holistic Approach Limited
Bolton MBC,Childrens Services,Vol Assoc Grants - General,15/06/2022,"6,800.00",Holistic Approach Limited
Bolton MBC,Childrens Services,Vol Assoc Grants - General,15/06/2022,"6,375.00",Holistic Approach Limited
Bolton MBC,Childrens Services,Vol Assoc Grants - General,01/06/2022,"14,785.80",Horizon Care & Education
Bolton MBC,Childrens Services,Clients - Taxi Fares,01/06/2022,"2,185.00",I K Travel
Bolton MBC,Childrens Services,Clients - Taxi Fares,01/06/2022,"5,002.50",Ideal Airport Travel
Bolton MBC,Childrens Services,Clients - Taxi Fares,01/06/2022,"1,520.00",Iftikhar Cab
Bolton MBC,Childrens Services,Vol Assoc Grants - General,15/06/2022,"3,064.29",Indie 16 Limited
Bolton MBC,Childrens Services,Vol Assoc Grants - General,28/06/2022,"3,071.49",Indie 16 Limited
Bolton MBC,Childrens Services,Vol Assoc Grants - General,02/06/2022,"4,272.60",Insight (Fylde) Limited
Bolton MBC,Childrens Services,Vol Assoc Grants - General,01/06/2022,"5,275.27",Inspire Community Services Limited
Bolton MBC,Childrens Services,Vol Assoc Grants - General,01/06/2022,"5,020.76",Inspire Community Services Limited
Bolton MBC,Childrens Services,Vol Assoc Grants - General,01/06/2022,"4,426.80",Inspire Community Services Limited
Bolton MBC,Childrens Services,Vol Assoc Grants - General,01/06/2022,"2,856.00",Inspire Community Services Limited
Bolton MBC,Childrens Services,Contracted Services,01/06/2022,"1,199.00",Intercountry Adoption Centre#IAC The Centre For Adoption
Bolton MBC,Childrens Services,Clients - Taxi Fares,01/06/2022,"1,805.00",J B Minibus
Bolton MBC,Childrens Services,Miscellaneous Expenses,01/06/2022,"3,000.00",JBL Education Limited
Bolton MBC,Childrens Services,Carer Daycare,01/06/2022,525.00,Joanne Duddridge
Bolton MBC,Childrens Services,Clients - Taxi Fares,01/06/2022,"1,190.00",Jolly Travels Limited
Bolton MBC,Childrens Services,Legal Fees,01/06/2022,990.00,Julie Stirpe Associates Limited#JSA Psychotherapy Limited
Bolton MBC,Childrens Services,Legal Fees,01/06/2022,850.00,KBW Barristers Chambers
Bolton MBC,Childrens Services,Legal Fees,01/06/2022,800.00,Kenworthys Chambers
Bolton MBC,Childrens Services,Vol Assoc Grants - General,10/06/2022,"4,551.43",Keys PCE Limited#Keys Group
Bolton MBC,Childrens Services,Vol Assoc Grants - General,27/06/2022,"16,360.00",Keys PCE Limited#Keys Group
Bolton MBC,Childrens Services,Contracted Services,17/06/2022,"10,656.00",Kidzone Out Of School Clubs Limited
Bolton MBC,Childrens Services,Training Exps Tuition Fees,01/06/2022,700.00,Kirwin Maclean Associates Ltd
Bolton MBC,Childrens Services,ECDL Courseware Hosting,30/06/2022,"3,990.00",Lead-IT
Bolton MBC,Childrens Services,Vol Assoc Grants - General,01/06/2022,"5,104.26",Leaving Care Services Limited T/A Pathways
Bolton MBC,Childrens Services,ECDL Courseware Hosting,01/06/2022,"1,917.28",LEB Partnership Limited
Bolton MBC,Childrens Services,Clients - Taxi Fares,01/06/2022,"5,504.00",Link Cars
Bolton MBC,Childrens Services,General Subscriptions,08/06/2022,"46,375.00",Link Maker Systems Limited
Bolton MBC,Childrens Services,Carer Additional Costs,06/06/2022,784.00,Little Feet Day Nursery
Bolton MBC,Childrens Services,Vol Assoc Grants - General,01/06/2022,"3,072.30",Lorimer Fostering
Bolton MBC,Childrens Services,Marketing,21/06/2022,900.00,Manchester City Council
Bolton MBC,Childrens Services,Other Fees,01/06/2022,"3,600.00",Mark Hancock Limited
Bolton MBC,Childrens Services,Clients - Taxi Fares,01/06/2022,"3,002.00",Minibuztravel.com
Bolton MBC,Childrens Services,Clients - Taxi Fares,01/06/2022,"1,110.00",MNK
Bolton MBC,Childrens Services,Contracted Services,01/06/2022,"1,125.00",Monarch Education Limited#Monarch Recruitment Limited#Affinity Workforce Solutions Limited
Bolton MBC,Childrens Services,Contracted Services,01/06/2022,922.50,Monarch Education Limited#Monarch Recruitment Limited#Affinity Workforce Solutions Limited
Bolton MBC,Childrens Services,Contracted Services,01/06/2022,911.25,Monarch Education Limited#Monarch Recruitment Limited#Affinity Workforce Solutions Limited
Bolton MBC,Childrens Services,Contracted Services,01/06/2022,900.00,Monarch Education Limited#Monarch Recruitment Limited#Affinity Workforce Solutions Limited
Bolton MBC,Childrens Services,Contracted Services,01/06/2022,675.00,Monarch Education Limited#Monarch Recruitment Limited#Affinity Workforce Solutions Limited
Bolton MBC,Childrens Services,Contracted Services,22/06/2022,"1,125.00",Monarch Education Limited#Monarch Recruitment Limited#Affinity Workforce Solutions Limited
Bolton MBC,Childrens Services,Clients - Taxi Fares,01/06/2022,"1,710.00",National Airport Travel
Bolton MBC,Childrens Services,Vol Assoc Grants - General,27/06/2022,"20,020.00",National Offender Management Service
Bolton MBC,Childrens Services,Vol Assoc Grants - General,27/06/2022,"9,517.00",National Offender Management Service
Bolton MBC,Childrens Services,Vol Assoc Grants - General,27/06/2022,"7,982.00",National Offender Management Service
Bolton MBC,Childrens Services,Clients - Taxi Fares,01/06/2022,"1,275.00",Nationwide Travel
Bolton MBC,Childrens Services,Clients - Taxi Fares,01/06/2022,"1,520.00",Nationwide Wheelchair Service
Bolton MBC,Childrens Services,Vol Assoc Grants - General,07/06/2022,"32,892.90",Next Stage 4 Life Limited
Bolton MBC,Childrens Services,Vol Assoc Grants - General,07/06/2022,"23,310.00",Next Stage 4 Life Limited
Bolton MBC,Childrens Services,Vol Assoc Grants - General,01/06/2022,"5,956.50",Nexus Fostering#Limited
Bolton MBC,Childrens Services,Vol Assoc Grants - General,01/06/2022,"5,956.50",Nexus Fostering#Limited
Bolton MBC,Childrens Services,Agency Staff - Full-time,01/06/2022,"7,639.84",NHS Oldham CCG
Bolton MBC,Childrens Services,Agency Staff - Full-time,01/06/2022,921.64,NHS Oldham CCG
Bolton MBC,Childrens Services,Agency Staff - Full-time,29/06/2022,"4,280.74",NHS Oldham CCG
Bolton MBC,Childrens Services,Legal Fees,07/06/2022,"1,150.00",Nine St John Street
Bolton MBC,Childrens Services,Legal Fees,14/06/2022,"2,400.00",Nine St John Street
Bolton MBC,Childrens Services,Legal Fees,14/06/2022,900.00,Nine St John Street
Bolton MBC,Childrens Services,Other Agency/Contracted Services,01/06/2022,"2,074.31",NonStop Consulting Limited
Bolton MBC,Childrens Services,Other Agency/Contracted Services,07/06/2022,"1,009.13",NonStop Consulting Limited
Bolton MBC,Childrens Services,Other Agency/Contracted Services,14/06/2022,"1,659.45",NonStop Consulting Limited
Bolton MBC,Childrens Services,Other Agency/Contracted Services,16/06/2022,"1,244.59",NonStop Consulting Limited
Bolton MBC,Childrens Services,Staff Training Courses,01/06/2022,650.00,North West Employers
Bolton MBC,Childrens Services,Vol Assoc Grants - General,30/06/2022,"1,141.43",Northern Community Pathways
Bolton MBC,Childrens Services,Vol Assoc Grants - General,06/06/2022,"19,130.00",Oakfield Psychological Services Limited
Bolton MBC,Childrens Services,Vol Assoc Grants - General,14/06/2022,"19,130.00",Oakfield Psychological Services Limited
Bolton MBC,Childrens Services,Other Fees,20/06/2022,"3,119.00",Ofsted
Bolton MBC,Childrens Services,Other Fees,20/06/2022,"2,836.00",Ofsted
Bolton MBC,Childrens Services,Vol Assoc Grants - General,01/06/2022,"4,645.35",Olive Branch Fostering Limited
Bolton MBC,Childrens Services,Vol Assoc Grants - General,01/06/2022,"3,308.01",Olive Branch Fostering Limited
Bolton MBC,Childrens Services,Vol Assoc Grants - General,01/06/2022,"2,074.14",Olive Branch Fostering Limited
Bolton MBC,Childrens Services,Vol Assoc Grants - General,01/06/2022,"1,342.09",Olive Branch Fostering Limited
Bolton MBC,Childrens Services,Vol Assoc Grants - General,01/06/2022,"4,128.64",Orange Grove Foster Care Limited
Bolton MBC,Childrens Services,Vol Assoc Grants - General,01/06/2022,"3,952.20",Orange Grove Foster Care Limited
Bolton MBC,Childrens Services,Vol Assoc Grants - General,01/06/2022,"3,797.10",Orange Grove Foster Care Limited
Bolton MBC,Childrens Services,Vol Assoc Grants - General,01/06/2022,"3,532.30",Orange Grove Foster Care Limited
Bolton MBC,Childrens Services,Vol Assoc Grants - General,01/06/2022,"3,436.83",Orange Grove Foster Care Limited
Bolton MBC,Childrens Services,Other Fees,01/06/2022,"19,687.50",PAC-UK
Bolton MBC,Childrens Services,Agency Staff - Other,01/06/2022,"1,638.40",Paradigm Professional Consultancy Limited#Network Ventures Limited
Bolton MBC,Childrens Services,Agency Staff - Other,03/06/2022,995.80,Paradigm Professional Consultancy Limited#Network Ventures Limited
Bolton MBC,Childrens Services,Agency Staff - Other,10/06/2022,"1,319.20",Paradigm Professional Consultancy Limited#Network Ventures Limited
Bolton MBC,Childrens Services,Agency Staff - Other,17/06/2022,"1,620.80",Paradigm Professional Consultancy Limited#Network Ventures Limited
Bolton MBC,Childrens Services,Vol Assoc Grants - General,01/06/2022,"6,316.87",Parallel Parents
Bolton MBC,Childrens Services,Vol Assoc Grants - General,01/06/2022,"5,495.99",Parallel Parents
Bolton MBC,Childrens Services,Vol Assoc Grants - General,01/06/2022,"5,403.30",Parallel Parents
Bolton MBC,Childrens Services,Vol Assoc Grants - General,01/06/2022,"3,931.42",Parallel Parents
Bolton MBC,Childrens Services,Vol Assoc Grants - General,01/06/2022,"3,827.88",Parallel Parents
Bolton MBC,Childrens Services,Vol Assoc Grants - General,01/06/2022,"3,621.11",Parallel Parents
Bolton MBC,Childrens Services,Vol Assoc Grants - General,01/06/2022,"3,526.87",Parallel Parents
Bolton MBC,Childrens Services,Other Clients Services,14/06/2022,"2,250.00",Pass The Property Limited
Bolton MBC,Childrens Services,Other Clients Services,14/06/2022,"2,250.00",Pass The Property Limited
Bolton MBC,Childrens Services,Contracted Services,01/06/2022,"1,750.00",Permanent Futures Limited
Bolton MBC,Childrens Services,Contracted Services,01/06/2022,"1,750.00",Permanent Futures Limited
Bolton MBC,Childrens Services,Contracted Services,01/06/2022,"1,750.00",Permanent Futures Limited
Bolton MBC,Childrens Services,Contracted Services,01/06/2022,"1,750.00",Permanent Futures Limited
Bolton MBC,Childrens Services,Agency Staff - Other,01/06/2022,"1,400.00",Permanent Futures Limited
Bolton MBC,Childrens Services,Agency Staff - Other,01/06/2022,"1,400.00",Permanent Futures Limited
Bolton MBC,Childrens Services,Contracted Services,01/06/2022,"1,225.00",Permanent Futures Limited
Bolton MBC,Childrens Services,Contracted Services,01/06/2022,"1,050.00",Permanent Futures Limited
Bolton MBC,Childrens Services,Agency Staff - Other,08/06/2022,"2,400.00",Permanent Futures Limited
Bolton MBC,Childrens Services,Contracted Services,15/06/2022,"1,400.00",Permanent Futures Limited
Bolton MBC,Childrens Services,Agency Staff - Other,01/06/2022,"1,350.00",Personnel Leasing Limited
Bolton MBC,Childrens Services,Agency Staff - Other,06/06/2022,"1,035.00",Personnel Leasing Limited
Bolton MBC,Childrens Services,Agency Staff - Other,13/06/2022,"1,693.80",Personnel Leasing Limited
Bolton MBC,Childrens Services,Agency Staff - Other,13/06/2022,"1,687.95",Personnel Leasing Limited
Bolton MBC,Childrens Services,Agency Staff - Other,20/06/2022,"1,683.80",Personnel Leasing Limited
Bolton MBC,Childrens Services,Legal Fees,01/06/2022,"3,351.61",Pickering Psychology Services Limited
Bolton MBC,Childrens Services,Legal Fees,01/06/2022,825.08,Pickering Psychology Services Limited
Bolton MBC,Childrens Services,Legal Fees,01/06/2022,802.76,Pickering Psychology Services Limited
Bolton MBC,Childrens Services,Legal Fees,09/06/2022,"3,133.53",Pickering Psychology Services Limited
Bolton MBC,Childrens Services,Vol Assoc Grants - General,01/06/2022,"9,290.00",Positive Care Solutions Ltd
Bolton MBC,Childrens Services,Vol Assoc Grants - General,01/06/2022,"4,362.00",Positive Care Solutions Ltd
Bolton MBC,Childrens Services,Vol Assoc Grants - General,06/06/2022,"9,290.00",Positive Care Solutions Ltd
Bolton MBC,Childrens Services,Vol Assoc Grants - General,13/06/2022,"9,290.00",Positive Care Solutions Ltd
Bolton MBC,Childrens Services,Clients - Taxi Fares,01/06/2022,"2,141.00",Premier Minibuses (NW) Ltd
Bolton MBC,Childrens Services,Vol Assoc Grants - General,07/06/2022,"19,539.00",PRM Care Limited
Bolton MBC,Childrens Services,Vol Assoc Grants - General,07/06/2022,"1,753.50",PRM Care Limited
Bolton MBC,Childrens Services,Vol Assoc Grants - General,01/06/2022,"18,799.28",Progressive Care Limited
Bolton MBC,Childrens Services,Vol Assoc Grants - General,24/06/2022,"2,361.60",Prospero Group Limited
Bolton MBC,Childrens Services,Vol Assoc Grants - General,01/06/2022,"47,059.30",Protective Care Group
Bolton MBC,Childrens Services,Vol Assoc Grants - General,10/06/2022,"54,003.81",Protective Care Group
Bolton MBC,Childrens Services,Vol Assoc Grants - General,20/06/2022,"9,290.00",Protective Care Group
Bolton MBC,Childrens Services,Vol Assoc Grants - General,27/06/2022,"9,290.00",Protective Care Group
Bolton MBC,Childrens Services,Vol Assoc Grants - General,22/06/2022,"17,142.90",Pure Care Homes Limited
Bolton MBC,Childrens Services,Contracted Services,16/06/2022,"13,440.00",Quality Sport Holiday Clubs Limited
Bolton MBC,Childrens Services,Agency Staff - Full-time,07/06/2022,"3,875.00",Quickline Recruitment Limited
Bolton MBC,Childrens Services,Agency Staff - Other,07/06/2022,"1,226.26",Quickline Recruitment Limited
Bolton MBC,Childrens Services,Agency Staff - Other,07/06/2022,976.05,Quickline Recruitment Limited
Bolton MBC,Childrens Services,Agency Staff - Full-time,14/06/2022,"3,875.00",Quickline Recruitment Limited
Bolton MBC,Childrens Services,Agency Staff - Other,14/06/2022,"1,595.44",Quickline Recruitment Limited
Bolton MBC,Childrens Services,Agency Staff - Other,14/06/2022,948.64,Quickline Recruitment Limited
Bolton MBC,Childrens Services,Agency Staff - Other,17/06/2022,"1,608.94",Quickline Recruitment Limited
Bolton MBC,Childrens Services,Agency Staff - Full-time,21/06/2022,"3,875.00",Quickline Recruitment Limited
Bolton MBC,Childrens Services,Agency Staff - Other,21/06/2022,"1,595.44",Quickline Recruitment Limited
Bolton MBC,Childrens Services,Agency Staff - Full-time,29/06/2022,"3,875.00",Quickline Recruitment Limited
Bolton MBC,Childrens Services,Agency Staff - Other,29/06/2022,"1,595.44",Quickline Recruitment Limited
Bolton MBC,Childrens Services,Clients - Bus Fares,01/06/2022,"7,575.00",R S Tyrer Ltd
Bolton MBC,Childrens Services,Contracted Services,22/06/2022,880.00,Randstad HR Solutions T/A Student Worker Support
Bolton MBC,Childrens Services,Clients - Taxi Fares,01/06/2022,"12,763.00",REDACTED - Personal Data
Bolton MBC,Childrens Services,Clients - Taxi Fares,01/06/2022,"2,850.00",REDACTED - Personal Data
Bolton MBC,Childrens Services,Clients - Taxi Fares,01/06/2022,"2,375.00",REDACTED - Personal Data
Bolton MBC,Childrens Services,Clients - Taxi Fares,01/06/2022,"2,356.00",REDACTED - Personal Data
Bolton MBC,Childrens Services,Other Fees,01/06/2022,"2,000.00",REDACTED - Personal Data
Bolton MBC,Childrens Services,Clients - Taxi Fares,01/06/2022,"1,800.00",REDACTED - Personal Data
Bolton MBC,Childrens Services,Clients - Taxi Fares,01/06/2022,"1,722.50",REDACTED - Personal Data
Bolton MBC,Childrens Services,Clients - Taxi Fares,01/06/2022,"1,710.00",REDACTED - Personal Data
Bolton MBC,Childrens Services,Clients - Taxi Fares,01/06/2022,"1,330.00",REDACTED - Personal Data
Bolton MBC,Childrens Services,Clients - Taxi Fares,01/06/2022,"1,260.00",REDACTED - Personal Data
Bolton MBC,Childrens Services,Clients - Taxi Fares,01/06/2022,"1,260.00",REDACTED - Personal Data
Bolton MBC,Childrens Services,Clients - Taxi Fares,01/06/2022,"1,206.00",REDACTED - Personal Data
Bolton MBC,Childrens Services,Clients - Taxi Fares,01/06/2022,"1,200.00",REDACTED - Personal Data
Bolton MBC,Childrens Services,Legal Fees,01/06/2022,"1,029.35",REDACTED - Personal Data
Bolton MBC,Childrens Services,Contracted Services,01/06/2022,913.00,REDACTED - Personal Data
Bolton MBC,Childrens Services,Clients - Taxi Fares,01/06/2022,855.00,REDACTED - Personal Data
Bolton MBC,Childrens Services,Other Fees,07/06/2022,"3,182.12",REDACTED - Personal Data
Bolton MBC,Childrens Services,Admin Officers Gross Pay,23/06/2022,"1,200.00",REDACTED - Personal Data
Bolton MBC,Childrens Services,Carer Maintenance Allow,25/06/2022,"1,350.00",REDACTED - Personal Data
Bolton MBC,Childrens Services,Agency Staff - Other,01/06/2022,"3,769.00",Reed#Reed Specialist Recruitment Limited
Bolton MBC,Childrens Services,Agency Staff - Other,01/06/2022,"3,769.00",Reed#Reed Specialist Recruitment Limited
Bolton MBC,Childrens Services,Agency Staff - Other,01/06/2022,"1,508.65",Reed#Reed Specialist Recruitment Limited
Bolton MBC,Childrens Services,Agency Staff - Other,01/06/2022,"1,508.05",Reed#Reed Specialist Recruitment Limited
Bolton MBC,Childrens Services,Agency Staff - Other,01/06/2022,"1,502.05",Reed#Reed Specialist Recruitment Limited
Bolton MBC,Childrens Services,Agency Staff - Other,01/06/2022,"1,497.02",Reed#Reed Specialist Recruitment Limited
Bolton MBC,Childrens Services,Agency Staff - Other,01/06/2022,"1,497.02",Reed#Reed Specialist Recruitment Limited
Bolton MBC,Childrens Services,Agency Staff - Other,01/06/2022,"1,497.02",Reed#Reed Specialist Recruitment Limited
Bolton MBC,Childrens Services,Agency Staff - Other,01/06/2022,"1,497.02",Reed#Reed Specialist Recruitment Limited
Bolton MBC,Childrens Services,Agency Staff - Other,01/06/2022,"1,497.02",Reed#Reed Specialist Recruitment Limited
Bolton MBC,Childrens Services,Agency Staff - Other,01/06/2022,"1,497.02",Reed#Reed Specialist Recruitment Limited
Bolton MBC,Childrens Services,Agency Staff - Other,01/06/2022,"1,489.55",Reed#Reed Specialist Recruitment Limited
Bolton MBC,Childrens Services,Agency Staff - Other,01/06/2022,"1,489.55",Reed#Reed Specialist Recruitment Limited
Bolton MBC,Childrens Services,Agency Staff - Other,01/06/2022,"1,478.15",Reed#Reed Specialist Recruitment Limited
Bolton MBC,Childrens Services,Agency Staff - Other,01/06/2022,"1,403.78",Reed#Reed Specialist Recruitment Limited
Bolton MBC,Childrens Services,Agency Staff - Other,01/06/2022,"1,403.78",Reed#Reed Specialist Recruitment Limited
Bolton MBC,Childrens Services,Agency Staff - Other,01/06/2022,"1,396.31",Reed#Reed Specialist Recruitment Limited
Bolton MBC,Childrens Services,Agency Staff - Other,01/06/2022,"1,396.31",Reed#Reed Specialist Recruitment Limited
Bolton MBC,Childrens Services,Agency Staff - Other,01/06/2022,"1,396.31",Reed#Reed Specialist Recruitment Limited
Bolton MBC,Childrens Services,Agency Staff - Other,01/06/2022,"1,396.31",Reed#Reed Specialist Recruitment Limited
Bolton MBC,Childrens Services,Agency Staff - Other,01/06/2022,"1,396.31",Reed#Reed Specialist Recruitment Limited
Bolton MBC,Childrens Services,Agency Staff - Other,01/06/2022,"1,396.31",Reed#Reed Specialist Recruitment Limited
Bolton MBC,Childrens Services,Agency Staff - Other,01/06/2022,"1,396.01",Reed#Reed Specialist Recruitment Limited
Bolton MBC,Childrens Services,Agency Staff - Other,01/06/2022,"1,382.82",Reed#Reed Specialist Recruitment Limited
Bolton MBC,Childrens Services,Agency Staff - Other,01/06/2022,"1,283.04",Reed#Reed Specialist Recruitment Limited
Bolton MBC,Childrens Services,Agency Staff - Other,01/06/2022,"1,132.14",Reed#Reed Specialist Recruitment Limited
Bolton MBC,Childrens Services,Agency Staff - Other,01/06/2022,"1,123.03",Reed#Reed Specialist Recruitment Limited
Bolton MBC,Childrens Services,Agency Staff - Other,01/06/2022,"1,047.88",Reed#Reed Specialist Recruitment Limited
Bolton MBC,Childrens Services,Agency Staff - Other,01/06/2022,871.28,Reed#Reed Specialist Recruitment Limited
Bolton MBC,Childrens Services,Agency Staff - Other,01/06/2022,853.66,Reed#Reed Specialist Recruitment Limited
Bolton MBC,Childrens Services,Agency Staff - Other,01/06/2022,848.66,Reed#Reed Specialist Recruitment Limited
Bolton MBC,Childrens Services,Agency Staff - Other,01/06/2022,809.20,Reed#Reed Specialist Recruitment Limited
Bolton MBC,Childrens Services,Agency Staff - Other,01/06/2022,807.88,Reed#Reed Specialist Recruitment Limited
Bolton MBC,Childrens Services,Agency Staff - Other,01/06/2022,775.16,Reed#Reed Specialist Recruitment Limited
Bolton MBC,Childrens Services,Agency Staff - Other,01/06/2022,760.65,Reed#Reed Specialist Recruitment Limited
Bolton MBC,Childrens Services,Agency Staff - Other,01/06/2022,709.24,Reed#Reed Specialist Recruitment Limited
Bolton MBC,Childrens Services,Agency Staff - Other,01/06/2022,668.06,Reed#Reed Specialist Recruitment Limited
Bolton MBC,Childrens Services,Agency Staff - Other,01/06/2022,603.87,Reed#Reed Specialist Recruitment Limited
Bolton MBC,Childrens Services,Agency Staff - Other,01/06/2022,603.81,Reed#Reed Specialist Recruitment Limited
Bolton MBC,Childrens Services,Agency Staff - Other,01/06/2022,581.94,Reed#Reed Specialist Recruitment Limited
Bolton MBC,Childrens Services,Agency Staff - Other,01/06/2022,516.82,Reed#Reed Specialist Recruitment Limited
Bolton MBC,Childrens Services,Agency Staff - Other,01/06/2022,512.79,Reed#Reed Specialist Recruitment Limited
Bolton MBC,Childrens Services,Agency Staff - Other,01/06/2022,512.79,Reed#Reed Specialist Recruitment Limited
Bolton MBC,Childrens Services,Agency Staff - Other,01/06/2022,512.79,Reed#Reed Specialist Recruitment Limited
Bolton MBC,Childrens Services,Agency Staff - Other,01/06/2022,504.42,Reed#Reed Specialist Recruitment Limited
Bolton MBC,Childrens Services,Agency Staff - Other,01/06/2022,500.39,Reed#Reed Specialist Recruitment Limited
Bolton MBC,Childrens Services,Agency Staff - Other,03/06/2022,"1,768.53",Reed#Reed Specialist Recruitment Limited
Bolton MBC,Childrens Services,Agency Staff - Other,03/06/2022,"1,508.05",Reed#Reed Specialist Recruitment Limited
Bolton MBC,Childrens Services,Agency Staff - Other,03/06/2022,"1,502.05",Reed#Reed Specialist Recruitment Limited
Bolton MBC,Childrens Services,Agency Staff - Other,03/06/2022,"1,497.02",Reed#Reed Specialist Recruitment Limited
Bolton MBC,Childrens Services,Agency Staff - Other,03/06/2022,"1,497.02",Reed#Reed Specialist Recruitment Limited
Bolton MBC,Childrens Services,Agency Staff - Other,03/06/2022,"1,497.02",Reed#Reed Specialist Recruitment Limited
Bolton MBC,Childrens Services,Agency Staff - Other,03/06/2022,"1,497.02",Reed#Reed Specialist Recruitment Limited
Bolton MBC,Childrens Services,Agency Staff - Other,03/06/2022,"1,471.68",Reed#Reed Specialist Recruitment Limited
Bolton MBC,Childrens Services,Agency Staff - Other,03/06/2022,"1,422.76",Reed#Reed Specialist Recruitment Limited
Bolton MBC,Childrens Services,Agency Staff - Other,03/06/2022,"1,408.24",Reed#Reed Specialist Recruitment Limited
Bolton MBC,Childrens Services,Agency Staff - Other,03/06/2022,"1,407.38",Reed#Reed Specialist Recruitment Limited
Bolton MBC,Childrens Services,Agency Staff - Other,03/06/2022,"1,403.78",Reed#Reed Specialist Recruitment Limited
Bolton MBC,Childrens Services,Agency Staff - Other,03/06/2022,"1,403.78",Reed#Reed Specialist Recruitment Limited
Bolton MBC,Childrens Services,Agency Staff - Other,03/06/2022,"1,403.78",Reed#Reed Specialist Recruitment Limited
Bolton MBC,Childrens Services,Agency Staff - Other,03/06/2022,"1,403.78",Reed#Reed Specialist Recruitment Limited
Bolton MBC,Childrens Services,Agency Staff - Other,03/06/2022,"1,403.78",Reed#Reed Specialist Recruitment Limited
Bolton MBC,Childrens Services,Agency Staff - Other,03/06/2022,"1,403.71",Reed#Reed Specialist Recruitment Limited
Bolton MBC,Childrens Services,Agency Staff - Other,03/06/2022,"1,396.31",Reed#Reed Specialist Recruitment Limited
Bolton MBC,Childrens Services,Agency Staff - Other,03/06/2022,"1,396.01",Reed#Reed Specialist Recruitment Limited
Bolton MBC,Childrens Services,Agency Staff - Other,03/06/2022,"1,396.01",Reed#Reed Specialist Recruitment Limited
Bolton MBC,Childrens Services,Agency Staff - Other,03/06/2022,"1,282.82",Reed#Reed Specialist Recruitment Limited
Bolton MBC,Childrens Services,Agency Staff - Other,03/06/2022,"1,145.98",Reed#Reed Specialist Recruitment Limited
Bolton MBC,Childrens Services,Agency Staff - Other,03/06/2022,"1,074.25",Reed#Reed Specialist Recruitment Limited
Bolton MBC,Childrens Services,Agency Staff - Other,03/06/2022,871.28,Reed#Reed Specialist Recruitment Limited
Bolton MBC,Childrens Services,Agency Staff - Other,03/06/2022,760.65,Reed#Reed Specialist Recruitment Limited
Bolton MBC,Childrens Services,Agency Staff - Other,03/06/2022,746.64,Reed#Reed Specialist Recruitment Limited
Bolton MBC,Childrens Services,Agency Staff - Other,03/06/2022,743.92,Reed#Reed Specialist Recruitment Limited
Bolton MBC,Childrens Services,Agency Staff - Other,03/06/2022,717.73,Reed#Reed Specialist Recruitment Limited
Bolton MBC,Childrens Services,Agency Staff - Other,03/06/2022,709.24,Reed#Reed Specialist Recruitment Limited
Bolton MBC,Childrens Services,Agency Staff - Other,03/06/2022,647.13,Reed#Reed Specialist Recruitment Limited
Bolton MBC,Childrens Services,Agency Staff - Other,03/06/2022,644.04,Reed#Reed Specialist Recruitment Limited
Bolton MBC,Childrens Services,Agency Staff - Other,03/06/2022,516.82,Reed#Reed Specialist Recruitment Limited
Bolton MBC,Childrens Services,Agency Staff - Other,03/06/2022,512.79,Reed#Reed Specialist Recruitment Limited
Bolton MBC,Childrens Services,Agency Staff - Other,03/06/2022,512.79,Reed#Reed Specialist Recruitment Limited
Bolton MBC,Childrens Services,Agency Staff - Other,03/06/2022,512.79,Reed#Reed Specialist Recruitment Limited
Bolton MBC,Childrens Services,Agency Staff - Other,03/06/2022,504.42,Reed#Reed Specialist Recruitment Limited
Bolton MBC,Childrens Services,Agency Staff - Other,10/06/2022,"1,901.40",Reed#Reed Specialist Recruitment Limited
Bolton MBC,Childrens Services,Agency Staff - Other,10/06/2022,"1,552.52",Reed#Reed Specialist Recruitment Limited
Bolton MBC,Childrens Services,Agency Staff - Other,10/06/2022,"1,502.05",Reed#Reed Specialist Recruitment Limited
Bolton MBC,Childrens Services,Agency Staff - Other,10/06/2022,"1,497.02",Reed#Reed Specialist Recruitment Limited
Bolton MBC,Childrens Services,Agency Staff - Other,10/06/2022,"1,497.02",Reed#Reed Specialist Recruitment Limited
Bolton MBC,Childrens Services,Agency Staff - Other,10/06/2022,"1,403.78",Reed#Reed Specialist Recruitment Limited
Bolton MBC,Childrens Services,Agency Staff - Other,10/06/2022,"1,403.78",Reed#Reed Specialist Recruitment Limited
Bolton MBC,Childrens Services,Agency Staff - Other,10/06/2022,"1,138.20",Reed#Reed Specialist Recruitment Limited
Bolton MBC,Childrens Services,Agency Staff - Other,10/06/2022,"1,138.20",Reed#Reed Specialist Recruitment Limited
Bolton MBC,Childrens Services,Agency Staff - Other,10/06/2022,"1,138.20",Reed#Reed Specialist Recruitment Limited
Bolton MBC,Childrens Services,Agency Staff - Other,10/06/2022,"1,131.90",Reed#Reed Specialist Recruitment Limited
Bolton MBC,Childrens Services,Agency Staff - Other,10/06/2022,"1,125.55",Reed#Reed Specialist Recruitment Limited
Bolton MBC,Childrens Services,Agency Staff - Other,10/06/2022,"1,100.26",Reed#Reed Specialist Recruitment Limited
Bolton MBC,Childrens Services,Agency Staff - Other,10/06/2022,"1,074.25",Reed#Reed Specialist Recruitment Limited
Bolton MBC,Childrens Services,Agency Staff - Other,10/06/2022,"1,062.32",Reed#Reed Specialist Recruitment Limited
Bolton MBC,Childrens Services,Agency Staff - Other,10/06/2022,"1,052.43",Reed#Reed Specialist Recruitment Limited
Bolton MBC,Childrens Services,Agency Staff - Other,10/06/2022,"1,047.89",Reed#Reed Specialist Recruitment Limited
Bolton MBC,Childrens Services,Agency Staff - Other,10/06/2022,"1,007.04",Reed#Reed Specialist Recruitment Limited
Bolton MBC,Childrens Services,Agency Staff - Other,10/06/2022,930.58,Reed#Reed Specialist Recruitment Limited
Bolton MBC,Childrens Services,Agency Staff - Other,10/06/2022,930.58,Reed#Reed Specialist Recruitment Limited
Bolton MBC,Childrens Services,Agency Staff - Other,10/06/2022,917.06,Reed#Reed Specialist Recruitment Limited
Bolton MBC,Childrens Services,Agency Staff - Other,10/06/2022,910.36,Reed#Reed Specialist Recruitment Limited
Bolton MBC,Childrens Services,Agency Staff - Other,10/06/2022,910.36,Reed#Reed Specialist Recruitment Limited
Bolton MBC,Childrens Services,Agency Staff - Other,10/06/2022,910.36,Reed#Reed Specialist Recruitment Limited
Bolton MBC,Childrens Services,Agency Staff - Other,10/06/2022,898.88,Reed#Reed Specialist Recruitment Limited
Bolton MBC,Childrens Services,Agency Staff - Other,10/06/2022,890.12,Reed#Reed Specialist Recruitment Limited
Bolton MBC,Childrens Services,Agency Staff - Other,10/06/2022,853.66,Reed#Reed Specialist Recruitment Limited
Bolton MBC,Childrens Services,Agency Staff - Other,10/06/2022,853.61,Reed#Reed Specialist Recruitment Limited
Bolton MBC,Childrens Services,Agency Staff - Other,10/06/2022,849.11,Reed#Reed Specialist Recruitment Limited
Bolton MBC,Childrens Services,Agency Staff - Other,10/06/2022,848.93,Reed#Reed Specialist Recruitment Limited
Bolton MBC,Childrens Services,Agency Staff - Other,10/06/2022,838.17,Reed#Reed Specialist Recruitment Limited
Bolton MBC,Childrens Services,Agency Staff - Other,10/06/2022,838.17,Reed#Reed Specialist Recruitment Limited
Bolton MBC,Childrens Services,Agency Staff - Other,10/06/2022,834.68,Reed#Reed Specialist Recruitment Limited
Bolton MBC,Childrens Services,Agency Staff - Other,10/06/2022,645.05,Reed#Reed Specialist Recruitment Limited
Bolton MBC,Childrens Services,Agency Staff - Other,10/06/2022,606.90,Reed#Reed Specialist Recruitment Limited
Bolton MBC,Childrens Services,Agency Staff - Other,10/06/2022,581.94,Reed#Reed Specialist Recruitment Limited
Bolton MBC,Childrens Services,Agency Staff - Other,10/06/2022,579.80,Reed#Reed Specialist Recruitment Limited
Bolton MBC,Childrens Services,Agency Staff - Other,10/06/2022,520.70,Reed#Reed Specialist Recruitment Limited
Bolton MBC,Childrens Services,Agency Staff - Other,10/06/2022,514.97,Reed#Reed Specialist Recruitment Limited
Bolton MBC,Childrens Services,Agency Staff - Other,17/06/2022,"1,800.00",Reed#Reed Specialist Recruitment Limited
Bolton MBC,Childrens Services,Agency Staff - Other,17/06/2022,"1,589.89",Reed#Reed Specialist Recruitment Limited
Bolton MBC,Childrens Services,Agency Staff - Other,17/06/2022,"1,552.52",Reed#Reed Specialist Recruitment Limited
Bolton MBC,Childrens Services,Agency Staff - Other,17/06/2022,"1,508.05",Reed#Reed Specialist Recruitment Limited
Bolton MBC,Childrens Services,Agency Staff - Other,17/06/2022,"1,502.05",Reed#Reed Specialist Recruitment Limited
Bolton MBC,Childrens Services,Agency Staff - Other,17/06/2022,"1,497.02",Reed#Reed Specialist Recruitment Limited
Bolton MBC,Childrens Services,Agency Staff - Other,17/06/2022,"1,497.02",Reed#Reed Specialist Recruitment Limited
Bolton MBC,Childrens Services,Agency Staff - Other,17/06/2022,"1,497.02",Reed#Reed Specialist Recruitment Limited
Bolton MBC,Childrens Services,Agency Staff - Other,17/06/2022,"1,497.02",Reed#Reed Specialist Recruitment Limited
Bolton MBC,Childrens Services,Agency Staff - Other,17/06/2022,"1,497.02",Reed#Reed Specialist Recruitment Limited
Bolton MBC,Childrens Services,Agency Staff - Other,17/06/2022,"1,497.02",Reed#Reed Specialist Recruitment Limited
Bolton MBC,Childrens Services,Agency Staff - Other,17/06/2022,"1,497.02",Reed#Reed Specialist Recruitment Limited
Bolton MBC,Childrens Services,Agency Staff - Other,17/06/2022,"1,478.15",Reed#Reed Specialist Recruitment Limited
Bolton MBC,Childrens Services,Agency Staff - Other,17/06/2022,"1,471.47",Reed#Reed Specialist Recruitment Limited
Bolton MBC,Childrens Services,Agency Staff - Other,17/06/2022,"1,403.78",Reed#Reed Specialist Recruitment Limited
Bolton MBC,Childrens Services,Agency Staff - Other,17/06/2022,"1,403.78",Reed#Reed Specialist Recruitment Limited
Bolton MBC,Childrens Services,Agency Staff - Other,17/06/2022,"1,403.71",Reed#Reed Specialist Recruitment Limited
Bolton MBC,Childrens Services,Agency Staff - Other,17/06/2022,"1,396.31",Reed#Reed Specialist Recruitment Limited
Bolton MBC,Childrens Services,Agency Staff - Other,17/06/2022,"1,396.01",Reed#Reed Specialist Recruitment Limited
Bolton MBC,Childrens Services,Agency Staff - Other,17/06/2022,"1,396.01",Reed#Reed Specialist Recruitment Limited
Bolton MBC,Childrens Services,Agency Staff - Other,17/06/2022,"1,396.01",Reed#Reed Specialist Recruitment Limited
Bolton MBC,Childrens Services,Agency Staff - Other,17/06/2022,"1,355.42",Reed#Reed Specialist Recruitment Limited
Bolton MBC,Childrens Services,Agency Staff - Other,17/06/2022,"1,252.02",Reed#Reed Specialist Recruitment Limited
Bolton MBC,Childrens Services,Agency Staff - Other,17/06/2022,"1,100.26",Reed#Reed Specialist Recruitment Limited
Bolton MBC,Childrens Services,Agency Staff - Other,17/06/2022,910.36,Reed#Reed Specialist Recruitment Limited
Bolton MBC,Childrens Services,Agency Staff - Other,17/06/2022,891.74,Reed#Reed Specialist Recruitment Limited
Bolton MBC,Childrens Services,Agency Staff - Other,17/06/2022,890.12,Reed#Reed Specialist Recruitment Limited
Bolton MBC,Childrens Services,Agency Staff - Other,17/06/2022,871.28,Reed#Reed Specialist Recruitment Limited
Bolton MBC,Childrens Services,Agency Staff - Other,17/06/2022,853.66,Reed#Reed Specialist Recruitment Limited
Bolton MBC,Childrens Services,Agency Staff - Other,17/06/2022,853.66,Reed#Reed Specialist Recruitment Limited
Bolton MBC,Childrens Services,Agency Staff - Other,17/06/2022,842.64,Reed#Reed Specialist Recruitment Limited
Bolton MBC,Childrens Services,Agency Staff - Other,17/06/2022,784.71,Reed#Reed Specialist Recruitment Limited
Bolton MBC,Childrens Services,Agency Staff - Other,17/06/2022,760.65,Reed#Reed Specialist Recruitment Limited
Bolton MBC,Childrens Services,Agency Staff - Other,17/06/2022,729.01,Reed#Reed Specialist Recruitment Limited
Bolton MBC,Childrens Services,Agency Staff - Other,17/06/2022,725.61,Reed#Reed Specialist Recruitment Limited
Bolton MBC,Childrens Services,Agency Staff - Other,17/06/2022,717.73,Reed#Reed Specialist Recruitment Limited
Bolton MBC,Childrens Services,Agency Staff - Other,17/06/2022,709.24,Reed#Reed Specialist Recruitment Limited
Bolton MBC,Childrens Services,Agency Staff - Other,17/06/2022,645.07,Reed#Reed Specialist Recruitment Limited
Bolton MBC,Childrens Services,Agency Staff - Other,17/06/2022,606.90,Reed#Reed Specialist Recruitment Limited
Bolton MBC,Childrens Services,Agency Staff - Other,17/06/2022,573.77,Reed#Reed Specialist Recruitment Limited
Bolton MBC,Childrens Services,Agency Staff - Other,17/06/2022,550.44,Reed#Reed Specialist Recruitment Limited
Bolton MBC,Childrens Services,Agency Staff - Other,17/06/2022,516.82,Reed#Reed Specialist Recruitment Limited
Bolton MBC,Childrens Services,Agency Staff - Other,17/06/2022,512.79,Reed#Reed Specialist Recruitment Limited
Bolton MBC,Childrens Services,Agency Staff - Other,17/06/2022,512.79,Reed#Reed Specialist Recruitment Limited
Bolton MBC,Childrens Services,Agency Staff - Other,17/06/2022,504.42,Reed#Reed Specialist Recruitment Limited
Bolton MBC,Childrens Services,Agency Staff - Other,24/06/2022,"2,055.31",Reed#Reed Specialist Recruitment Limited
Bolton MBC,Childrens Services,Agency Staff - Other,24/06/2022,"1,768.53",Reed#Reed Specialist Recruitment Limited
Bolton MBC,Childrens Services,Agency Staff - Other,24/06/2022,"1,589.89",Reed#Reed Specialist Recruitment Limited
Bolton MBC,Childrens Services,Agency Staff - Other,24/06/2022,"1,552.52",Reed#Reed Specialist Recruitment Limited
Bolton MBC,Childrens Services,Agency Staff - Other,24/06/2022,"1,508.05",Reed#Reed Specialist Recruitment Limited
Bolton MBC,Childrens Services,Agency Staff - Other,24/06/2022,"1,497.02",Reed#Reed Specialist Recruitment Limited
Bolton MBC,Childrens Services,Agency Staff - Other,24/06/2022,"1,497.02",Reed#Reed Specialist Recruitment Limited
Bolton MBC,Childrens Services,Agency Staff - Other,24/06/2022,"1,497.02",Reed#Reed Specialist Recruitment Limited
Bolton MBC,Childrens Services,Agency Staff - Other,24/06/2022,"1,497.02",Reed#Reed Specialist Recruitment Limited
Bolton MBC,Childrens Services,Agency Staff - Other,24/06/2022,"1,497.02",Reed#Reed Specialist Recruitment Limited
Bolton MBC,Childrens Services,Agency Staff - Other,24/06/2022,"1,497.02",Reed#Reed Specialist Recruitment Limited
Bolton MBC,Childrens Services,Agency Staff - Other,24/06/2022,"1,497.02",Reed#Reed Specialist Recruitment Limited
Bolton MBC,Childrens Services,Agency Staff - Other,24/06/2022,"1,478.15",Reed#Reed Specialist Recruitment Limited
Bolton MBC,Childrens Services,Agency Staff - Other,24/06/2022,"1,416.10",Reed#Reed Specialist Recruitment Limited
Bolton MBC,Childrens Services,Agency Staff - Other,24/06/2022,"1,403.78",Reed#Reed Specialist Recruitment Limited
Bolton MBC,Childrens Services,Agency Staff - Other,24/06/2022,"1,403.78",Reed#Reed Specialist Recruitment Limited
Bolton MBC,Childrens Services,Agency Staff - Other,24/06/2022,"1,403.78",Reed#Reed Specialist Recruitment Limited
Bolton MBC,Childrens Services,Agency Staff - Other,24/06/2022,"1,403.78",Reed#Reed Specialist Recruitment Limited
Bolton MBC,Childrens Services,Agency Staff - Other,24/06/2022,"1,403.78",Reed#Reed Specialist Recruitment Limited
Bolton MBC,Childrens Services,Agency Staff - Other,24/06/2022,"1,403.78",Reed#Reed Specialist Recruitment Limited
Bolton MBC,Childrens Services,Agency Staff - Other,24/06/2022,"1,403.78",Reed#Reed Specialist Recruitment Limited
Bolton MBC,Childrens Services,Agency Staff - Other,24/06/2022,"1,403.71",Reed#Reed Specialist Recruitment Limited
Bolton MBC,Childrens Services,Agency Staff - Other,24/06/2022,"1,396.31",Reed#Reed Specialist Recruitment Limited
Bolton MBC,Childrens Services,Agency Staff - Other,24/06/2022,"1,396.01",Reed#Reed Specialist Recruitment Limited
Bolton MBC,Childrens Services,Agency Staff - Other,24/06/2022,"1,396.01",Reed#Reed Specialist Recruitment Limited
Bolton MBC,Childrens Services,Agency Staff - Other,24/06/2022,"1,396.01",Reed#Reed Specialist Recruitment Limited
Bolton MBC,Childrens Services,Agency Staff - Other,24/06/2022,"1,388.61",Reed#Reed Specialist Recruitment Limited
Bolton MBC,Childrens Services,Agency Staff - Other,24/06/2022,"1,195.12",Reed#Reed Specialist Recruitment Limited
Bolton MBC,Childrens Services,Agency Staff - Other,24/06/2022,"1,103.76",Reed#Reed Specialist Recruitment Limited
Bolton MBC,Childrens Services,Agency Staff - Other,24/06/2022,871.28,Reed#Reed Specialist Recruitment Limited
Bolton MBC,Childrens Services,Agency Staff - Other,24/06/2022,828.00,Reed#Reed Specialist Recruitment Limited
Bolton MBC,Childrens Services,Agency Staff - Other,24/06/2022,820.63,Reed#Reed Specialist Recruitment Limited
Bolton MBC,Childrens Services,Agency Staff - Other,24/06/2022,760.65,Reed#Reed Specialist Recruitment Limited
Bolton MBC,Childrens Services,Agency Staff - Other,24/06/2022,717.73,Reed#Reed Specialist Recruitment Limited
Bolton MBC,Childrens Services,Agency Staff - Other,24/06/2022,709.24,Reed#Reed Specialist Recruitment Limited
Bolton MBC,Childrens Services,Agency Staff - Other,24/06/2022,707.70,Reed#Reed Specialist Recruitment Limited
Bolton MBC,Childrens Services,Agency Staff - Other,24/06/2022,701.61,Reed#Reed Specialist Recruitment Limited
Bolton MBC,Childrens Services,Agency Staff - Other,24/06/2022,569.10,Reed#Reed Specialist Recruitment Limited
Bolton MBC,Childrens Services,Agency Staff - Other,24/06/2022,520.48,Reed#Reed Specialist Recruitment Limited
Bolton MBC,Childrens Services,Agency Staff - Other,24/06/2022,520.19,Reed#Reed Specialist Recruitment Limited
Bolton MBC,Childrens Services,Agency Staff - Other,24/06/2022,516.82,Reed#Reed Specialist Recruitment Limited
Bolton MBC,Childrens Services,Agency Staff - Other,24/06/2022,512.79,Reed#Reed Specialist Recruitment Limited
Bolton MBC,Childrens Services,Agency Staff - Other,24/06/2022,512.79,Reed#Reed Specialist Recruitment Limited
Bolton MBC,Childrens Services,Agency Staff - Other,24/06/2022,512.79,Reed#Reed Specialist Recruitment Limited
Bolton MBC,Childrens Services,Agency Staff - Other,24/06/2022,512.79,Reed#Reed Specialist Recruitment Limited
Bolton MBC,Childrens Services,Agency Staff - Other,24/06/2022,512.79,Reed#Reed Specialist Recruitment Limited
Bolton MBC,Childrens Services,Agency Staff - Other,24/06/2022,504.42,Reed#Reed Specialist Recruitment Limited
Bolton MBC,Childrens Services,Contracted Services,22/06/2022,"3,625.00",Remedi-Restorative Services#Remedi
Bolton MBC,Childrens Services,Glazing,01/06/2022,"4,774.65",Robertson Facilities Management Limited
Bolton MBC,Childrens Services,Vol Assoc Grants - General,01/06/2022,"3,655.44",Rossie Secure Accomodation Services
Bolton MBC,Childrens Services,Vol Assoc Grants - General,01/06/2022,"11,833.14",Rubix Care Limited
Bolton MBC,Childrens Services,Legal Fees,01/06/2022,"2,123.10",Russell & Russell Solicitors
Bolton MBC,Childrens Services,Clients - Taxi Fares,01/06/2022,"6,010.00",S & D Private Hire#S & D Cars
Bolton MBC,Childrens Services,Clients - Taxi Fares,01/06/2022,"5,012.00",S A People Carrier Services
Bolton MBC,Childrens Services,Vol Assoc Grants - General,21/06/2022,"11,933.58",Safe Hands Care & Support Services Limited
Bolton MBC,Childrens Services,Vol Assoc Grants - General,01/06/2022,"16,392.86",Sandcastle Care Limited
Bolton MBC,Childrens Services,Electricity - General,17/06/2022,"8,760.74",Scottish & Southern Energy plc#SSE
Bolton MBC,Childrens Services,Electricity - General,17/06/2022,"8,483.55",Scottish & Southern Energy plc#SSE
Bolton MBC,Childrens Services,Electricity - General,17/06/2022,"3,243.48",Scottish & Southern Energy plc#SSE
Bolton MBC,Childrens Services,Electricity - General,17/06/2022,"3,126.41",Scottish & Southern Energy plc#SSE
Bolton MBC,Childrens Services,Electricity - General,17/06/2022,"1,716.26",Scottish & Southern Energy plc#SSE
Bolton MBC,Childrens Services,Electricity - General,17/06/2022,"1,639.01",Scottish & Southern Energy plc#SSE
Bolton MBC,Childrens Services,Electricity - General,17/06/2022,"1,407.85",Scottish & Southern Energy plc#SSE
Bolton MBC,Childrens Services,Electricity - General,17/06/2022,"1,341.27",Scottish & Southern Energy plc#SSE
Bolton MBC,Childrens Services,Electricity - General,17/06/2022,"1,266.29",Scottish & Southern Energy plc#SSE
Bolton MBC,Childrens Services,Electricity - General,17/06/2022,"1,254.26",Scottish & Southern Energy plc#SSE
Bolton MBC,Childrens Services,Electricity - General,17/06/2022,"1,226.44",Scottish & Southern Energy plc#SSE
Bolton MBC,Childrens Services,Electricity - General,17/06/2022,"1,202.14",Scottish & Southern Energy plc#SSE
Bolton MBC,Childrens Services,Electricity - General,17/06/2022,"1,117.93",Scottish & Southern Energy plc#SSE
Bolton MBC,Childrens Services,Electricity - General,17/06/2022,"1,108.68",Scottish & Southern Energy plc#SSE
Bolton MBC,Childrens Services,Electricity - General,17/06/2022,"1,068.40",Scottish & Southern Energy plc#SSE
Bolton MBC,Childrens Services,Electricity - General,17/06/2022,"1,059.18",Scottish & Southern Energy plc#SSE
Bolton MBC,Childrens Services,Electricity - General,17/06/2022,"1,006.24",Scottish & Southern Energy plc#SSE
Bolton MBC,Childrens Services,Electricity - General,17/06/2022,901.12,Scottish & Southern Energy plc#SSE
Bolton MBC,Childrens Services,Electricity - General,17/06/2022,741.56,Scottish & Southern Energy plc#SSE
Bolton MBC,Childrens Services,Electricity - General,17/06/2022,634.07,Scottish & Southern Energy plc#SSE
Bolton MBC,Childrens Services,Electricity - General,17/06/2022,614.25,Scottish & Southern Energy plc#SSE
Bolton MBC,Childrens Services,Inter Agency Fees,01/06/2022,877.00,Scottish Adoption
Bolton MBC,Childrens Services,Security Cash Collection,01/06/2022,"1,667.50",Security Plus Limited
Bolton MBC,Childrens Services,Security Cash Collection,01/06/2022,759.00,Security Plus Limited
Bolton MBC,Childrens Services,Marketing,01/06/2022,"1,750.00",Seven Star Media Limited
Bolton MBC,Childrens Services,Clients - Taxi Fares,01/06/2022,"3,780.00",SMA Cars
Bolton MBC,Childrens Services,Clients - Taxi Fares,01/06/2022,"5,477.00",Smart Ride Private Hire Limited
Bolton MBC,Childrens Services,Clients - Taxi Fares,01/06/2022,"1,715.00",Smiley Private Hire
Bolton MBC,Childrens Services,Legal Fees,01/06/2022,"1,500.00",St John's Building Barristers' Chambers
Bolton MBC,Childrens Services,Legal Fees,01/06/2022,593.75,St John's Building Barristers' Chambers
Bolton MBC,Childrens Services,Legal Fees,10/06/2022,"1,500.00",St John's Building Barristers' Chambers
Bolton MBC,Childrens Services,Contracted Services,01/06/2022,"2,500.00",St Marys CE Primary School
Bolton MBC,Childrens Services,Contracted Services,02/06/2022,"4,901.70",Steve Bore Specialist Services Ltd
Bolton MBC,Childrens Services,Computer Purchase,09/06/2022,521.00,Stone Computers Limited
Bolton MBC,Childrens Services,Computer Purchase,16/06/2022,"3,152.29",Stone Computers Limited
Bolton MBC,Childrens Services,Operational Equipment Maint,21/06/2022,"8,296.00",Stone Computers Limited
Bolton MBC,Childrens Services,Computer Purchase,22/06/2022,878.00,Stone Computers Limited
Bolton MBC,Childrens Services,Computer Purchase,24/06/2022,"2,048.00",Stone Computers Limited
Bolton MBC,Childrens Services,Computer Purchase,28/06/2022,745.00,Stone Computers Limited
Bolton MBC,Childrens Services,Computer Purchase,29/06/2022,"48,758.00",Stone Computers Limited
Bolton MBC,Childrens Services,Clients - Taxi Fares,01/06/2022,"13,151.00",Street Cars
Bolton MBC,Childrens Services,Operational Equipment Maint,22/06/2022,"5,000.00",Sunrise Software Limited
Bolton MBC,Childrens Services,Vol Assoc Grants - General,01/06/2022,"5,600.00",Supreme Child Care Limited
Bolton MBC,Childrens Services,Vol Assoc Grants - General,09/06/2022,"5,600.00",Supreme Child Care Limited
Bolton MBC,Childrens Services,Vol Assoc Grants - General,09/06/2022,"5,600.00",Supreme Child Care Limited
Bolton MBC,Childrens Services,Vol Assoc Grants - General,17/06/2022,"5,600.00",Supreme Child Care Limited
Bolton MBC,Childrens Services,Vol Assoc Grants - General,17/06/2022,"5,600.00",Supreme Child Care Limited
Bolton MBC,Childrens Services,Vol Assoc Grants - General,24/06/2022,"5,600.00",Supreme Child Care Limited
Bolton MBC,Childrens Services,Vol Assoc Grants - General,24/06/2022,"5,600.00",Supreme Child Care Limited
Bolton MBC,Childrens Services,Clients - Taxi Fares,01/06/2022,"8,435.00",Supreme Minibuses Limited
Bolton MBC,Childrens Services,Vol Assoc Grants - General,01/06/2022,863.03,Swiis Foster Care Limited
Bolton MBC,Childrens Services,Vol Assoc Grants - General,01/06/2022,836.52,Swiis Foster Care Limited
Bolton MBC,Childrens Services,Vol Assoc Grants - General,01/06/2022,819.84,Swiis Foster Care Limited
Bolton MBC,Childrens Services,Vol Assoc Grants - General,01/06/2022,695.52,Swiis Foster Care Limited
Bolton MBC,Childrens Services,Vol Assoc Grants - General,01/06/2022,695.52,Swiis Foster Care Limited
Bolton MBC,Childrens Services,Vol Assoc Grants - General,06/06/2022,863.03,Swiis Foster Care Limited
Bolton MBC,Childrens Services,Vol Assoc Grants - General,06/06/2022,836.52,Swiis Foster Care Limited
Bolton MBC,Childrens Services,Vol Assoc Grants - General,06/06/2022,819.84,Swiis Foster Care Limited
Bolton MBC,Childrens Services,Vol Assoc Grants - General,06/06/2022,695.52,Swiis Foster Care Limited
Bolton MBC,Childrens Services,Vol Assoc Grants - General,06/06/2022,695.52,Swiis Foster Care Limited
Bolton MBC,Childrens Services,Vol Assoc Grants - General,13/06/2022,863.03,Swiis Foster Care Limited
Bolton MBC,Childrens Services,Vol Assoc Grants - General,13/06/2022,836.52,Swiis Foster Care Limited
Bolton MBC,Childrens Services,Vol Assoc Grants - General,13/06/2022,819.84,Swiis Foster Care Limited
Bolton MBC,Childrens Services,Vol Assoc Grants - General,13/06/2022,695.52,Swiis Foster Care Limited
Bolton MBC,Childrens Services,Vol Assoc Grants - General,13/06/2022,695.52,Swiis Foster Care Limited
Bolton MBC,Childrens Services,Vol Assoc Grants - General,20/06/2022,863.03,Swiis Foster Care Limited
Bolton MBC,Childrens Services,Vol Assoc Grants - General,20/06/2022,836.52,Swiis Foster Care Limited
Bolton MBC,Childrens Services,Vol Assoc Grants - General,20/06/2022,819.84,Swiis Foster Care Limited
Bolton MBC,Childrens Services,Vol Assoc Grants - General,20/06/2022,695.52,Swiis Foster Care Limited
Bolton MBC,Childrens Services,Vol Assoc Grants - General,20/06/2022,695.52,Swiis Foster Care Limited
Bolton MBC,Childrens Services,Contracted Services,08/06/2022,"2,207.00",Tameside MBC
Bolton MBC,Childrens Services,Legal Fees,06/06/2022,"2,422.25",Target Psychology Limited
Bolton MBC,Childrens Services,Operational Equipment Purchase,01/06/2022,"2,448.00",The Music Cellar
Bolton MBC,Childrens Services,Miscellaneous Expenses,01/06/2022,800.00,The Purple Company (UK) Ltd T/a Silk Group
Bolton MBC,Childrens Services,Miscellaneous Expenses,23/06/2022,659.00,The Purple Company (UK) Ltd T/a Silk Group
Bolton MBC,Childrens Services,Vol Assoc Grants - General,01/06/2022,"3,655.21",Therapeutic Fostering Limited
Bolton MBC,Childrens Services,Vol Assoc Grants - General,01/06/2022,"3,645.60",Therapeutic Fostering Limited
Bolton MBC,Childrens Services,Vol Assoc Grants - General,01/06/2022,"3,241.98",Therapeutic Fostering Limited
Bolton MBC,Childrens Services,Vol Assoc Grants - General,01/06/2022,"3,241.98",Therapeutic Fostering Limited
Bolton MBC,Childrens Services,Vol Assoc Grants - General,01/06/2022,"2,827.20",Three Circles Fostering Ltd
Bolton MBC,Childrens Services,Vol Assoc Grants - General,01/06/2022,706.80,Three Circles Fostering Ltd
Bolton MBC,Childrens Services,Marketing,10/06/2022,"20,260.00",Tonic Consultancy#Limited
Bolton MBC,Childrens Services,Clients - Taxi Fares,01/06/2022,"2,090.00",Travel Assist Services
Bolton MBC,Childrens Services,Clients - Taxi Fares,01/06/2022,"6,990.00",Triple Zero Private Hire#Triple Zero Taxis Limited
Bolton MBC,Childrens Services,Computer Software Licences,17/06/2022,"5,480.00",Trojan Consultants Limited
Bolton MBC,Childrens Services,Promoting Events,01/06/2022,"1,686.36",Turton Sports Centre#TMAC
Bolton MBC,Childrens Services,Training Exps Tuition Fees,14/06/2022,785.00,University Of Central Lancashire#UCLAN
Bolton MBC,Childrens Services,Vol Assoc Grants - General,01/06/2022,"8,185.68",Vals Place Limited
Bolton MBC,Childrens Services,Vol Assoc Grants - General,01/06/2022,"1,035.90",Vcare-24 Limited
Bolton MBC,Childrens Services,Operational Equipment Purchase,27/06/2022,"5,012.00",Virgin Media Payments Limited#Virgin Media Business
Bolton MBC,Childrens Services,Contracted Services,01/06/2022,625.20,Vision For Education Limited
Bolton MBC,Childrens Services,Contracted Services,10/06/2022,625.20,Vision For Education Limited
Bolton MBC,Childrens Services,Contracted Services,20/06/2022,"1,050.00",Wardell Associates Ltd
Bolton MBC,Childrens Services,Legal Fees,01/06/2022,"11,446.00",Weightmans LLP
Bolton MBC,Childrens Services,Vol Assoc Grants - General,01/06/2022,"2,100.00",Wellbeing Property Solutions Limited
Bolton MBC,Childrens Services,Vol Assoc Grants - General,01/06/2022,700.00,Wellbeing Property Solutions Limited
Bolton MBC,Childrens Services,Vol Assoc Grants - General,06/06/2022,700.00,Wellbeing Property Solutions Limited
Bolton MBC,Childrens Services,Vol Assoc Grants - General,13/06/2022,700.00,Wellbeing Property Solutions Limited
Bolton MBC,Childrens Services,Vol Assoc Grants - General,20/06/2022,700.00,Wellbeing Property Solutions Limited
Bolton MBC,Childrens Services,Vol Assoc Grants - General,27/06/2022,700.00,Wellbeing Property Solutions Limited
Bolton MBC,Childrens Services,Clients - Taxi Fares,01/06/2022,"3,702.00",Willows Minibus
Bolton MBC,Childrens Services,Clients - Taxi Fares,01/06/2022,"3,990.00",Y & S Private Hire
Bolton MBC,Childrens Services,Contracted Services,24/06/2022,"11,520.00",Zaks Childcare Services Ltd
Bolton MBC,Development & Regeneration,Rent of Storage Facilities,04/06/2022,766.32,Adams Selfstore
Bolton MBC,Development & Regeneration,Library Books,13/06/2022,723.83,Askews & Holts Library Services Ltd
Bolton MBC,Development & Regeneration,Library Books,20/06/2022,788.04,Askews & Holts Library Services Ltd
Bolton MBC,Development & Regeneration,Library Books,27/06/2022,"1,267.39",Askews & Holts Library Services Ltd
Bolton MBC,Development & Regeneration,Library Books,01/06/2022,639.20,Bolinda UK Limited
Bolton MBC,Development & Regeneration,Contracted Services,01/06/2022,"195,753.00",Bolton College#Was Community College
Bolton MBC,Development & Regeneration,Contracted Services,01/06/2022,"102,920.00",Bolton College#Was Community College
Bolton MBC,Development & Regeneration,Contracted Services,01/06/2022,"164,989.54",Bolton Community Leisure Limited
Bolton MBC,Development & Regeneration,Work in Progress Additions,22/06/2022,"11,000.00",Building Design Partnership Ltd
Bolton MBC,Development & Regeneration,Agency Staff - Full-time,16/06/2022,"28,636.50",Capita Property & Infrastructure Ltd
Bolton MBC,Development & Regeneration,Agency Staff - Full-time,24/06/2022,"3,833.26",Capita Property & Infrastructure Ltd
Bolton MBC,Development & Regeneration,Agency Staff - Full-time,24/06/2022,794.00,Capita Property & Infrastructure Ltd
Bolton MBC,Development & Regeneration,Inter Agency Fees,01/06/2022,"1,812.50",Capita Real Estate & Infrastructure Limited
Bolton MBC,Development & Regeneration,Inter Agency Fees,01/06/2022,"1,575.00",Capita Real Estate & Infrastructure Limited
Bolton MBC,Development & Regeneration,Inter Agency Fees,17/06/2022,887.50,Capita Real Estate & Infrastructure Limited
Bolton MBC,Development & Regeneration,Work in Progress Additions,14/06/2022,"36,915.00",Capital & Centric Developments Ltd
Bolton MBC,Development & Regeneration,Work in Progress Additions,14/06/2022,"9,500.00",Capital & Centric Developments Ltd
Bolton MBC,Development & Regeneration,Work in Progress Additions,14/06/2022,"8,820.00",Capital & Centric Developments Ltd
Bolton MBC,Development & Regeneration,Work in Progress Additions,14/06/2022,"6,538.50",Capital & Centric Developments Ltd
Bolton MBC,Development & Regeneration,Work in Progress Additions,14/06/2022,"5,904.51",Capital & Centric Developments Ltd
Bolton MBC,Development & Regeneration,Work in Progress Additions,14/06/2022,"4,267.50",Capital & Centric Developments Ltd
Bolton MBC,Development & Regeneration,Work in Progress Additions,14/06/2022,"4,000.00",Capital & Centric Developments Ltd
Bolton MBC,Development & Regeneration,Work in Progress Additions,14/06/2022,"3,500.00",Capital & Centric Developments Ltd
Bolton MBC,Development & Regeneration,Work in Progress Additions,14/06/2022,"3,450.00",Capital & Centric Developments Ltd
Bolton MBC,Development & Regeneration,Work in Progress Additions,14/06/2022,"2,304.00",Capital & Centric Developments Ltd
Bolton MBC,Development & Regeneration,Work in Progress Additions,14/06/2022,"2,051.00",Capital & Centric Developments Ltd
Bolton MBC,Development & Regeneration,Work in Progress Additions,14/06/2022,"2,040.00",Capital & Centric Developments Ltd
Bolton MBC,Development & Regeneration,Work in Progress Additions,14/06/2022,"1,750.00",Capital & Centric Developments Ltd
Bolton MBC,Development & Regeneration,Work in Progress Additions,14/06/2022,850.00,Capital & Centric Developments Ltd
Bolton MBC,Development & Regeneration,Work in Progress Additions,14/06/2022,695.00,Capital & Centric Developments Ltd
Bolton MBC,Development & Regeneration,Work in Progress Additions,14/06/2022,695.00,Capital & Centric Developments Ltd
Bolton MBC,Development & Regeneration,Work in Progress Additions,14/06/2022,695.00,Capital & Centric Developments Ltd
Bolton MBC,Development & Regeneration,Other Agency/Contracted Services,01/06/2022,"1,702.00",Carrington West Limited
Bolton MBC,Development & Regeneration,Other Agency/Contracted Services,01/06/2022,"1,702.00",Carrington West Limited
Bolton MBC,Development & Regeneration,Other Agency/Contracted Services,01/06/2022,"1,110.00",Carrington West Limited
Bolton MBC,Development & Regeneration,Other Agency/Contracted Services,01/06/2022,"1,050.00",Carrington West Limited
Bolton MBC,Development & Regeneration,Other Agency/Contracted Services,01/06/2022,952.50,Carrington West Limited
Bolton MBC,Development & Regeneration,Other Agency/Contracted Services,01/06/2022,915.00,Carrington West Limited
Bolton MBC,Development & Regeneration,Other Agency/Contracted Services,01/06/2022,840.00,Carrington West Limited
Bolton MBC,Development & Regeneration,Other Agency/Contracted Services,01/06/2022,735.00,Carrington West Limited
Bolton MBC,Development & Regeneration,Other Agency/Contracted Services,09/06/2022,"1,334.00",Carrington West Limited
Bolton MBC,Development & Regeneration,Other Agency/Contracted Services,09/06/2022,670.80,Carrington West Limited
Bolton MBC,Development & Regeneration,Other Agency/Contracted Services,16/06/2022,"1,449.00",Carrington West Limited
Bolton MBC,Development & Regeneration,Other Agency/Contracted Services,16/06/2022,"1,154.40",Carrington West Limited
Bolton MBC,Development & Regeneration,Other Agency/Contracted Services,16/06/2022,792.00,Carrington West Limited
Bolton MBC,Development & Regeneration,Other Agency/Contracted Services,16/06/2022,750.00,Carrington West Limited
Bolton MBC,Development & Regeneration,Other Agency/Contracted Services,16/06/2022,645.00,Carrington West Limited
Bolton MBC,Development & Regeneration,Work in Progress Additions,30/06/2022,"39,264.00",Clear Sustainable Futures Joint Venture C/o Robertson Capital Projects Limited
Bolton MBC,Development & Regeneration,Work in Progress Additions,30/06/2022,687.12,Clear Sustainable Futures Joint Venture C/o Robertson Capital Projects Limited
Bolton MBC,Development & Regeneration,Work in Progress Additions,27/06/2022,"9,625.00",Colliers International Retail UK LLP
Bolton MBC,Development & Regeneration,Work in Progress Additions,27/06/2022,"5,000.00",Colliers International Retail UK LLP
Bolton MBC,Development & Regeneration,Other Fees,30/06/2022,"3,750.00",Dixon Searle Partnership#Limited
Bolton MBC,Development & Regeneration,Computer Software Licences,23/06/2022,"4,517.00",Emos Information Systems Ltd
Bolton MBC,Development & Regeneration,Consultancy Fees,16/06/2022,750.00,Fletcher CRE
Bolton MBC,Development & Regeneration,Agency Staff - Full-time,08/06/2022,675.00,G2 Recruitment Solutions
Bolton MBC,Development & Regeneration,Agency Staff - Full-time,15/06/2022,"3,172.50",G2 Recruitment Solutions
Bolton MBC,Development & Regeneration,Agency Staff - Full-time,16/06/2022,"1,012.50",G2 Recruitment Solutions
Bolton MBC,Development & Regeneration,Work in Progress Additions,01/06/2022,"1,536.00",Gateley Hamer Limited
Bolton MBC,Development & Regeneration,General Subscriptions,01/06/2022,"1,280.00",Greater Manchester Chamber Of Commerce
Bolton MBC,Development & Regeneration,Work in Progress Additions,27/06/2022,"27,628.56",Greater Manchester Combined Authority
Bolton MBC,Development & Regeneration,Work in Progress Additions,08/06/2022,"1,250.00",Greater Manchester Combined Authority#
Bolton MBC,Development & Regeneration,Clients - Bus Fares,13/06/2022,"1,174.20",Greater Manchester Travelcards Ltd#systemonetravelcards
Bolton MBC,Development & Regeneration,Clients - Bus Fares,13/06/2022,608.00,Greater Manchester Travelcards Ltd#systemonetravelcards
Bolton MBC,Development & Regeneration,Clients - Bus Fares,13/06/2022,587.10,Greater Manchester Travelcards Ltd#systemonetravelcards
Bolton MBC,Development & Regeneration,Electricity - General,10/06/2022,"2,583.56",Haven Power Limited
Bolton MBC,Development & Regeneration,Electricity - General,10/06/2022,"2,419.67",Haven Power Limited
Bolton MBC,Development & Regeneration,Electricity - General,10/06/2022,"1,736.87",Haven Power Limited
Bolton MBC,Development & Regeneration,Electricity - General,10/06/2022,"1,678.13",Haven Power Limited
Bolton MBC,Development & Regeneration,Agency Staff - Full-time,01/06/2022,"5,636.46",Hays Specialist Recruitment
Bolton MBC,Development & Regeneration,Agency Staff - Full-time,01/06/2022,"3,607.41",Hays Specialist Recruitment
Bolton MBC,Development & Regeneration,Agency Staff - Full-time,06/06/2022,"1,082.25",Hays Specialist Recruitment
Bolton MBC,Development & Regeneration,Agency Staff - Full-time,13/06/2022,"1,984.11",Hays Specialist Recruitment
Bolton MBC,Development & Regeneration,Agency Staff - Full-time,20/06/2022,"2,525.25",Hays Specialist Recruitment
Bolton MBC,Development & Regeneration,Operational Equipment Purchase,23/06/2022,680.00,IDS Land Survey
Bolton MBC,Development & Regeneration,Rent of Storage Facilities,01/06/2022,552.00,J W Whittle Limited#Store-Away Archive Facilities
Bolton MBC,Development & Regeneration,Other Agency/Contracted Services,14/06/2022,"2,875.00",JCA Limited
Bolton MBC,Development & Regeneration,Work in Progress Additions,01/06/2022,994.20,Jones Lighting Limited
Bolton MBC,Development & Regeneration,Work in Progress Additions,01/06/2022,950.63,Jones Lighting Limited
Bolton MBC,Development & Regeneration,Work in Progress Additions,01/06/2022,736.00,Jones Lighting Limited
Bolton MBC,Development & Regeneration,Legal Fees,01/06/2022,675.00,Landmark Chambers
Bolton MBC,Development & Regeneration,Contracted Services,30/06/2022,"1,286.00",M&G Transport & Technical Services Limited
Bolton MBC,Development & Regeneration,Contracted Services,30/06/2022,"1,286.00",M&G Transport & Technical Services Limited
Bolton MBC,Development & Regeneration,Consultancy Fees,10/06/2022,"16,150.00",Metro Dynamics Ltd
Bolton MBC,Development & Regeneration,Consultancy Fees,15/06/2022,"9,000.00",Metro Dynamics Ltd
Bolton MBC,Development & Regeneration,Other Fees,01/06/2022,"1,498.00",Modify Productions
Bolton MBC,Development & Regeneration,Work in Progress Additions,06/06/2022,"1,500.00",Network Rail Infrastructure Limited#Property
Bolton MBC,Development & Regeneration,Newspapers,24/06/2022,717.60,Newsquest Media Group
Bolton MBC,Development & Regeneration,Work in Progress Additions,01/06/2022,"20,000.00",OBI Property Limited
Bolton MBC,Development & Regeneration,Library Books,01/06/2022,"7,976.59",ProQuest LLC#Information & Learning Limited
Bolton MBC,Development & Regeneration,Consultancy Fees,14/06/2022,"1,000.00",REDACTED - Personal Data
Bolton MBC,Development & Regeneration,Agency Staff - Other,01/06/2022,673.93,Reed#Reed Specialist Recruitment Limited
Bolton MBC,Development & Regeneration,Agency Staff - Other,01/06/2022,657.25,Reed#Reed Specialist Recruitment Limited
Bolton MBC,Development & Regeneration,Agency Staff - Other,01/06/2022,644.90,Reed#Reed Specialist Recruitment Limited
Bolton MBC,Development & Regeneration,Agency Staff - Other,01/06/2022,636.37,Reed#Reed Specialist Recruitment Limited
Bolton MBC,Development & Regeneration,Agency Staff - Other,01/06/2022,636.37,Reed#Reed Specialist Recruitment Limited
Bolton MBC,Development & Regeneration,Agency Staff - Other,01/06/2022,636.30,Reed#Reed Specialist Recruitment Limited
Bolton MBC,Development & Regeneration,Agency Staff - Other,03/06/2022,657.25,Reed#Reed Specialist Recruitment Limited
Bolton MBC,Development & Regeneration,Agency Staff - Other,03/06/2022,644.90,Reed#Reed Specialist Recruitment Limited
Bolton MBC,Development & Regeneration,Agency Staff - Other,03/06/2022,644.90,Reed#Reed Specialist Recruitment Limited
Bolton MBC,Development & Regeneration,Agency Staff - Other,03/06/2022,636.37,Reed#Reed Specialist Recruitment Limited
Bolton MBC,Development & Regeneration,Agency Staff - Other,03/06/2022,636.37,Reed#Reed Specialist Recruitment Limited
Bolton MBC,Development & Regeneration,Agency Staff - Other,10/06/2022,568.44,Reed#Reed Specialist Recruitment Limited
Bolton MBC,Development & Regeneration,Agency Staff - Other,10/06/2022,563.29,Reed#Reed Specialist Recruitment Limited
Bolton MBC,Development & Regeneration,Agency Staff - Other,10/06/2022,558.91,Reed#Reed Specialist Recruitment Limited
Bolton MBC,Development & Regeneration,Agency Staff - Other,10/06/2022,524.59,Reed#Reed Specialist Recruitment Limited
Bolton MBC,Development & Regeneration,Agency Staff - Other,10/06/2022,524.52,Reed#Reed Specialist Recruitment Limited
Bolton MBC,Development & Regeneration,Agency Staff - Other,10/06/2022,515.98,Reed#Reed Specialist Recruitment Limited
Bolton MBC,Development & Regeneration,Agency Staff - Other,17/06/2022,657.25,Reed#Reed Specialist Recruitment Limited
Bolton MBC,Development & Regeneration,Agency Staff - Other,17/06/2022,644.98,Reed#Reed Specialist Recruitment Limited
Bolton MBC,Development & Regeneration,Agency Staff - Other,17/06/2022,644.90,Reed#Reed Specialist Recruitment Limited
Bolton MBC,Development & Regeneration,Agency Staff - Other,17/06/2022,636.37,Reed#Reed Specialist Recruitment Limited
Bolton MBC,Development & Regeneration,Agency Staff - Other,24/06/2022,657.25,Reed#Reed Specialist Recruitment Limited
Bolton MBC,Development & Regeneration,Agency Staff - Other,24/06/2022,653.56,Reed#Reed Specialist Recruitment Limited
Bolton MBC,Development & Regeneration,Agency Staff - Other,24/06/2022,644.98,Reed#Reed Specialist Recruitment Limited
Bolton MBC,Development & Regeneration,Agency Staff - Other,24/06/2022,644.98,Reed#Reed Specialist Recruitment Limited
Bolton MBC,Development & Regeneration,Agency Staff - Other,24/06/2022,644.90,Reed#Reed Specialist Recruitment Limited
Bolton MBC,Development & Regeneration,Agency Staff - Other,24/06/2022,636.37,Reed#Reed Specialist Recruitment Limited
Bolton MBC,Development & Regeneration,Agency Staff - Other,24/06/2022,515.92,Reed#Reed Specialist Recruitment Limited
Bolton MBC,Development & Regeneration,Work in Progress Additions,01/06/2022,"18,302.31",Robertson Facilities Management Limited
Bolton MBC,Development & Regeneration,Work in Progress Additions,13/06/2022,"6,319.65",Robertson Facilities Management Limited
Bolton MBC,Development & Regeneration,Work in Progress Additions,13/06/2022,"3,818.03",Robertson Facilities Management Limited
Bolton MBC,Development & Regeneration,Other Fees,13/06/2022,537.75,Robertson Facilities Management Limited
Bolton MBC,Development & Regeneration,Consultancy Fees,01/06/2022,"15,000.00",Savills (UK) Limited
Bolton MBC,Development & Regeneration,Consultancy Fees,07/06/2022,"10,000.00",Savills (UK) Limited
Bolton MBC,Development & Regeneration,Consultancy Fees,30/06/2022,"20,000.00",Savills (UK) Limited
Bolton MBC,Development & Regeneration,Electricity - General,17/06/2022,"2,077.39",Scottish & Southern Energy plc#SSE
Bolton MBC,Development & Regeneration,Electricity - General,17/06/2022,"1,104.47",Scottish & Southern Energy plc#SSE
Bolton MBC,Development & Regeneration,Electricity - General,17/06/2022,763.92,Scottish & Southern Energy plc#SSE
Bolton MBC,Development & Regeneration,Electricity - General,17/06/2022,730.46,Scottish & Southern Energy plc#SSE
Bolton MBC,Development & Regeneration,Electricity - General,17/06/2022,691.53,Scottish & Southern Energy plc#SSE
Bolton MBC,Development & Regeneration,Other Recruitment Expenditure,01/06/2022,"2,600.00",Servicom (High Tech) Ltd
Bolton MBC,Development & Regeneration,Library Books,01/06/2022,807.83,Ulverscroft Large Print Books Limited#Ulverscroft Limited
Bolton MBC,Development & Regeneration,Other Agency/Contracted Services,01/06/2022,"1,899.27",Vivid Resourcing
Bolton MBC,Development & Regeneration,Other Agency/Contracted Services,01/06/2022,"1,895.98",Vivid Resourcing
Bolton MBC,Development & Regeneration,Other Agency/Contracted Services,08/06/2022,"3,153.23",Vivid Resourcing
Bolton MBC,Development & Regeneration,Other Agency/Contracted Services,08/06/2022,"1,732.50",Vivid Resourcing
Bolton MBC,Development & Regeneration,Agency Staff - Full-time,08/06/2022,"1,635.00",Vivid Resourcing
Bolton MBC,Development & Regeneration,Other Agency/Contracted Services,15/06/2022,"2,305.20",Vivid Resourcing
Bolton MBC,Development & Regeneration,Other Agency/Contracted Services,15/06/2022,"2,021.00",Vivid Resourcing
Bolton MBC,Development & Regeneration,Other Agency/Contracted Services,22/06/2022,"2,103.25",Vivid Resourcing
Bolton MBC,Development & Regeneration,Other Agency/Contracted Services,22/06/2022,"2,035.00",Vivid Resourcing
Bolton MBC,Development & Regeneration,Other Agency/Contracted Services,29/06/2022,"2,255.00",Vivid Resourcing
Bolton MBC,Development & Regeneration,Other Fees,02/06/2022,"1,925.00",Wigan Pier Promotions#Limited
Bolton MBC,Environmental Services,Contracted Services,01/06/2022,730.00,A1 Vehicle Dismantlers
Bolton MBC,Environmental Services,Transport Hire,01/06/2022,550.00,ABC Coach Limited
Bolton MBC,Environmental Services,Operational Equipment Maint,07/06/2022,"1,290.00",Access Door Systems Limited
Bolton MBC,Environmental Services,Vehicles Plant Equip and Machinery,06/06/2022,"1,190.00",Advanced Communication Projects Limited
Bolton MBC,Environmental Services,Direct Materials,01/06/2022,"1,402.91",Aggregate Industries UK Limited
Bolton MBC,Environmental Services,Direct Materials,01/06/2022,"1,173.00",Aggregate Industries UK Limited
Bolton MBC,Environmental Services,Inv Invoice Price Variance,01/06/2022,513.86,Aggregate Industries UK Limited
Bolton MBC,Environmental Services,Inventory AP Accrual,01/06/2022,513.86,Aggregate Industries UK Limited
Bolton MBC,Environmental Services,Direct Materials,02/06/2022,"1,173.00",Aggregate Industries UK Limited
Bolton MBC,Environmental Services,Inv Invoice Price Variance,02/06/2022,915.96,Aggregate Industries UK Limited
Bolton MBC,Environmental Services,Inventory AP Accrual,02/06/2022,915.96,Aggregate Industries UK Limited
Bolton MBC,Environmental Services,Inv Invoice Price Variance,06/06/2022,652.80,Aggregate Industries UK Limited
Bolton MBC,Environmental Services,Inventory AP Accrual,06/06/2022,652.80,Aggregate Industries UK Limited
Bolton MBC,Environmental Services,Direct Materials,07/06/2022,"1,165.96",Aggregate Industries UK Limited
Bolton MBC,Environmental Services,Inv Invoice Price Variance,07/06/2022,529.26,Aggregate Industries UK Limited
Bolton MBC,Environmental Services,Inventory AP Accrual,07/06/2022,529.26,Aggregate Industries UK Limited
Bolton MBC,Environmental Services,Direct Materials,08/06/2022,"1,173.00",Aggregate Industries UK Limited
Bolton MBC,Environmental Services,Inv Invoice Price Variance,08/06/2022,891.16,Aggregate Industries UK Limited
Bolton MBC,Environmental Services,Inventory AP Accrual,08/06/2022,891.16,Aggregate Industries UK Limited
Bolton MBC,Environmental Services,Inv Invoice Price Variance,09/06/2022,928.12,Aggregate Industries UK Limited
Bolton MBC,Environmental Services,Inventory AP Accrual,09/06/2022,928.12,Aggregate Industries UK Limited
Bolton MBC,Environmental Services,Direct Materials,09/06/2022,586.50,Aggregate Industries UK Limited
Bolton MBC,Environmental Services,Inv Invoice Price Variance,10/06/2022,925.04,Aggregate Industries UK Limited
Bolton MBC,Environmental Services,Inventory AP Accrual,10/06/2022,925.04,Aggregate Industries UK Limited
Bolton MBC,Environmental Services,Direct Materials,13/06/2022,"1,173.00",Aggregate Industries UK Limited
Bolton MBC,Environmental Services,Direct Materials,14/06/2022,938.40,Aggregate Industries UK Limited
Bolton MBC,Environmental Services,Inv Invoice Price Variance,14/06/2022,744.86,Aggregate Industries UK Limited
Bolton MBC,Environmental Services,Inventory AP Accrual,14/06/2022,744.86,Aggregate Industries UK Limited
Bolton MBC,Environmental Services,Inv Invoice Price Variance,16/06/2022,"1,434.68",Aggregate Industries UK Limited
Bolton MBC,Environmental Services,Inventory AP Accrual,16/06/2022,"1,434.68",Aggregate Industries UK Limited
Bolton MBC,Environmental Services,Direct Materials,16/06/2022,"1,173.00",Aggregate Industries UK Limited
Bolton MBC,Environmental Services,Direct Materials,17/06/2022,"1,173.00",Aggregate Industries UK Limited
Bolton MBC,Environmental Services,Inv Invoice Price Variance,17/06/2022,616.52,Aggregate Industries UK Limited
Bolton MBC,Environmental Services,Inventory AP Accrual,17/06/2022,616.52,Aggregate Industries UK Limited
Bolton MBC,Environmental Services,Inv Invoice Price Variance,20/06/2022,"1,192.48",Aggregate Industries UK Limited
Bolton MBC,Environmental Services,Inventory AP Accrual,20/06/2022,"1,192.48",Aggregate Industries UK Limited
Bolton MBC,Environmental Services,Direct Materials,20/06/2022,938.40,Aggregate Industries UK Limited
Bolton MBC,Environmental Services,Inv Invoice Price Variance,21/06/2022,688.90,Aggregate Industries UK Limited
Bolton MBC,Environmental Services,Inventory AP Accrual,21/06/2022,688.90,Aggregate Industries UK Limited
Bolton MBC,Environmental Services,Inv Invoice Price Variance,22/06/2022,676.40,Aggregate Industries UK Limited
Bolton MBC,Environmental Services,Inventory AP Accrual,22/06/2022,676.40,Aggregate Industries UK Limited
Bolton MBC,Environmental Services,Direct Materials,23/06/2022,"1,173.00",Aggregate Industries UK Limited
Bolton MBC,Environmental Services,Inv Invoice Price Variance,23/06/2022,834.18,Aggregate Industries UK Limited
Bolton MBC,Environmental Services,Inventory AP Accrual,23/06/2022,834.18,Aggregate Industries UK Limited
Bolton MBC,Environmental Services,Direct Materials,24/06/2022,"1,170.65",Aggregate Industries UK Limited
Bolton MBC,Environmental Services,Inv Invoice Price Variance,24/06/2022,658.62,Aggregate Industries UK Limited
Bolton MBC,Environmental Services,Inventory AP Accrual,24/06/2022,658.62,Aggregate Industries UK Limited
Bolton MBC,Environmental Services,Direct Materials,27/06/2022,"1,173.00",Aggregate Industries UK Limited
Bolton MBC,Environmental Services,Inv Invoice Price Variance,27/06/2022,752.56,Aggregate Industries UK Limited
Bolton MBC,Environmental Services,Inventory AP Accrual,27/06/2022,752.56,Aggregate Industries UK Limited
Bolton MBC,Environmental Services,Livestock,16/06/2022,525.00,All 4 Pets Limited#Leigh Dogs And Cats Home
Bolton MBC,Environmental Services,Direct Materials,01/06/2022,"2,325.00",Altitude Services#Limited
Bolton MBC,Environmental Services,Livestock,01/06/2022,960.00,Animal Wardens
Bolton MBC,Environmental Services,General Materials,13/06/2022,"1,006.40",Anthony Axford Ltd
Bolton MBC,Environmental Services,General Materials,13/06/2022,970.07,Anthony Axford Ltd
Bolton MBC,Environmental Services,Inv Invoice Price Variance,01/06/2022,670.43,Armstrongs Aggregates Limited
Bolton MBC,Environmental Services,Inventory AP Accrual,01/06/2022,670.43,Armstrongs Aggregates Limited
Bolton MBC,Environmental Services,Operational Equipment Maint,01/06/2022,588.10,B Conway Group (Mechanical Handling) Ltd
Bolton MBC,Environmental Services,Modems and Lines,01/06/2022,"1,254.45",Babble Cloud Limited
Bolton MBC,Environmental Services,Modems and Lines,14/06/2022,"1,254.45",Babble Cloud Limited
Bolton MBC,Environmental Services,Direct Materials,14/06/2022,621.60,Benchmark Building Supplies Limited
Bolton MBC,Environmental Services,Engineering Work,01/06/2022,"39,081.13",Bethell Construction Ltd
Bolton MBC,Environmental Services,Engineering Work,01/06/2022,"31,000.00",Bethell Construction Ltd
Bolton MBC,Environmental Services,Engineering Work,01/06/2022,"9,239.29",Bethell Construction Ltd
Bolton MBC,Environmental Services,Advertising General,01/06/2022,750.00,Bolton Community Radio CIC#Bolton FM CIC
Bolton MBC,Environmental Services,Refuse Collection,01/06/2022,"6,060.00",Bolton Community Transport & Furniture Services#bct & fs#BCTFS
Bolton MBC,Environmental Services,Locks,23/06/2022,588.00,Bolton Lock Company Limited
Bolton MBC,Environmental Services,Contracted Services,09/06/2022,675.00,Book My Course Limited
Bolton MBC,Environmental Services,C.C.T.V.,01/06/2022,"4,755.75",BT plc#NOT GLOBAL SERVICES
Bolton MBC,Environmental Services,Other Security,06/06/2022,"4,450.00",Bury Fencing & Gates
Bolton MBC,Environmental Services,Day To Day Maintenance,01/06/2022,670.60,C Horrocks & Sons Limited
Bolton MBC,Environmental Services,Day To Day Maintenance,01/06/2022,630.94,C Horrocks & Sons Limited
Bolton MBC,Environmental Services,Day To Day Maintenance Structural,16/06/2022,"2,100.00",C Horrocks & Sons Limited
Bolton MBC,Environmental Services,Transport Hire,01/06/2022,"3,620.00",C P Davidson & Sons Limited
Bolton MBC,Environmental Services,Transport Hire,01/06/2022,"2,080.00",C P Davidson & Sons Limited
Bolton MBC,Environmental Services,Vehicles Plant Equip and Machinery,07/06/2022,"64,441.54",C P Davidson & Sons Limited
Bolton MBC,Environmental Services,Vehicles Plant Equip and Machinery,07/06/2022,"57,963.50",C P Davidson & Sons Limited
Bolton MBC,Environmental Services,Vehicles Plant Equip and Machinery,07/06/2022,"19,928.31",C P Davidson & Sons Limited
Bolton MBC,Environmental Services,Vehicles Plant Equip and Machinery,07/06/2022,"2,455.35",C P Davidson & Sons Limited
Bolton MBC,Environmental Services,Operational Equipment Maint,15/06/2022,"1,800.00",Canford Audio Limited
Bolton MBC,Environmental Services,Operational Equipment Maint,20/06/2022,694.00,Canford Audio Limited
Bolton MBC,Environmental Services,Contracted Services,01/06/2022,"1,218.53",Centurion Hydraulics Ltd
Bolton MBC,Environmental Services,Contracted Services,01/06/2022,928.85,Centurion Hydraulics Ltd
Bolton MBC,Environmental Services,Contracted Services,01/06/2022,555.01,Centurion Hydraulics Ltd
Bolton MBC,Environmental Services,Inventory AP Accrual,01/06/2022,"4,599.04",Certas Energy UK Ltd
Bolton MBC,Environmental Services,Contracted Services,01/06/2022,"1,950.00",Challenger Site Services LLP
Bolton MBC,Environmental Services,Plant Hire,01/06/2022,588.00,Charlton Sweeper Hire Limited
Bolton MBC,Environmental Services,Plant Hire,13/06/2022,882.00,Charlton Sweeper Hire Limited
Bolton MBC,Environmental Services,Contracted Services,01/06/2022,"2,051.15",Chassis & Cab Specialists
Bolton MBC,Environmental Services,Contracted Services,01/06/2022,"1,970.00",Chassis & Cab Specialists
Bolton MBC,Environmental Services,Contracted Services,01/06/2022,"1,459.00",Chassis & Cab Specialists
Bolton MBC,Environmental Services,Contracted Services,15/06/2022,"1,761.95",Chassis & Cab Specialists
Bolton MBC,Environmental Services,Vehicle Servicing,01/06/2022,906.87,Ciceley Truck & Van Centre#Ciceley Commercials Limited
Bolton MBC,Environmental Services,Contracted Services,01/06/2022,590.53,Ciceley Truck & Van Centre#Ciceley Commercials Limited
Bolton MBC,Environmental Services,Vehicle Servicing,23/06/2022,592.27,Ciceley Truck & Van Centre#Ciceley Commercials Limited
Bolton MBC,Environmental Services,Direct Materials,01/06/2022,"1,680.79",Civils & Lintels
Bolton MBC,Environmental Services,Traffic Enforcement Centre,17/06/2022,"4,500.00",Conduent Parking Enforcement Sol Limited#Conduent Public Sector UK Limited
Bolton MBC,Environmental Services,Traffic Enforcement Centre,17/06/2022,"1,800.00",Conduent Parking Enforcement Sol Limited#Conduent Public Sector UK Limited
Bolton MBC,Environmental Services,Computer Software Licences,01/06/2022,"3,247.50",Confirm#Confirm Solutions Limited
Bolton MBC,Environmental Services,Non-Scheduled Work,14/06/2022,"8,314.34",Conservation Contracts North West Ltd
Bolton MBC,Environmental Services,Contracted Services,15/06/2022,"3,252.96",Conservation Contracts North West Ltd
Bolton MBC,Environmental Services,Grant Funded Expenditure,07/06/2022,"1,500.00",Daisy Hill Lions Junior Football
Bolton MBC,Environmental Services,Contracted Services,01/06/2022,787.00,Das-Automotive
Bolton MBC,Environmental Services,Contracted Services,01/06/2022,516.50,Das-Automotive
Bolton MBC,Environmental Services,Contracted Services,17/06/2022,523.45,Das-Automotive
Bolton MBC,Environmental Services,Contract Hire,01/06/2022,"2,022.90",Dawsongroup Sweepers Limited
Bolton MBC,Environmental Services,Contract Hire,01/06/2022,"2,022.90",Dawsongroup Sweepers Limited
Bolton MBC,Environmental Services,Contract Hire,01/06/2022,"2,022.90",Dawsongroup Sweepers Limited
Bolton MBC,Environmental Services,Contract Hire,01/06/2022,"2,022.90",Dawsongroup Sweepers Limited
Bolton MBC,Environmental Services,Contract Hire,01/06/2022,"2,022.90",Dawsongroup Sweepers Limited
Bolton MBC,Environmental Services,Contract Hire,01/06/2022,"2,022.90",Dawsongroup Sweepers Limited
Bolton MBC,Environmental Services,Uninsured Losses - Vehicles,14/06/2022,513.51,Dawsongroup Sweepers Limited
Bolton MBC,Environmental Services,Vehicles Plant Equip and Machinery,01/06/2022,800.00,Defensive Driver Training Ltd
Bolton MBC,Environmental Services,Vehicles Plant Equip and Machinery,01/06/2022,800.00,Defensive Driver Training Ltd
Bolton MBC,Environmental Services,Vehicles Plant Equip and Machinery,01/06/2022,800.00,Defensive Driver Training Ltd
Bolton MBC,Environmental Services,Vehicles Plant Equip and Machinery,01/06/2022,800.00,Defensive Driver Training Ltd
Bolton MBC,Environmental Services,Vehicles Plant Equip and Machinery,01/06/2022,800.00,Defensive Driver Training Ltd
Bolton MBC,Environmental Services,Vehicles Plant Equip and Machinery,16/06/2022,800.00,Defensive Driver Training Ltd
Bolton MBC,Environmental Services,Horticultural Materials,01/06/2022,532.80,E N Coxhead Limited
Bolton MBC,Environmental Services,General Materials,04/06/2022,"3,565.00",E N Coxhead Limited
Bolton MBC,Environmental Services,Horticultural Materials,27/06/2022,520.80,E N Coxhead Limited
Bolton MBC,Environmental Services,R & M Cremators,01/06/2022,"26,630.00",ECE Consultancy Ltd
Bolton MBC,Environmental Services,R & M Cremators,01/06/2022,845.00,ECE Consultancy Ltd
Bolton MBC,Environmental Services,General Materials,18/06/2022,"2,786.00",ECE Consultancy Ltd
Bolton MBC,Environmental Services,General Materials,18/06/2022,683.00,ECE Consultancy Ltd
Bolton MBC,Environmental Services,Engineering Work,06/06/2022,"1,302.47",Electricity North West Limited#United Utilities Electricity Services Ltd
Bolton MBC,Environmental Services,Engineering Work,06/06/2022,"1,011.50",Electricity North West Limited#United Utilities Electricity Services Ltd
Bolton MBC,Environmental Services,Engineering Work,06/06/2022,948.72,Electricity North West Limited#United Utilities Electricity Services Ltd
Bolton MBC,Environmental Services,Engineering Work,06/06/2022,948.72,Electricity North West Limited#United Utilities Electricity Services Ltd
Bolton MBC,Environmental Services,Engineering Work,06/06/2022,705.53,Electricity North West Limited#United Utilities Electricity Services Ltd
Bolton MBC,Environmental Services,Engineering Work,06/06/2022,649.63,Electricity North West Limited#United Utilities Electricity Services Ltd
Bolton MBC,Environmental Services,Engineering Work,06/06/2022,649.63,Electricity North West Limited#United Utilities Electricity Services Ltd
Bolton MBC,Environmental Services,Engineering Work,06/06/2022,636.65,Electricity North West Limited#United Utilities Electricity Services Ltd
Bolton MBC,Environmental Services,Engineering Work,23/06/2022,"1,302.47",Electricity North West Limited#United Utilities Electricity Services Ltd
Bolton MBC,Environmental Services,Engineering Work,23/06/2022,"1,011.50",Electricity North West Limited#United Utilities Electricity Services Ltd
Bolton MBC,Environmental Services,Engineering Work,23/06/2022,948.72,Electricity North West Limited#United Utilities Electricity Services Ltd
Bolton MBC,Environmental Services,Engineering Work,23/06/2022,948.72,Electricity North West Limited#United Utilities Electricity Services Ltd
Bolton MBC,Environmental Services,Strategic Landscape,23/06/2022,948.72,Electricity North West Limited#United Utilities Electricity Services Ltd
Bolton MBC,Environmental Services,Engineering Work,24/06/2022,885.95,Electricity North West Limited#United Utilities Electricity Services Ltd
Bolton MBC,Environmental Services,Engineering Work,27/06/2022,"1,302.47",Electricity North West Limited#United Utilities Electricity Services Ltd
Bolton MBC,Environmental Services,Maint Of Playgrounds,07/06/2022,738.00,Elmes Joinery
Bolton MBC,Environmental Services,Promoting Events,01/06/2022,"6,868.75",Entertainers Show Providers Limited
Bolton MBC,Environmental Services,Contracted Services,01/06/2022,"4,595.00",ETS (UK) Ltd
Bolton MBC,Environmental Services,Contracted Services,17/06/2022,"1,400.60",ETS (UK) Ltd
Bolton MBC,Environmental Services,Inv Invoice Price Variance,17/06/2022,"1,103.85",Evolve Corporate Ltd T/A PK Safety
Bolton MBC,Environmental Services,Inventory AP Accrual,17/06/2022,"1,103.85",Evolve Corporate Ltd T/A PK Safety
Bolton MBC,Environmental Services,Direct Materials,01/06/2022,608.00,Eyre & Elliston Ltd
Bolton MBC,Environmental Services,Operational Equipment Rental,03/06/2022,"1,416.68",F R Sharrock Ltd#Sharrocks
Bolton MBC,Environmental Services,Operational Equipment Rental,03/06/2022,825.00,F R Sharrock Ltd#Sharrocks
Bolton MBC,Environmental Services,Operational Equipment Rental,03/06/2022,812.46,F R Sharrock Ltd#Sharrocks
Bolton MBC,Environmental Services,Operational Equipment Rental,03/06/2022,612.51,F R Sharrock Ltd#Sharrocks
Bolton MBC,Environmental Services,Vehicle Servicing,10/06/2022,"1,157.37",Faun Zoeller (UK) Limited
Bolton MBC,Environmental Services,Vehicle Servicing,15/06/2022,"1,263.26",Faun Zoeller (UK) Limited
Bolton MBC,Environmental Services,Vehicles Plant Equip and Machinery,09/06/2022,"1,897.00",Freight Transport Assoc Ltd#Logistics UK
Bolton MBC,Environmental Services,Vehicle Servicing,17/06/2022,997.36,Greenchem Solutions Ltd
Bolton MBC,Environmental Services,Contracted Services,20/06/2022,800.00,Greenwood Tree Services Limited
Bolton MBC,Environmental Services,Plant Hire,01/06/2022,"6,133.00",H & C (Plant Hire) Limited
Bolton MBC,Environmental Services,Plant Hire,01/06/2022,"2,846.75",H & C (Plant Hire) Limited
Bolton MBC,Environmental Services,Plant Hire,01/06/2022,"1,100.00",H & C (Plant Hire) Limited
Bolton MBC,Environmental Services,Plant Hire,01/06/2022,"1,091.50",H & C (Plant Hire) Limited
Bolton MBC,Environmental Services,Plant Hire,01/06/2022,"1,091.50",H & C (Plant Hire) Limited
Bolton MBC,Environmental Services,Plant Hire,01/06/2022,"1,091.50",H & C (Plant Hire) Limited
Bolton MBC,Environmental Services,Plant Hire,01/06/2022,"1,091.50",H & C (Plant Hire) Limited
Bolton MBC,Environmental Services,Plant Hire,01/06/2022,"1,091.50",H & C (Plant Hire) Limited
Bolton MBC,Environmental Services,Plant Hire,01/06/2022,"1,091.50",H & C (Plant Hire) Limited
Bolton MBC,Environmental Services,Plant Hire,01/06/2022,770.00,H & C (Plant Hire) Limited
Bolton MBC,Environmental Services,Plant Hire,01/06/2022,737.50,H & C (Plant Hire) Limited
Bolton MBC,Environmental Services,Plant Hire,01/06/2022,660.00,H & C (Plant Hire) Limited
Bolton MBC,Environmental Services,Plant Hire,01/06/2022,649.00,H & C (Plant Hire) Limited
Bolton MBC,Environmental Services,Plant Hire,01/06/2022,528.00,H & C (Plant Hire) Limited
Bolton MBC,Environmental Services,Plant Hire,01/06/2022,528.00,H & C (Plant Hire) Limited
Bolton MBC,Environmental Services,Plant Hire,01/06/2022,528.00,H & C (Plant Hire) Limited
Bolton MBC,Environmental Services,Plant Hire,12/06/2022,"1,327.50",H & C (Plant Hire) Limited
Bolton MBC,Environmental Services,Plant Hire,12/06/2022,"1,091.50",H & C (Plant Hire) Limited
Bolton MBC,Environmental Services,Plant Hire,12/06/2022,"1,091.50",H & C (Plant Hire) Limited
Bolton MBC,Environmental Services,Plant Hire,12/06/2022,"1,091.50",H & C (Plant Hire) Limited
Bolton MBC,Environmental Services,Plant Hire,12/06/2022,"1,062.00",H & C (Plant Hire) Limited
Bolton MBC,Environmental Services,Plant Hire,12/06/2022,663.75,H & C (Plant Hire) Limited
Bolton MBC,Environmental Services,Plant Hire,19/06/2022,"1,091.50",H & C (Plant Hire) Limited
Bolton MBC,Environmental Services,Plant Hire,19/06/2022,"1,091.50",H & C (Plant Hire) Limited
Bolton MBC,Environmental Services,Plant Hire,19/06/2022,"1,091.50",H & C (Plant Hire) Limited
Bolton MBC,Environmental Services,Plant Hire,19/06/2022,"1,091.50",H & C (Plant Hire) Limited
Bolton MBC,Environmental Services,Plant Hire,19/06/2022,649.00,H & C (Plant Hire) Limited
Bolton MBC,Environmental Services,Plant Hire,19/06/2022,649.00,H & C (Plant Hire) Limited
Bolton MBC,Environmental Services,Electricity - General,10/06/2022,"1,663.22",Haven Power Limited
Bolton MBC,Environmental Services,Electricity - General,10/06/2022,"1,256.62",Haven Power Limited
Bolton MBC,Environmental Services,Horticultural Materials,23/06/2022,518.75,Horticultural Trades Association
Bolton MBC,Environmental Services,Vehicle Servicing,15/06/2022,944.00,Hydraulic & Transmission Services Limited#HTS
Bolton MBC,Environmental Services,CR Bal Hold A/c Exp,21/06/2022,680.00,IDS Land Survey
Bolton MBC,Environmental Services,Laundry,01/06/2022,572.64,Impressed Laundry Limited#Impressed Ironing/Laundry
Bolton MBC,Environmental Services,Marketing,01/06/2022,"4,443.00",Impression (Bolton) Limited
Bolton MBC,Environmental Services,Inventory AP Accrual,10/06/2022,"1,355.20",Instarmac Group plc
Bolton MBC,Environmental Services,Inventory AP Accrual,10/06/2022,"1,337.28",Instarmac Group plc
Bolton MBC,Environmental Services,Inventory AP Accrual,13/06/2022,677.60,Instarmac Group plc
Bolton MBC,Environmental Services,Plant Hire,01/06/2022,"4,851.75",J C Davies Plant Hire
Bolton MBC,Environmental Services,Plant Hire,01/06/2022,"1,286.00",J C Davies Plant Hire
Bolton MBC,Environmental Services,Contracted Services,01/06/2022,578.20,J Dickinson & Sons (Horwich) Limited
Bolton MBC,Environmental Services,Contracted Services,17/06/2022,573.10,J Dickinson & Sons (Horwich) Limited
Bolton MBC,Environmental Services,Refuse Collection,24/06/2022,797.20,J Dickinson & Sons (Horwich) Limited
Bolton MBC,Environmental Services,Engineering Work,16/06/2022,"17,670.00",J Hopkins (Contractors) Ltd
Bolton MBC,Environmental Services,Direct Materials,19/06/2022,572.90,John Davidson (Pipes) Ltd#1
Bolton MBC,Environmental Services,Direct Materials,01/06/2022,736.00,Jones Lighting Limited
Bolton MBC,Environmental Services,Direct Materials,01/06/2022,736.00,Jones Lighting Limited
Bolton MBC,Environmental Services,Direct Materials,01/06/2022,736.00,Jones Lighting Limited
Bolton MBC,Environmental Services,Direct Materials,01/06/2022,736.00,Jones Lighting Limited
Bolton MBC,Environmental Services,Direct Materials,01/06/2022,736.00,Jones Lighting Limited
Bolton MBC,Environmental Services,Work in Progress Additions,14/06/2022,736.00,Jones Lighting Limited
Bolton MBC,Environmental Services,Vehicles Plant Equip and Machinery,19/06/2022,"3,730.62",Kinto UK Limited
Bolton MBC,Environmental Services,Vehicle Servicing,13/06/2022,631.41,Lancashire Daf
Bolton MBC,Environmental Services,Transport Hire,01/06/2022,"3,080.00",Leeds Commercial Limited
Bolton MBC,Environmental Services,Transport Hire,01/06/2022,"1,232.00",Leeds Commercial Limited
Bolton MBC,Environmental Services,Transport Hire,01/06/2022,"1,210.00",Leeds Commercial Limited
Bolton MBC,Environmental Services,Contracted Services,15/06/2022,540.00,LK Consult Limited
Bolton MBC,Environmental Services,Tyres,01/06/2022,800.50,Lodge Tyre Co Limited
Bolton MBC,Environmental Services,Tyres,01/06/2022,709.50,Lodge Tyre Co Limited
Bolton MBC,Environmental Services,Tyres,01/06/2022,629.50,Lodge Tyre Co Limited
Bolton MBC,Environmental Services,Tyres,01/06/2022,563.00,Lodge Tyre Co Limited
Bolton MBC,Environmental Services,Tyres,01/06/2022,533.00,Lodge Tyre Co Limited
Bolton MBC,Environmental Services,Tyres,01/06/2022,510.00,Lodge Tyre Co Limited
Bolton MBC,Environmental Services,Day To Day Maintenance,01/06/2022,"1,611.71",Lost Art Ltd
Bolton MBC,Environmental Services,Contracted Services,08/06/2022,"4,830.00",Lost Art Ltd
Bolton MBC,Environmental Services,Contracted Services,08/06/2022,"2,128.00",Lost Art Ltd
Bolton MBC,Environmental Services,Vehicle Servicing,09/06/2022,634.50,LPW (Europe) Ltd
Bolton MBC,Environmental Services,Engineering Work,20/06/2022,605.00,M C Coote
Bolton MBC,Environmental Services,Uninsured Losses - Vehicles,01/06/2022,700.58,Malcolm Nicholson and Son Ltd
Bolton MBC,Environmental Services,Inv Invoice Price Variance,29/06/2022,"5,818.00",Mallatite Limited
Bolton MBC,Environmental Services,Inventory AP Accrual,29/06/2022,"5,818.00",Mallatite Limited
Bolton MBC,Environmental Services,General Materials,29/06/2022,625.40,Mallatite Limited
Bolton MBC,Environmental Services,Inv Invoice Price Variance,01/06/2022,"4,195.50",Mallatite Minor Structures & Products Limited
Bolton MBC,Environmental Services,Inventory AP Accrual,01/06/2022,"4,195.50",Mallatite Minor Structures & Products Limited
Bolton MBC,Environmental Services,Other Fees,01/06/2022,"32,819.35",Marston Holdings Limited#Marston Recovery
Bolton MBC,Environmental Services,Inventory AP Accrual,17/06/2022,"4,194.71",Marwood Electrical Company Limited
Bolton MBC,Environmental Services,Inventory AP Accrual,22/06/2022,"2,786.85",Marwood Electrical Company Limited
Bolton MBC,Environmental Services,Inventory AP Accrual,22/06/2022,"2,040.92",Marwood Electrical Company Limited
Bolton MBC,Environmental Services,Transport Hire,01/06/2022,599.00,Melling Commercial Ltd T/A Westwood Motor Group
Bolton MBC,Environmental Services,Transport Hire,01/06/2022,599.00,Melling Commercial Ltd T/A Westwood Motor Group
Bolton MBC,Environmental Services,Transport Hire,01/06/2022,599.00,Melling Commercial Ltd T/A Westwood Motor Group
Bolton MBC,Environmental Services,Transport Hire,01/06/2022,584.25,Melling Commercial Ltd T/A Westwood Motor Group
Bolton MBC,Environmental Services,Transport Hire,23/06/2022,599.00,Melling Commercial Ltd T/A Westwood Motor Group
Bolton MBC,Environmental Services,Livestock,01/06/2022,"1,134.00",MPS Services Limited
Bolton MBC,Environmental Services,C.C.T.V.,17/06/2022,"5,164.00",National Car Parks Ltd#NCP
Bolton MBC,Environmental Services,Horticultural Materials,14/06/2022,661.50,Naylor Drainage Limited
Bolton MBC,Environmental Services,Advertising General,07/06/2022,"1,324.80",Newsquest Media Group
Bolton MBC,Environmental Services,General Materials,15/06/2022,790.00,North Manchester Driver Training Limited
Bolton MBC,Environmental Services,Contracted Services,01/06/2022,"2,601.46",Northern Commercials (Mirfield) Ltd
Bolton MBC,Environmental Services,Contracted Services,01/06/2022,687.33,Northern Commercials (Mirfield) Ltd
Bolton MBC,Environmental Services,Contract Unit-Non-LEA,01/06/2022,"51,361.61",NSL Limited#NSL Services Group
Bolton MBC,Environmental Services,Contract Unit-Non-LEA,01/06/2022,"49,574.33",NSL Limited#NSL Services Group
Bolton MBC,Environmental Services,Contract Unit-Non-LEA,01/06/2022,"5,303.67",NSL Limited#NSL Services Group
Bolton MBC,Environmental Services,Contract Unit-Non-LEA,01/06/2022,885.31,NSL Limited#NSL Services Group
Bolton MBC,Environmental Services,Transport Hire,01/06/2022,"1,950.00",Nu-Phalt Limited
Bolton MBC,Environmental Services,Horticultural Materials,15/06/2022,901.70,Park Lane Plants Ltd
Bolton MBC,Environmental Services,Car Parking,01/06/2022,976.96,Park Now Limited
Bolton MBC,Environmental Services,Vehicle Servicing,10/06/2022,972.96,Passenger Lift Services Ltd
Bolton MBC,Environmental Services,Traffic Enforcement Centre,01/06/2022,"2,312.40",PATROL#Parking and Traffic Regulations Outside London
Bolton MBC,Environmental Services,Maint Of Playgrounds,01/06/2022,"2,530.00",Peak Fabrications (Bolton) Limited
Bolton MBC,Environmental Services,Maint Of Playgrounds,01/06/2022,520.00,Peak Fabrications (Bolton) Limited
Bolton MBC,Environmental Services,Uniforms,16/06/2022,"1,508.00",Pennine Medical Supplies Limited
Bolton MBC,Environmental Services,Couriers Charges,01/06/2022,503.01,Pitney Bowes Limited
Bolton MBC,Environmental Services,Postage Charge,09/06/2022,"36,000.00",Postage By Phone-Pitney Bowes Ltd
Bolton MBC,Environmental Services,Postages Direct Costs,15/06/2022,"2,618.28",Postage By Phone-Pitney Bowes Ltd
Bolton MBC,Environmental Services,General Subscriptions,01/06/2022,"2,082.96",PPL PRS Limited
Bolton MBC,Environmental Services,Health and Safety,01/06/2022,590.00,Premier Pest Services
Bolton MBC,Environmental Services,Health and Safety,03/06/2022,590.00,Premier Pest Services
Bolton MBC,Environmental Services,Agency Staff - Other,22/06/2022,925.00,Proactive Personnel Limited
Bolton MBC,Environmental Services,Agency Staff - Other,22/06/2022,666.00,Proactive Personnel Limited
Bolton MBC,Environmental Services,Agency Staff - Full-time,01/06/2022,"2,957.85",Profile Security Services Ltd
Bolton MBC,Environmental Services,Agency Staff - Full-time,01/06/2022,"2,613.55",Profile Security Services Ltd
Bolton MBC,Environmental Services,Agency Staff - Full-time,01/06/2022,"1,935.36",Profile Security Services Ltd
Bolton MBC,Environmental Services,Agency Staff - Full-time,01/06/2022,"1,774.08",Profile Security Services Ltd
Bolton MBC,Environmental Services,Agency Staff - Full-time,01/06/2022,"1,330.56",Profile Security Services Ltd
Bolton MBC,Environmental Services,Agency Staff - Full-time,01/06/2022,"1,128.96",Profile Security Services Ltd
Bolton MBC,Environmental Services,Agency Staff - Full-time,01/06/2022,645.12,Profile Security Services Ltd
Bolton MBC,Environmental Services,Agency Staff - Full-time,01/06/2022,645.12,Profile Security Services Ltd
Bolton MBC,Environmental Services,Agency Staff - Full-time,01/06/2022,645.12,Profile Security Services Ltd
Bolton MBC,Environmental Services,Horticultural Materials,01/06/2022,845.24,Quantil Limited
Bolton MBC,Environmental Services,Day To Day Maintenance,01/06/2022,741.05,REDACTED - Personal Data
Bolton MBC,Environmental Services,Agency Staff - Other,01/06/2022,679.79,Reed#Reed Specialist Recruitment Limited
Bolton MBC,Environmental Services,Agency Staff - Other,01/06/2022,646.95,Reed#Reed Specialist Recruitment Limited
Bolton MBC,Environmental Services,Agency Staff - Other,01/06/2022,646.95,Reed#Reed Specialist Recruitment Limited
Bolton MBC,Environmental Services,Agency Staff - Other,01/06/2022,646.95,Reed#Reed Specialist Recruitment Limited
Bolton MBC,Environmental Services,Agency Staff - Other,01/06/2022,646.95,Reed#Reed Specialist Recruitment Limited
Bolton MBC,Environmental Services,Agency Staff - Other,01/06/2022,634.19,Reed#Reed Specialist Recruitment Limited
Bolton MBC,Environmental Services,Agency Staff - Other,01/06/2022,589.45,Reed#Reed Specialist Recruitment Limited
Bolton MBC,Environmental Services,Agency Staff - Other,01/06/2022,574.11,Reed#Reed Specialist Recruitment Limited
Bolton MBC,Environmental Services,Agency Staff - Other,01/06/2022,573.97,Reed#Reed Specialist Recruitment Limited
Bolton MBC,Environmental Services,Agency Staff - Other,01/06/2022,567.14,Reed#Reed Specialist Recruitment Limited
Bolton MBC,Environmental Services,Agency Staff - Other,01/06/2022,517.23,Reed#Reed Specialist Recruitment Limited
Bolton MBC,Environmental Services,Agency Staff - Other,01/06/2022,517.23,Reed#Reed Specialist Recruitment Limited
Bolton MBC,Environmental Services,Agency Staff - Other,01/06/2022,517.23,Reed#Reed Specialist Recruitment Limited
Bolton MBC,Environmental Services,Agency Staff - Other,01/06/2022,517.23,Reed#Reed Specialist Recruitment Limited
Bolton MBC,Environmental Services,Agency Staff - Other,01/06/2022,517.23,Reed#Reed Specialist Recruitment Limited
Bolton MBC,Environmental Services,Agency Staff - Other,01/06/2022,517.23,Reed#Reed Specialist Recruitment Limited
Bolton MBC,Environmental Services,Agency Staff - Other,01/06/2022,517.23,Reed#Reed Specialist Recruitment Limited
Bolton MBC,Environmental Services,Agency Staff - Other,01/06/2022,517.23,Reed#Reed Specialist Recruitment Limited
Bolton MBC,Environmental Services,Agency Staff - Other,01/06/2022,517.23,Reed#Reed Specialist Recruitment Limited
Bolton MBC,Environmental Services,Agency Staff - Other,01/06/2022,517.23,Reed#Reed Specialist Recruitment Limited
Bolton MBC,Environmental Services,Agency Staff - Other,01/06/2022,517.23,Reed#Reed Specialist Recruitment Limited
Bolton MBC,Environmental Services,Agency Staff - Other,01/06/2022,517.23,Reed#Reed Specialist Recruitment Limited
Bolton MBC,Environmental Services,Agency Staff - Other,03/06/2022,646.95,Reed#Reed Specialist Recruitment Limited
Bolton MBC,Environmental Services,Agency Staff - Other,03/06/2022,567.11,Reed#Reed Specialist Recruitment Limited
Bolton MBC,Environmental Services,Agency Staff - Other,03/06/2022,517.23,Reed#Reed Specialist Recruitment Limited
Bolton MBC,Environmental Services,Agency Staff - Other,03/06/2022,517.23,Reed#Reed Specialist Recruitment Limited
Bolton MBC,Environmental Services,Agency Staff - Other,03/06/2022,517.23,Reed#Reed Specialist Recruitment Limited
Bolton MBC,Environmental Services,Agency Staff - Other,03/06/2022,517.23,Reed#Reed Specialist Recruitment Limited
Bolton MBC,Environmental Services,Agency Staff - Other,03/06/2022,517.23,Reed#Reed Specialist Recruitment Limited
Bolton MBC,Environmental Services,Agency Staff - Other,03/06/2022,517.23,Reed#Reed Specialist Recruitment Limited
Bolton MBC,Environmental Services,Agency Staff - Other,03/06/2022,517.23,Reed#Reed Specialist Recruitment Limited
Bolton MBC,Environmental Services,Agency Staff - Other,03/06/2022,517.23,Reed#Reed Specialist Recruitment Limited
Bolton MBC,Environmental Services,Agency Staff - Other,03/06/2022,517.23,Reed#Reed Specialist Recruitment Limited
Bolton MBC,Environmental Services,Agency Staff - Other,03/06/2022,517.23,Reed#Reed Specialist Recruitment Limited
Bolton MBC,Environmental Services,Agency Staff - Other,03/06/2022,517.23,Reed#Reed Specialist Recruitment Limited
Bolton MBC,Environmental Services,Agency Staff - Other,03/06/2022,517.23,Reed#Reed Specialist Recruitment Limited
Bolton MBC,Environmental Services,Agency Staff - Other,03/06/2022,517.23,Reed#Reed Specialist Recruitment Limited
Bolton MBC,Environmental Services,Agency Staff - Other,03/06/2022,517.23,Reed#Reed Specialist Recruitment Limited
Bolton MBC,Environmental Services,Agency Staff - Other,03/06/2022,517.23,Reed#Reed Specialist Recruitment Limited
Bolton MBC,Environmental Services,Agency Staff - Other,03/06/2022,517.23,Reed#Reed Specialist Recruitment Limited
Bolton MBC,Environmental Services,Agency Staff - Other,03/06/2022,517.23,Reed#Reed Specialist Recruitment Limited
Bolton MBC,Environmental Services,Agency Staff - Other,03/06/2022,517.23,Reed#Reed Specialist Recruitment Limited
Bolton MBC,Environmental Services,Agency Staff - Other,03/06/2022,517.23,Reed#Reed Specialist Recruitment Limited
Bolton MBC,Environmental Services,Agency Staff - Other,03/06/2022,515.99,Reed#Reed Specialist Recruitment Limited
Bolton MBC,Environmental Services,Agency Staff - Other,03/06/2022,515.99,Reed#Reed Specialist Recruitment Limited
Bolton MBC,Environmental Services,Agency Staff - Other,03/06/2022,509.85,Reed#Reed Specialist Recruitment Limited
Bolton MBC,Environmental Services,Agency Staff - Other,03/06/2022,508.86,Reed#Reed Specialist Recruitment Limited
Bolton MBC,Environmental Services,Agency Staff - Other,03/06/2022,508.86,Reed#Reed Specialist Recruitment Limited
Bolton MBC,Environmental Services,Agency Staff - Other,03/06/2022,504.42,Reed#Reed Specialist Recruitment Limited
Bolton MBC,Environmental Services,Agency Staff - Other,03/06/2022,504.42,Reed#Reed Specialist Recruitment Limited
Bolton MBC,Environmental Services,Agency Staff - Other,17/06/2022,995.91,Reed#Reed Specialist Recruitment Limited
Bolton MBC,Environmental Services,Agency Staff - Other,17/06/2022,826.70,Reed#Reed Specialist Recruitment Limited
Bolton MBC,Environmental Services,Agency Staff - Other,17/06/2022,757.18,Reed#Reed Specialist Recruitment Limited
Bolton MBC,Environmental Services,Agency Staff - Other,17/06/2022,757.10,Reed#Reed Specialist Recruitment Limited
Bolton MBC,Environmental Services,Agency Staff - Other,17/06/2022,757.10,Reed#Reed Specialist Recruitment Limited
Bolton MBC,Environmental Services,Agency Staff - Other,17/06/2022,757.10,Reed#Reed Specialist Recruitment Limited
Bolton MBC,Environmental Services,Agency Staff - Other,17/06/2022,757.10,Reed#Reed Specialist Recruitment Limited
Bolton MBC,Environmental Services,Agency Staff - Other,17/06/2022,730.47,Reed#Reed Specialist Recruitment Limited
Bolton MBC,Environmental Services,Agency Staff - Other,17/06/2022,681.91,Reed#Reed Specialist Recruitment Limited
Bolton MBC,Environmental Services,Agency Staff - Other,17/06/2022,671.98,Reed#Reed Specialist Recruitment Limited
Bolton MBC,Environmental Services,Agency Staff - Other,17/06/2022,647.03,Reed#Reed Specialist Recruitment Limited
Bolton MBC,Environmental Services,Agency Staff - Other,17/06/2022,646.95,Reed#Reed Specialist Recruitment Limited
Bolton MBC,Environmental Services,Agency Staff - Other,17/06/2022,646.95,Reed#Reed Specialist Recruitment Limited
Bolton MBC,Environmental Services,Agency Staff - Other,17/06/2022,637.66,Reed#Reed Specialist Recruitment Limited
Bolton MBC,Environmental Services,Agency Staff - Other,17/06/2022,630.71,Reed#Reed Specialist Recruitment Limited
Bolton MBC,Environmental Services,Agency Staff - Other,17/06/2022,626.12,Reed#Reed Specialist Recruitment Limited
Bolton MBC,Environmental Services,Agency Staff - Other,17/06/2022,617.02,Reed#Reed Specialist Recruitment Limited
Bolton MBC,Environmental Services,Agency Staff - Other,17/06/2022,617.02,Reed#Reed Specialist Recruitment Limited
Bolton MBC,Environmental Services,Agency Staff - Other,17/06/2022,617.02,Reed#Reed Specialist Recruitment Limited
Bolton MBC,Environmental Services,Agency Staff - Other,17/06/2022,617.02,Reed#Reed Specialist Recruitment Limited
Bolton MBC,Environmental Services,Agency Staff - Other,17/06/2022,617.02,Reed#Reed Specialist Recruitment Limited
Bolton MBC,Environmental Services,Agency Staff - Other,17/06/2022,617.02,Reed#Reed Specialist Recruitment Limited
Bolton MBC,Environmental Services,Agency Staff - Other,17/06/2022,617.02,Reed#Reed Specialist Recruitment Limited
Bolton MBC,Environmental Services,Agency Staff - Other,17/06/2022,617.02,Reed#Reed Specialist Recruitment Limited
Bolton MBC,Environmental Services,Agency Staff - Other,17/06/2022,617.02,Reed#Reed Specialist Recruitment Limited
Bolton MBC,Environmental Services,Agency Staff - Other,17/06/2022,617.02,Reed#Reed Specialist Recruitment Limited
Bolton MBC,Environmental Services,Agency Staff - Other,17/06/2022,617.02,Reed#Reed Specialist Recruitment Limited
Bolton MBC,Environmental Services,Agency Staff - Other,17/06/2022,617.02,Reed#Reed Specialist Recruitment Limited
Bolton MBC,Environmental Services,Agency Staff - Other,17/06/2022,617.02,Reed#Reed Specialist Recruitment Limited
Bolton MBC,Environmental Services,Agency Staff - Other,17/06/2022,617.02,Reed#Reed Specialist Recruitment Limited
Bolton MBC,Environmental Services,Agency Staff - Other,17/06/2022,617.02,Reed#Reed Specialist Recruitment Limited
Bolton MBC,Environmental Services,Agency Staff - Other,17/06/2022,617.02,Reed#Reed Specialist Recruitment Limited
Bolton MBC,Environmental Services,Agency Staff - Other,17/06/2022,617.02,Reed#Reed Specialist Recruitment Limited
Bolton MBC,Environmental Services,Agency Staff - Other,17/06/2022,617.02,Reed#Reed Specialist Recruitment Limited
Bolton MBC,Environmental Services,Agency Staff - Other,17/06/2022,617.02,Reed#Reed Specialist Recruitment Limited
Bolton MBC,Environmental Services,Agency Staff - Other,17/06/2022,617.02,Reed#Reed Specialist Recruitment Limited
Bolton MBC,Environmental Services,Agency Staff - Other,17/06/2022,606.94,Reed#Reed Specialist Recruitment Limited
Bolton MBC,Environmental Services,Agency Staff - Other,17/06/2022,606.94,Reed#Reed Specialist Recruitment Limited
Bolton MBC,Environmental Services,Agency Staff - Other,17/06/2022,606.94,Reed#Reed Specialist Recruitment Limited
Bolton MBC,Environmental Services,Agency Staff - Other,17/06/2022,589.45,Reed#Reed Specialist Recruitment Limited
Bolton MBC,Environmental Services,Agency Staff - Other,17/06/2022,553.43,Reed#Reed Specialist Recruitment Limited
Bolton MBC,Environmental Services,Agency Staff - Other,17/06/2022,529.15,Reed#Reed Specialist Recruitment Limited
Bolton MBC,Environmental Services,Agency Staff - Other,17/06/2022,523.93,Reed#Reed Specialist Recruitment Limited
Bolton MBC,Environmental Services,Agency Staff - Other,17/06/2022,523.93,Reed#Reed Specialist Recruitment Limited
Bolton MBC,Environmental Services,Agency Staff - Other,17/06/2022,517.23,Reed#Reed Specialist Recruitment Limited
Bolton MBC,Environmental Services,Agency Staff - Other,17/06/2022,517.23,Reed#Reed Specialist Recruitment Limited
Bolton MBC,Environmental Services,Agency Staff - Other,17/06/2022,517.23,Reed#Reed Specialist Recruitment Limited
Bolton MBC,Environmental Services,Agency Staff - Other,17/06/2022,517.23,Reed#Reed Specialist Recruitment Limited
Bolton MBC,Environmental Services,Agency Staff - Other,17/06/2022,517.23,Reed#Reed Specialist Recruitment Limited
Bolton MBC,Environmental Services,Agency Staff - Other,17/06/2022,517.23,Reed#Reed Specialist Recruitment Limited
Bolton MBC,Environmental Services,Agency Staff - Other,17/06/2022,517.23,Reed#Reed Specialist Recruitment Limited
Bolton MBC,Environmental Services,Agency Staff - Other,17/06/2022,517.23,Reed#Reed Specialist Recruitment Limited
Bolton MBC,Environmental Services,Agency Staff - Other,17/06/2022,517.23,Reed#Reed Specialist Recruitment Limited
Bolton MBC,Environmental Services,Agency Staff - Other,17/06/2022,517.23,Reed#Reed Specialist Recruitment Limited
